Workbook

Sheet Setup
A1: ΔΙΠΛΑ 16άρι ΤΑΜΠΛΟ | D1: Θέσεις | E1: seed
D2: 3-4 | E2: =VALUE(LEFT(F2,1)) -> 3 | F2: 3 4
A3: Διοργανωτής: | B3: Υπ.Παιδείας | E3: =VALUE(RIGHT(F2,1)) -> 4
A4: Τίτλος Τουρνουά: | B4: Σχολικό Πρωτάθλημα 2014
A5: type:
A6: Έδρα αγώνων: | B6: ΑΕΤ ΝΙΚΗ ΠΑΤΡΩΝ
A7: Κατηγορία: | B7: Αγόρια Δ | D7: 0 1 2 3 4 11 5 8 14 10 15 12 6 9 7 13
A8: Έναρξη: | B8: 5 | D8: 1 2 3 4
A9: Λήξη: | B9: 11 Μαίου | D9: 0 0 0 0 0 0 0 0 0 0 0 0 0 0 0 0 0 0 0 0 0 0 0 0 0 0 0 0 0 0 0 0 0 0 0 0 0 0 0 0
A10: Επιδιατητής: | B10: Γ.Καζάνης
A11: Τηλέφωνο επιδ: | D11: 0 | E11: seed | F11: space pos | G11: Index | H11: Value
D12: =IF(E12="-","-",IF(E12>0,D11+1,0)) -> 0 | E12: =IF(F12>0,VALUE(MID($D$7,1,F12-1)),"-") -> 0 | F12: =IF(LEN($D$7)>1,FIND(" ",$D$7,1),0) -> 2 | G12: 0 | H12: 0
A13: Ηλικία (12, 14, 16, 18): | B13: 12 | D13: =IF(E13="-","-",IF(E13>0,D12+1,0)) -> 1 | E13: =IF(F13>0,VALUE(MID($D$7,F12+1,F13-F12-1)),"-") -> 1 | F13: =IF(AND(F12>0,LEN($D$7)>F12+1),FIND(" ",$D$7,F12+1),0) -> 4 | G13: 1 | H13: 1
D14: 2 | E14: 2 | F14: 6 | G14: 2 | H14: 2
D15: 3 | E15: 3 | F15: 8 | G15: 3 | H15: 3
D16: 4 | E16: 4 | F16: 10 | G16: 4 | H16: 4
A17: Main Draw | B17: ="("&COUNTBLANK(DrawPrep!H3:H18)&")" -> (1) | D17: 5 | E17: 11 | F17: 13 | G17: 5 | H17: 11
A18: Πλήθος bye (0-8): | B18: =COUNTBLANK(DrawPrep!H3:H18) -> 1 | D18: 6 | E18: 5 | F18: 15 | G18: 6 | H18: 5
A19: Αριθμός θέσεων seeded: | B19: 4 | D19: 7 | E19: 8 | F19: 17 | G19: 7 | H19: 8
D20: 8 | E20: 14 | F20: 20 | G20: 8 | H20: 14
D21: 9 | E21: 10 | F21: 23 | G21: 9 | H21: 10
D22: 10 | E22: 15 | F22: 26 | G22: 10 | H22: 15
D23: 11 | E23: 12 | F23: 29 | G23: 11 | H23: 12
D24: 12 | E24: 6 | F24: 31 | G24: 12 | H24: 6
A25: md (# για off) | B25: ok | D25: 13 | E25: 9 | F25: 33 | G25: 13 | H25: 9
D26: 14 | E26: 7 | F26: 35 | G26: 14 | H26: 7
A27: =RandUniq(3;4;2) | D27: 15 | E27: 13 | F27: 38 | G27: 15 | H27: 13
A29: =CONCATENATE(LEFT(D9;$B$18*2);LEFT(D8;$B$19*2);RandUniq($B$19+1;16-$B$18;16-$B$19-$B$18);" ")

Sheet DrawPrep
A1: =IF(Setup!B6>" ",Setup!B3 & ", " & Setup!B4 & ", " & Setup!B6 & ", " & Setup!B8 & "-" & Setup!B9,Setup!B3 & ", " & Setup!B4 & ", " & Setup!B8 & "-" & Setup!B9) -> Υπ.Παιδείας, Σχολικό Πρωτάθλημα 2014, ΑΕΤ ΝΙΚΗ ΠΑΤΡΩΝ, 5-11 Μαίου | N1: =Setup!$B$7 -> Αγόρια Δ
A2: α/α | B2: β-Δ | C2: β-Μ | D2: SortV | E2: D>0 | F2: S>0 | G2: Α.Μ. | H2: Ονοματεπώνυμο | I2: Σύλλογος | J2: ptsD | K2: ptsS | L2: Α.Μ. | M2: Ονοματεπώνυμο | N2: Σύλλογος | O2: ptsD | P2: ptsS | Q2: s1 | R2: s2 | S2: s3 | T2: s4 | U2: s5 | V2: SortPts | W2: Rand
A3: 1 | B3: =J3+O3 -> 0 | C3: =K3+P3 -> 1243.5 | D3: =IF(E3=2,1,IF(E3=1,2,IF(F3=2,3,IF(F3=1,4,5)))) -> 3 | E3: =COUNTIF(J3,">0")+COUNTIF(O3,">0") -> 0 | F3: =COUNTIF(K3,">0")+COUNTIF(P3,">0") -> 2 | G3: 23775 | H3: =IF($G3="","",VLOOKUP(Setup!$B$13&"-"&$G3,Rankings!$A:$E,2,FALSE)) -> ΑΝΤΩΝΟΠΟΥΛΟΣ ΧΡΗΣΤΟΣ | I3: =IF($G3="","",VLOOKUP(Setup!$B$13&"-"&$G3,Rankings!$A:$E,3,FALSE)) -> 1ο ΓΕΛ ΝΙΚΑΙΑΣ | J3: =IF(COUNTIF(Rankings!$A:$A,Setup!$B$13&"-"&$G3)>0,VLOOKUP(Setup!$B$13&"-"&$G3,Rankings!$A:$E,5,FALSE),0) -> 0 | K3: =IF(COUNTIF(Rankings!$A:$A,Setup!$B$13&"-"&$G3)>0,VLOOKUP(Setup!$B$13&"-"&$G3,Rankings!$A:$E,4,FALSE),0) -> 940 | L3: 23234 | M3: =IF($L3="","",VLOOKUP(Setup!$B$13&"-"&$L3,Rankings!$A:$E,2,FALSE)) -> ΚΑΖΑΝΤΖΗΣ ΜΙΧΑΗΛ-ΤΟΥΒ | N3: =IF($L3="","",VLOOKUP(Setup!$B$13&"-"&$L3,Rankings!$A:$E,3,FALSE)) -> ΚΟΛΛΕΓΙΟ ΑΘΗΝΩΝ | O3: =IF(COUNTIF(Rankings!$A:$A,Setup!$B$13&"-"&$L3)>0,VLOOKUP(Setup!$B$13&"-"&$L3,Rankings!$A:$E,5,FALSE),0) -> 0 | P3: =IF(COUNTIF(Rankings!$A:$A,Setup!$B$13&"-"&$L3)>0,VLOOKUP(Setup!$B$13&"-"&$L3,Rankings!$A:$E,4,FALSE),0) -> 303.5 | Q3: =B3+W3 -> 0.02232341589 | R3: =IF(J3>0,(B3+P3/1000+W3/1000),(B3+K3/1000+W3/1000)) -> 0.9400223234 | S3: =C3+W3 -> 1243.522323 | T3: =C3+W3 -> 1243.522323 | U3: =W3 -> 0.02232341589 | V3: =IF(G3="",0,VLOOKUP(D3,D3:U3,13+D3,FALSE)) -> 1243.522323 | W3: 0.02232341589
A4: 2 | B4: =J4+O4 -> 0 | C4: =K4+P4 -> 737.5 | D4: =IF(E4=2,1,IF(E4=1,2,IF(F4=2,3,IF(F4=1,4,5)))) -> 3 | E4: =COUNTIF(J4,">0")+COUNTIF(O4,">0") -> 0 | F4: =COUNTIF(K4,">0")+COUNTIF(P4,">0") -> 2 | G4: 23517 | H4: =IF($G4="","",VLOOKUP(Setup!$B$13&"-"&$G4,Rankings!$A:$E,2,FALSE)) -> ΤΣΙΡΑΝΙΔΗΣ ΕΥΣΤΑΘΙΟΣ | I4: =IF($G4="","",VLOOKUP(Setup!$B$13&"-"&$G4,Rankings!$A:$E,3,FALSE)) -> 2ο ΓΕΛ ΠΤΟΛΕΜΑΪΔΑΣ | J4: =IF(COUNTIF(Rankings!$A:$A,Setup!$B$13&"-"&$G4)>0,VLOOKUP(Setup!$B$13&"-"&$G4,Rankings!$A:$E,5,FALSE),0) -> 0 | K4: =IF(COUNTIF(Rankings!$A:$A,Setup!$B$13&"-"&$G4)>0,VLOOKUP(Setup!$B$13&"-"&$G4,Rankings!$A:$E,4,FALSE),0) -> 690 | L4: 23645 | M4: =IF($L4="","",VLOOKUP(Setup!$B$13&"-"&$L4,Rankings!$A:$E,2,FALSE)) -> ΝΑΚΑΣ ΚΩΝΣΤΑΝΤΙΝΟΣ | N4: =IF($L4="","",VLOOKUP(Setup!$B$13&"-"&$L4,Rankings!$A:$E,3,FALSE)) -> 1ο ΓΕΛ ΚΟΖΑΝΗΣ | O4: =IF(COUNTIF(Rankings!$A:$A,Setup!$B$13&"-"&$L4)>0,VLOOKUP(Setup!$B$13&"-"&$L4,Rankings!$A:$E,5,FALSE),0) -> 0 | P4: =IF(COUNTIF(Rankings!$A:$A,Setup!$B$13&"-"&$L4)>0,VLOOKUP(Setup!$B$13&"-"&$L4,Rankings!$A:$E,4,FALSE),0) -> 47.5 | Q4: =B4+W4 -> 0.04304699467 | R4: =IF(J4>0,(B4+P4/1000+W4/1000),(B4+K4/1000+W4/1000)) -> 0.690043047 | S4: =C4+W4 -> 737.543047 | T4: =C4+W4 -> 737.543047 | U4: =W4 -> 0.04304699467 | V4: =IF(G4="",0,VLOOKUP(D4,D4:U4,13+D4,FALSE)) -> 737.543047 | W4: 0.04304699467
A5: 3 | B5: =J5+O5 -> 0 | C5: =K5+P5 -> 619 | D5: =IF(E5=2,1,IF(E5=1,2,IF(F5=2,3,IF(F5=1,4,5)))) -> 3 | E5: =COUNTIF(J5,">0")+COUNTIF(O5,">0") -> 0 | F5: =COUNTIF(K5,">0")+COUNTIF(P5,">0") -> 2 | G5: 23661 | H5: =IF($G5="","",VLOOKUP(Setup!$B$13&"-"&$G5,Rankings!$A:$E,2,FALSE)) -> ΦΩΤΕΙΝΟΠΟΥΛΟΣ ΚΩΝΣΤΑΝΤΙΝΟΣ | I5: =IF($G5="","",VLOOKUP(Setup!$B$13&"-"&$G5,Rankings!$A:$E,3,FALSE)) -> ΙΔ.ΕΝ.ΛΥΚΕΙΟ ΘΕΟΜΗΤΩΡ | J5: =IF(COUNTIF(Rankings!$A:$A,Setup!$B$13&"-"&$G5)>0,VLOOKUP(Setup!$B$13&"-"&$G5,Rankings!$A:$E,5,FALSE),0) -> 0 | K5: =IF(COUNTIF(Rankings!$A:$A,Setup!$B$13&"-"&$G5)>0,VLOOKUP(Setup!$B$13&"-"&$G5,Rankings!$A:$E,4,FALSE),0) -> 368.5 | L5: 23192 | M5: =IF($L5="","",VLOOKUP(Setup!$B$13&"-"&$L5,Rankings!$A:$E,2,FALSE)) -> ΚΟΥΤΣΑΦΤΗΣ ΑΠΟΣΤΟΛΟΣ | N5: =IF($L5="","",VLOOKUP(Setup!$B$13&"-"&$L5,Rankings!$A:$E,3,FALSE)) -> 2ο ΓΕΛ ΒΡΙΛΗΣΣΙΩΝ | O5: =IF(COUNTIF(Rankings!$A:$A,Setup!$B$13&"-"&$L5)>0,VLOOKUP(Setup!$B$13&"-"&$L5,Rankings!$A:$E,5,FALSE),0) -> 0 | P5: =IF(COUNTIF(Rankings!$A:$A,Setup!$B$13&"-"&$L5)>0,VLOOKUP(Setup!$B$13&"-"&$L5,Rankings!$A:$E,4,FALSE),0) -> 250.5 | Q5: =B5+W5 -> 0.0320433648 | R5: =IF(J5>0,(B5+P5/1000+W5/1000),(B5+K5/1000+W5/1000)) -> 0.3685320434 | S5: =C5+W5 -> 619.0320434 | T5: =C5+W5 -> 619.0320434 | U5: =W5 -> 0.0320433648 | V5: =IF(G5="",0,VLOOKUP(D5,D5:U5,13+D5,FALSE)) -> 619.0320434 | W5: 0.0320433648
A6: 4 | B6: =J6+O6 -> 0 | C6: =K6+P6 -> 504 | D6: =IF(E6=2,1,IF(E6=1,2,IF(F6=2,3,IF(F6=1,4,5)))) -> 4 | E6: =COUNTIF(J6,">0")+COUNTIF(O6,">0") -> 0 | F6: =COUNTIF(K6,">0")+COUNTIF(P6,">0") -> 1 | G6: 29120 | H6: =IF($G6="","",VLOOKUP(Setup!$B$13&"-"&$G6,Rankings!$A:$E,2,FALSE)) -> ΜΑΝΤΟΠΟΥΛΟΣ ΑΝΔΡΕΑΣ | I6: =IF($G6="","",VLOOKUP(Setup!$B$13&"-"&$G6,Rankings!$A:$E,3,FALSE)) -> ΙΔ.ΓΕΛ ΕΛΛΗΝΙΚΟ ΚΟΛΛΕΓΙΟ | J6: =IF(COUNTIF(Rankings!$A:$A,Setup!$B$13&"-"&$G6)>0,VLOOKUP(Setup!$B$13&"-"&$G6,Rankings!$A:$E,5,FALSE),0) -> 0 | K6: =IF(COUNTIF(Rankings!$A:$A,Setup!$B$13&"-"&$G6)>0,VLOOKUP(Setup!$B$13&"-"&$G6,Rankings!$A:$E,4,FALSE),0) -> 0 | L6: 25875 | M6: =IF($L6="","",VLOOKUP(Setup!$B$13&"-"&$L6,Rankings!$A:$E,2,FALSE)) -> ΛΑΖΑΡΙΔΗΣ ΚΩΝΣΤΑΝΤΙΝΟΣ | N6: =IF($L6="","",VLOOKUP(Setup!$B$13&"-"&$L6,Rankings!$A:$E,3,FALSE)) -> ΙΔ.ΓΕΛ ΕΛΛΗΝΙΚΟ ΚΟΛΛΕΓΙΟ | O6: =IF(COUNTIF(Rankings!$A:$A,Setup!$B$13&"-"&$L6)>0,VLOOKUP(Setup!$B$13&"-"&$L6,Rankings!$A:$E,5,FALSE),0) -> 0 | P6: =IF(COUNTIF(Rankings!$A:$A,Setup!$B$13&"-"&$L6)>0,VLOOKUP(Setup!$B$13&"-"&$L6,Rankings!$A:$E,4,FALSE),0) -> 504 | Q6: =B6+W6 -> 0.02754007664 | R6: =IF(J6>0,(B6+P6/1000+W6/1000),(B6+K6/1000+W6/1000)) -> 2.754007664e-05 | S6: =C6+W6 -> 504.0275401 | T6: =C6+W6 -> 504.0275401 | U6: =W6 -> 0.02754007664 | V6: =IF(G6="",0,VLOOKUP(D6,D6:U6,13+D6,FALSE)) -> 504.0275401 | W6: 0.02754007664
A7: 5 | B7: =J7+O7 -> 0 | C7: =K7+P7 -> 495.5 | D7: =IF(E7=2,1,IF(E7=1,2,IF(F7=2,3,IF(F7=1,4,5)))) -> 3 | E7: =COUNTIF(J7,">0")+COUNTIF(O7,">0") -> 0 | F7: =COUNTIF(K7,">0")+COUNTIF(P7,">0") -> 2 | G7: 23662 | H7: =IF($G7="","",VLOOKUP(Setup!$B$13&"-"&$G7,Rankings!$A:$E,2,FALSE)) -> ΤΑΣΟΥΛΗΣ ΒΑΣΙΛΕΙΟΣ | I7: =IF($G7="","",VLOOKUP(Setup!$B$13&"-"&$G7,Rankings!$A:$E,3,FALSE)) -> 3ο ΓΕΛ ΗΛΙΟΥΠΟΛΗΣ | J7: =IF(COUNTIF(Rankings!$A:$A,Setup!$B$13&"-"&$G7)>0,VLOOKUP(Setup!$B$13&"-"&$G7,Rankings!$A:$E,5,FALSE),0) -> 0 | K7: =IF(COUNTIF(Rankings!$A:$A,Setup!$B$13&"-"&$G7)>0,VLOOKUP(Setup!$B$13&"-"&$G7,Rankings!$A:$E,4,FALSE),0) -> 219.5 | L7: 22965 | M7: =IF($L7="","",VLOOKUP(Setup!$B$13&"-"&$L7,Rankings!$A:$E,2,FALSE)) -> ΚΟΡΔΟΣ ΙΩΑΝΝΗΣ | N7: =IF($L7="","",VLOOKUP(Setup!$B$13&"-"&$L7,Rankings!$A:$E,3,FALSE)) -> ΙΔΙΩΤ.ΓΕΝ. ΛΥΚΕΙΟ ΠΡΟΤΥΠΟ ΑΘΗΝΩΝ | O7: =IF(COUNTIF(Rankings!$A:$A,Setup!$B$13&"-"&$L7)>0,VLOOKUP(Setup!$B$13&"-"&$L7,Rankings!$A:$E,5,FALSE),0) -> 0 | P7: =IF(COUNTIF(Rankings!$A:$A,Setup!$B$13&"-"&$L7)>0,VLOOKUP(Setup!$B$13&"-"&$L7,Rankings!$A:$E,4,FALSE),0) -> 276 | Q7: =B7+W7 -> 0.0228753438 | R7: =IF(J7>0,(B7+P7/1000+W7/1000),(B7+K7/1000+W7/1000)) -> 0.2195228753 | S7: =C7+W7 -> 495.5228753 | T7: =C7+W7 -> 495.5228753 | U7: =W7 -> 0.0228753438 | V7: =IF(G7="",0,VLOOKUP(D7,D7:U7,13+D7,FALSE)) -> 495.5228753 | W7: 0.0228753438
A8: 6 | B8: =J8+O8 -> 0 | C8: =K8+P8 -> 466 | D8: =IF(E8=2,1,IF(E8=1,2,IF(F8=2,3,IF(F8=1,4,5)))) -> 3 | E8: =COUNTIF(J8,">0")+COUNTIF(O8,">0") -> 0 | F8: =COUNTIF(K8,">0")+COUNTIF(P8,">0") -> 2 | G8: 27879 | H8: =IF($G8="","",VLOOKUP(Setup!$B$13&"-"&$G8,Rankings!$A:$E,2,FALSE)) -> ΚΙΣΣΑΣ ΧΡΗΣΤΟΣ-ΕΥΑΓΓΕΛΟΣ | I8: =IF($G8="","",VLOOKUP(Setup!$B$13&"-"&$G8,Rankings!$A:$E,3,FALSE)) -> 1ο ΓΕΛ ΚΙΑΤΟΥ | J8: =IF(COUNTIF(Rankings!$A:$A,Setup!$B$13&"-"&$G8)>0,VLOOKUP(Setup!$B$13&"-"&$G8,Rankings!$A:$E,5,FALSE),0) -> 0 | K8: =IF(COUNTIF(Rankings!$A:$A,Setup!$B$13&"-"&$G8)>0,VLOOKUP(Setup!$B$13&"-"&$G8,Rankings!$A:$E,4,FALSE),0) -> 180 | L8: 22866 | M8: =IF($L8="","",VLOOKUP(Setup!$B$13&"-"&$L8,Rankings!$A:$E,2,FALSE)) -> ΚΟΝΤΟΠΟΥΛΟΣ ΘΕΟΦΑΝΗΣ | N8: =IF($L8="","",VLOOKUP(Setup!$B$13&"-"&$L8,Rankings!$A:$E,3,FALSE)) -> 2ο ΓΕΛ ΚΟΡΙΝΘΟΥ | O8: =IF(COUNTIF(Rankings!$A:$A,Setup!$B$13&"-"&$L8)>0,VLOOKUP(Setup!$B$13&"-"&$L8,Rankings!$A:$E,5,FALSE),0) -> 0 | P8: =IF(COUNTIF(Rankings!$A:$A,Setup!$B$13&"-"&$L8)>0,VLOOKUP(Setup!$B$13&"-"&$L8,Rankings!$A:$E,4,FALSE),0) -> 286 | Q8: =B8+W8 -> 0.02952458195 | R8: =IF(J8>0,(B8+P8/1000+W8/1000),(B8+K8/1000+W8/1000)) -> 0.1800295246 | S8: =C8+W8 -> 466.0295246 | T8: =C8+W8 -> 466.0295246 | U8: =W8 -> 0.02952458195 | V8: =IF(G8="",0,VLOOKUP(D8,D8:U8,13+D8,FALSE)) -> 466.0295246 | W8: 0.02952458195
A9: 7 | B9: =J9+O9 -> 0 | C9: =K9+P9 -> 462.5 | D9: =IF(E9=2,1,IF(E9=1,2,IF(F9=2,3,IF(F9=1,4,5)))) -> 3 | E9: =COUNTIF(J9,">0")+COUNTIF(O9,">0") -> 0 | F9: =COUNTIF(K9,">0")+COUNTIF(P9,">0") -> 2 | G9: 22834 | H9: =IF($G9="","",VLOOKUP(Setup!$B$13&"-"&$G9,Rankings!$A:$E,2,FALSE)) -> ΑΔΑΛΟΓΛΟΥ ΛΑΖΑΡΟΣ | I9: =IF($G9="","",VLOOKUP(Setup!$B$13&"-"&$G9,Rankings!$A:$E,3,FALSE)) -> 3ο ΓΕΛ ΒΕΡΟΙΑΣ | J9: =IF(COUNTIF(Rankings!$A:$A,Setup!$B$13&"-"&$G9)>0,VLOOKUP(Setup!$B$13&"-"&$G9,Rankings!$A:$E,5,FALSE),0) -> 0 | K9: =IF(COUNTIF(Rankings!$A:$A,Setup!$B$13&"-"&$G9)>0,VLOOKUP(Setup!$B$13&"-"&$G9,Rankings!$A:$E,4,FALSE),0) -> 210.5 | L9: 29652 | M9: =IF($L9="","",VLOOKUP(Setup!$B$13&"-"&$L9,Rankings!$A:$E,2,FALSE)) -> ΚΟΣΚΙΝΑΣ ΝΙΚΟΛΑΟΣ | N9: =IF($L9="","",VLOOKUP(Setup!$B$13&"-"&$L9,Rankings!$A:$E,3,FALSE)) -> 3ο ΓΕΛ ΚΕΡΚΥΡΑΣ | O9: =IF(COUNTIF(Rankings!$A:$A,Setup!$B$13&"-"&$L9)>0,VLOOKUP(Setup!$B$13&"-"&$L9,Rankings!$A:$E,5,FALSE),0) -> 0 | P9: =IF(COUNTIF(Rankings!$A:$A,Setup!$B$13&"-"&$L9)>0,VLOOKUP(Setup!$B$13&"-"&$L9,Rankings!$A:$E,4,FALSE),0) -> 252 | Q9: =B9+W9 -> 0.004896034921 | R9: =IF(J9>0,(B9+P9/1000+W9/1000),(B9+K9/1000+W9/1000)) -> 0.210504896 | S9: =C9+W9 -> 462.504896 | T9: =C9+W9 -> 462.504896 | U9: =W9 -> 0.004896034921 | V9: =IF(G9="",0,VLOOKUP(D9,D9:U9,13+D9,FALSE)) -> 462.504896 | W9: 0.004896034921
A10: 8 | B10: =J10+O10 -> 0 | C10: =K10+P10 -> 444 | D10: =IF(E10=2,1,IF(E10=1,2,IF(F10=2,3,IF(F10=1,4,5)))) -> 3 | E10: =COUNTIF(J10,">0")+COUNTIF(O10,">0") -> 0 | F10: =COUNTIF(K10,">0")+COUNTIF(P10,">0") -> 2 | G10: 26603 | H10: =IF($G10="","",VLOOKUP(Setup!$B$13&"-"&$G10,Rankings!$A:$E,2,FALSE)) -> ΔΕΛΛΗΣ ΑΝΔΡΕΑΣ-ΑΛΕΞΑΝΔΡΟΣ | I10: =IF($G10="","",VLOOKUP(Setup!$B$13&"-"&$G10,Rankings!$A:$E,3,FALSE)) -> 2ο ΓΕΛ ΑΡΓΟΥΣ | J10: =IF(COUNTIF(Rankings!$A:$A,Setup!$B$13&"-"&$G10)>0,VLOOKUP(Setup!$B$13&"-"&$G10,Rankings!$A:$E,5,FALSE),0) -> 0 | K10: =IF(COUNTIF(Rankings!$A:$A,Setup!$B$13&"-"&$G10)>0,VLOOKUP(Setup!$B$13&"-"&$G10,Rankings!$A:$E,4,FALSE),0) -> 293 | L10: 26604 | M10: =IF($L10="","",VLOOKUP(Setup!$B$13&"-"&$L10,Rankings!$A:$E,2,FALSE)) -> ΔΕΛΛΗΣ ΧΡΙΣΤΟΣ-ΕΡΡΙΚΟΣ | N10: =IF($L10="","",VLOOKUP(Setup!$B$13&"-"&$L10,Rankings!$A:$E,3,FALSE)) -> 2ο ΓΕΛ ΑΡΓΟΥΣ | O10: =IF(COUNTIF(Rankings!$A:$A,Setup!$B$13&"-"&$L10)>0,VLOOKUP(Setup!$B$13&"-"&$L10,Rankings!$A:$E,5,FALSE),0) -> 0 | P10: =IF(COUNTIF(Rankings!$A:$A,Setup!$B$13&"-"&$L10)>0,VLOOKUP(Setup!$B$13&"-"&$L10,Rankings!$A:$E,4,FALSE),0) -> 151 | Q10: =B10+W10 -> 0.001622292428 | R10: =IF(J10>0,(B10+P10/1000+W10/1000),(B10+K10/1000+W10/1000)) -> 0.2930016223 | S10: =C10+W10 -> 444.0016223 | T10: =C10+W10 -> 444.0016223 | U10: =W10 -> 0.001622292428 | V10: =IF(G10="",0,VLOOKUP(D10,D10:U10,13+D10,FALSE)) -> 444.0016223 | W10: 0.001622292428
A11: 9 | B11: =J11+O11 -> 0 | C11: =K11+P11 -> 423 | D11: =IF(E11=2,1,IF(E11=1,2,IF(F11=2,3,IF(F11=1,4,5)))) -> 3 | E11: =COUNTIF(J11,">0")+COUNTIF(O11,">0") -> 0 | F11: =COUNTIF(K11,">0")+COUNTIF(P11,">0") -> 2 | G11: 25240 | H11: =IF($G11="","",VLOOKUP(Setup!$B$13&"-"&$G11,Rankings!$A:$E,2,FALSE)) -> ΔΗΜΟΠΟΥΛΟΣ ΠΛΑΤΩΝ ΜΑΡΙΟΣ | I11: =IF($G11="","",VLOOKUP(Setup!$B$13&"-"&$G11,Rankings!$A:$E,3,FALSE)) -> ΠΕΙΡΑΜΑΤΙΚΟ ΡΙΟΥ | J11: =IF(COUNTIF(Rankings!$A:$A,Setup!$B$13&"-"&$G11)>0,VLOOKUP(Setup!$B$13&"-"&$G11,Rankings!$A:$E,5,FALSE),0) -> 0 | K11: =IF(COUNTIF(Rankings!$A:$A,Setup!$B$13&"-"&$G11)>0,VLOOKUP(Setup!$B$13&"-"&$G11,Rankings!$A:$E,4,FALSE),0) -> 265.5 | L11: 23357 | M11: =IF($L11="","",VLOOKUP(Setup!$B$13&"-"&$L11,Rankings!$A:$E,2,FALSE)) -> ΑΝΔΡΟΥΤΣΕΛΗΣ ΑΛΕΞΙΟΣ | N11: =IF($L11="","",VLOOKUP(Setup!$B$13&"-"&$L11,Rankings!$A:$E,3,FALSE)) -> ΠΕΙΡΑΜΑΤΙΚΟ ΡΙΟΥ | O11: =IF(COUNTIF(Rankings!$A:$A,Setup!$B$13&"-"&$L11)>0,VLOOKUP(Setup!$B$13&"-"&$L11,Rankings!$A:$E,5,FALSE),0) -> 0 | P11: =IF(COUNTIF(Rankings!$A:$A,Setup!$B$13&"-"&$L11)>0,VLOOKUP(Setup!$B$13&"-"&$L11,Rankings!$A:$E,4,FALSE),0) -> 157.5 | Q11: =B11+W11 -> 0.04069602738 | R11: =IF(J11>0,(B11+P11/1000+W11/1000),(B11+K11/1000+W11/1000)) -> 0.265540696 | S11: =C11+W11 -> 423.040696 | T11: =C11+W11 -> 423.040696 | U11: =W11 -> 0.04069602738 | V11: =IF(G11="",0,VLOOKUP(D11,D11:U11,13+D11,FALSE)) -> 423.040696 | W11: 0.04069602738
A12: 10 | B12: =J12+O12 -> 0 | C12: =K12+P12 -> 355.5 | D12: =IF(E12=2,1,IF(E12=1,2,IF(F12=2,3,IF(F12=1,4,5)))) -> 3 | E12: =COUNTIF(J12,">0")+COUNTIF(O12,">0") -> 0 | F12: =COUNTIF(K12,">0")+COUNTIF(P12,">0") -> 2 | G12: 25351 | H12: =IF($G12="","",VLOOKUP(Setup!$B$13&"-"&$G12,Rankings!$A:$E,2,FALSE)) -> ΔΙΑΜΑΝΤΟΠΟΥΛΟΣ ΓΕΩΡΓΙΟΣ | I12: =IF($G12="","",VLOOKUP(Setup!$B$13&"-"&$G12,Rankings!$A:$E,3,FALSE)) -> ΚΟΛΛΕΓΙΟ ΨΥΧΙΚΟΥ | J12: =IF(COUNTIF(Rankings!$A:$A,Setup!$B$13&"-"&$G12)>0,VLOOKUP(Setup!$B$13&"-"&$G12,Rankings!$A:$E,5,FALSE),0) -> 0 | K12: =IF(COUNTIF(Rankings!$A:$A,Setup!$B$13&"-"&$G12)>0,VLOOKUP(Setup!$B$13&"-"&$G12,Rankings!$A:$E,4,FALSE),0) -> 158 | L12: 26210 | M12: =IF($L12="","",VLOOKUP(Setup!$B$13&"-"&$L12,Rankings!$A:$E,2,FALSE)) -> ΚΟΝΤΩΣΗΣ ΓΕΩΡΓΙΟΣ | N12: =IF($L12="","",VLOOKUP(Setup!$B$13&"-"&$L12,Rankings!$A:$E,3,FALSE)) -> ΛΕΟΝΤΕΙΟ ΛΥΚΕΙΟ ΠΑΤΗΣΙΩΝ | O12: =IF(COUNTIF(Rankings!$A:$A,Setup!$B$13&"-"&$L12)>0,VLOOKUP(Setup!$B$13&"-"&$L12,Rankings!$A:$E,5,FALSE),0) -> 0 | P12: =IF(COUNTIF(Rankings!$A:$A,Setup!$B$13&"-"&$L12)>0,VLOOKUP(Setup!$B$13&"-"&$L12,Rankings!$A:$E,4,FALSE),0) -> 197.5 | Q12: =B12+W12 -> 0.04418084332 | R12: =IF(J12>0,(B12+P12/1000+W12/1000),(B12+K12/1000+W12/1000)) -> 0.1580441808 | S12: =C12+W12 -> 355.5441808 | T12: =C12+W12 -> 355.5441808 | U12: =W12 -> 0.04418084332 | V12: =IF(G12="",0,VLOOKUP(D12,D12:U12,13+D12,FALSE)) -> 355.5441808 | W12: 0.04418084332
A13: 11 | B13: =J13+O13 -> 0 | C13: =K13+P13 -> 347.5 | D13: =IF(E13=2,1,IF(E13=1,2,IF(F13=2,3,IF(F13=1,4,5)))) -> 3 | E13: =COUNTIF(J13,">0")+COUNTIF(O13,">0") -> 0 | F13: =COUNTIF(K13,">0")+COUNTIF(P13,">0") -> 2 | G13: 25503 | H13: =IF($G13="","",VLOOKUP(Setup!$B$13&"-"&$G13,Rankings!$A:$E,2,FALSE)) -> ΠΑΡΑΣΧΑΚΗΣ ΝΙΚΟΛΑΟΣ | I13: =IF($G13="","",VLOOKUP(Setup!$B$13&"-"&$G13,Rankings!$A:$E,3,FALSE)) -> 1ο ΓΕΛ Ν.ΙΩΝΙΑΣ | J13: =IF(COUNTIF(Rankings!$A:$A,Setup!$B$13&"-"&$G13)>0,VLOOKUP(Setup!$B$13&"-"&$G13,Rankings!$A:$E,5,FALSE),0) -> 0 | K13: =IF(COUNTIF(Rankings!$A:$A,Setup!$B$13&"-"&$G13)>0,VLOOKUP(Setup!$B$13&"-"&$G13,Rankings!$A:$E,4,FALSE),0) -> 206 | L13: 23093 | M13: =IF($L13="","",VLOOKUP(Setup!$B$13&"-"&$L13,Rankings!$A:$E,2,FALSE)) -> ΚΑΛΔΕΡΩΝ ΖΑΚ | N13: =IF($L13="","",VLOOKUP(Setup!$B$13&"-"&$L13,Rankings!$A:$E,3,FALSE)) -> ΓΕΛ ΛΑΡΙΣΑΣ | O13: =IF(COUNTIF(Rankings!$A:$A,Setup!$B$13&"-"&$L13)>0,VLOOKUP(Setup!$B$13&"-"&$L13,Rankings!$A:$E,5,FALSE),0) -> 0 | P13: =IF(COUNTIF(Rankings!$A:$A,Setup!$B$13&"-"&$L13)>0,VLOOKUP(Setup!$B$13&"-"&$L13,Rankings!$A:$E,4,FALSE),0) -> 141.5 | Q13: =B13+W13 -> 0.03844250463 | R13: =IF(J13>0,(B13+P13/1000+W13/1000),(B13+K13/1000+W13/1000)) -> 0.2060384425 | S13: =C13+W13 -> 347.5384425 | T13: =C13+W13 -> 347.5384425 | U13: =W13 -> 0.03844250463 | V13: =IF(G13="",0,VLOOKUP(D13,D13:U13,13+D13,FALSE)) -> 347.5384425 | W13: 0.03844250463
A14: 12 | B14: =J14+O14 -> 0 | C14: =K14+P14 -> 338 | D14: =IF(E14=2,1,IF(E14=1,2,IF(F14=2,3,IF(F14=1,4,5)))) -> 3 | E14: =COUNTIF(J14,">0")+COUNTIF(O14,">0") -> 0 | F14: =COUNTIF(K14,">0")+COUNTIF(P14,">0") -> 2 | G14: 24053 | H14: =IF($G14="","",VLOOKUP(Setup!$B$13&"-"&$G14,Rankings!$A:$E,2,FALSE)) -> ΙΩΑΝΝΙΔΗΣ ΙΩΑΝΝΗΣ | I14: =IF($G14="","",VLOOKUP(Setup!$B$13&"-"&$G14,Rankings!$A:$E,3,FALSE)) -> 3ο ΓΕΛ ΑΓ. ΠΑΡΑΣΚΕΥΗΣ | J14: =IF(COUNTIF(Rankings!$A:$A,Setup!$B$13&"-"&$G14)>0,VLOOKUP(Setup!$B$13&"-"&$G14,Rankings!$A:$E,5,FALSE),0) -> 0 | K14: =IF(COUNTIF(Rankings!$A:$A,Setup!$B$13&"-"&$G14)>0,VLOOKUP(Setup!$B$13&"-"&$G14,Rankings!$A:$E,4,FALSE),0) -> 183 | L14: 24054 | M14: =IF($L14="","",VLOOKUP(Setup!$B$13&"-"&$L14,Rankings!$A:$E,2,FALSE)) -> ΙΩΑΝΝΙΔΗΣ ΠΑΝΤΕΛΕΗΜΩΝ | N14: =IF($L14="","",VLOOKUP(Setup!$B$13&"-"&$L14,Rankings!$A:$E,3,FALSE)) -> 3ο ΓΕΛ ΑΓ. ΠΑΡΑΣΚΕΥΗΣ | O14: =IF(COUNTIF(Rankings!$A:$A,Setup!$B$13&"-"&$L14)>0,VLOOKUP(Setup!$B$13&"-"&$L14,Rankings!$A:$E,5,FALSE),0) -> 0 | P14: =IF(COUNTIF(Rankings!$A:$A,Setup!$B$13&"-"&$L14)>0,VLOOKUP(Setup!$B$13&"-"&$L14,Rankings!$A:$E,4,FALSE),0) -> 155 | Q14: =B14+W14 -> 0.01545120355 | R14: =IF(J14>0,(B14+P14/1000+W14/1000),(B14+K14/1000+W14/1000)) -> 0.1830154512 | S14: =C14+W14 -> 338.0154512 | T14: =C14+W14 -> 338.0154512 | U14: =W14 -> 0.01545120355 | V14: =IF(G14="",0,VLOOKUP(D14,D14:U14,13+D14,FALSE)) -> 338.0154512 | W14: 0.01545120355
A15: 13 | B15: =J15+O15 -> 0 | C15: =K15+P15 -> 330 | D15: =IF(E15=2,1,IF(E15=1,2,IF(F15=2,3,IF(F15=1,4,5)))) -> 3 | E15: =COUNTIF(J15,">0")+COUNTIF(O15,">0") -> 0 | F15: =COUNTIF(K15,">0")+COUNTIF(P15,">0") -> 2 | G15: 24168 | H15: =IF($G15="","",VLOOKUP(Setup!$B$13&"-"&$G15,Rankings!$A:$E,2,FALSE)) -> ΜΙΧΑΗΛΟΣ ΣΤΕΦΑΝΟΣ | I15: =IF($G15="","",VLOOKUP(Setup!$B$13&"-"&$G15,Rankings!$A:$E,3,FALSE)) -> 3ο ΓΕΛ ΗΡΑΚΛΕΙΟΥ | J15: =IF(COUNTIF(Rankings!$A:$A,Setup!$B$13&"-"&$G15)>0,VLOOKUP(Setup!$B$13&"-"&$G15,Rankings!$A:$E,5,FALSE),0) -> 0 | K15: =IF(COUNTIF(Rankings!$A:$A,Setup!$B$13&"-"&$G15)>0,VLOOKUP(Setup!$B$13&"-"&$G15,Rankings!$A:$E,4,FALSE),0) -> 190 | L15: 24165 | M15: =IF($L15="","",VLOOKUP(Setup!$B$13&"-"&$L15,Rankings!$A:$E,2,FALSE)) -> ΠΕΡΔΙΚΟΓΙΑΝΝΗΣ ΣΤΥΛΙΑΝΟΣ | N15: =IF($L15="","",VLOOKUP(Setup!$B$13&"-"&$L15,Rankings!$A:$E,3,FALSE)) -> 8ο ΓΕΛ ΗΡΑΚΛΕΙΟΥ | O15: =IF(COUNTIF(Rankings!$A:$A,Setup!$B$13&"-"&$L15)>0,VLOOKUP(Setup!$B$13&"-"&$L15,Rankings!$A:$E,5,FALSE),0) -> 0 | P15: =IF(COUNTIF(Rankings!$A:$A,Setup!$B$13&"-"&$L15)>0,VLOOKUP(Setup!$B$13&"-"&$L15,Rankings!$A:$E,4,FALSE),0) -> 140 | Q15: =B15+W15 -> 0.02737359675 | R15: =IF(J15>0,(B15+P15/1000+W15/1000),(B15+K15/1000+W15/1000)) -> 0.1900273736 | S15: =C15+W15 -> 330.0273736 | T15: =C15+W15 -> 330.0273736 | U15: =W15 -> 0.02737359675 | V15: =IF(G15="",0,VLOOKUP(D15,D15:U15,13+D15,FALSE)) -> 330.0273736 | W15: 0.02737359675
A16: 14 | B16: =J16+O16 -> 0 | C16: =K16+P16 -> 321 | D16: =IF(E16=2,1,IF(E16=1,2,IF(F16=2,3,IF(F16=1,4,5)))) -> 3 | E16: =COUNTIF(J16,">0")+COUNTIF(O16,">0") -> 0 | F16: =COUNTIF(K16,">0")+COUNTIF(P16,">0") -> 2 | G16: 25238 | H16: =IF($G16="","",VLOOKUP(Setup!$B$13&"-"&$G16,Rankings!$A:$E,2,FALSE)) -> ΤΖΕΛΑΤΗΣ ΣΤΕΦΑΝΟΣ | I16: =IF($G16="","",VLOOKUP(Setup!$B$13&"-"&$G16,Rankings!$A:$E,3,FALSE)) -> 1ο ΓΕΛ ΡΑΦΗΝΑΣ | J16: =IF(COUNTIF(Rankings!$A:$A,Setup!$B$13&"-"&$G16)>0,VLOOKUP(Setup!$B$13&"-"&$G16,Rankings!$A:$E,5,FALSE),0) -> 0 | K16: =IF(COUNTIF(Rankings!$A:$A,Setup!$B$13&"-"&$G16)>0,VLOOKUP(Setup!$B$13&"-"&$G16,Rankings!$A:$E,4,FALSE),0) -> 152 | L16: 25273 | M16: =IF($L16="","",VLOOKUP(Setup!$B$13&"-"&$L16,Rankings!$A:$E,2,FALSE)) -> ΤΣΟΝΑΚΗΣ ΚΩΝΣΤΑΝΤΙΝΟΣ | N16: =IF($L16="","",VLOOKUP(Setup!$B$13&"-"&$L16,Rankings!$A:$E,3,FALSE)) -> 1ο ΓΕΛ ΠΑΠΑΓΟΥ | O16: =IF(COUNTIF(Rankings!$A:$A,Setup!$B$13&"-"&$L16)>0,VLOOKUP(Setup!$B$13&"-"&$L16,Rankings!$A:$E,5,FALSE),0) -> 0 | P16: =IF(COUNTIF(Rankings!$A:$A,Setup!$B$13&"-"&$L16)>0,VLOOKUP(Setup!$B$13&"-"&$L16,Rankings!$A:$E,4,FALSE),0) -> 169 | Q16: =B16+W16 -> 0.02387063655 | R16: =IF(J16>0,(B16+P16/1000+W16/1000),(B16+K16/1000+W16/1000)) -> 0.1520238706 | S16: =C16+W16 -> 321.0238706 | T16: =C16+W16 -> 321.0238706 | U16: =W16 -> 0.02387063655 | V16: =IF(G16="",0,VLOOKUP(D16,D16:U16,13+D16,FALSE)) -> 321.0238706 | W16: 0.02387063655
A17: 15 | B17: =J17+O17 -> 0 | C17: =K17+P17 -> 215 | D17: =IF(E17=2,1,IF(E17=1,2,IF(F17=2,3,IF(F17=1,4,5)))) -> 3 | E17: =COUNTIF(J17,">0")+COUNTIF(O17,">0") -> 0 | F17: =COUNTIF(K17,">0")+COUNTIF(P17,">0") -> 2 | G17: 25243 | H17: =IF($G17="","",VLOOKUP(Setup!$B$13&"-"&$G17,Rankings!$A:$E,2,FALSE)) -> ΜΑΡΟΥΛΗΣ ΧΑΡΑΛΑΜΠΟΣ | I17: =IF($G17="","",VLOOKUP(Setup!$B$13&"-"&$G17,Rankings!$A:$E,3,FALSE)) -> ΑΡΣΑΚΕΙΟ ΠΑΤΡΩΝ | J17: =IF(COUNTIF(Rankings!$A:$A,Setup!$B$13&"-"&$G17)>0,VLOOKUP(Setup!$B$13&"-"&$G17,Rankings!$A:$E,5,FALSE),0) -> 0 | K17: =IF(COUNTIF(Rankings!$A:$A,Setup!$B$13&"-"&$G17)>0,VLOOKUP(Setup!$B$13&"-"&$G17,Rankings!$A:$E,4,FALSE),0) -> 149 | L17: 32290 | M17: =IF($L17="","",VLOOKUP(Setup!$B$13&"-"&$L17,Rankings!$A:$E,2,FALSE)) -> ΛΑYΡΑΝΟΣ ΓΡΗΓΟΡΗΣ | N17: =IF($L17="","",VLOOKUP(Setup!$B$13&"-"&$L17,Rankings!$A:$E,3,FALSE)) -> ΓΕΛ ΡΙΟΥ | O17: =IF(COUNTIF(Rankings!$A:$A,Setup!$B$13&"-"&$L17)>0,VLOOKUP(Setup!$B$13&"-"&$L17,Rankings!$A:$E,5,FALSE),0) -> 0 | P17: =IF(COUNTIF(Rankings!$A:$A,Setup!$B$13&"-"&$L17)>0,VLOOKUP(Setup!$B$13&"-"&$L17,Rankings!$A:$E,4,FALSE),0) -> 66 | Q17: =B17+W17 -> 0.01888338292 | R17: =IF(J17>0,(B17+P17/1000+W17/1000),(B17+K17/1000+W17/1000)) -> 0.1490188834 | S17: =C17+W17 -> 215.0188834 | T17: =C17+W17 -> 215.0188834 | U17: =W17 -> 0.01888338292 | V17: =IF(G17="",0,VLOOKUP(D17,D17:U17,13+D17,FALSE)) -> 215.0188834 | W17: 0.01888338292
A18: 16 | B18: =J18+O18 -> 0 | C18: =K18+P18 -> 0 | D18: =IF(E18=2,1,IF(E18=1,2,IF(F18=2,3,IF(F18=1,4,5)))) -> 5 | E18: =COUNTIF(J18,">0")+COUNTIF(O18,">0") -> 0 | F18: =COUNTIF(K18,">0")+COUNTIF(P18,">0") -> 0 | H18: =IF($G18="","",VLOOKUP(Setup!$B$13&"-"&$G18,Rankings!$A:$E,2,FALSE)) ->  | I18: =IF($G18="","",VLOOKUP(Setup!$B$13&"-"&$G18,Rankings!$A:$E,3,FALSE)) ->  | J18: =IF(COUNTIF(Rankings!$A:$A,Setup!$B$13&"-"&$G18)>0,VLOOKUP(Setup!$B$13&"-"&$G18,Rankings!$A:$E,5,FALSE),0) -> 0 | K18: =IF(COUNTIF(Rankings!$A:$A,Setup!$B$13&"-"&$G18)>0,VLOOKUP(Setup!$B$13&"-"&$G18,Rankings!$A:$E,4,FALSE),0) -> 0 | M18: =IF($L18="","",VLOOKUP(Setup!$B$13&"-"&$L18,Rankings!$A:$E,2,FALSE)) ->  | N18: =IF($L18="","",VLOOKUP(Setup!$B$13&"-"&$L18,Rankings!$A:$E,3,FALSE)) ->  | O18: =IF(COUNTIF(Rankings!$A:$A,Setup!$B$13&"-"&$L18)>0,VLOOKUP(Setup!$B$13&"-"&$L18,Rankings!$A:$E,5,FALSE),0) -> 0 | P18: =IF(COUNTIF(Rankings!$A:$A,Setup!$B$13&"-"&$L18)>0,VLOOKUP(Setup!$B$13&"-"&$L18,Rankings!$A:$E,4,FALSE),0) -> 0 | Q18: =B18+W18 -> 0.04520418303 | R18: =IF(J18>0,(B18+P18/1000+W18/1000),(B18+K18/1000+W18/1000)) -> 4.520418303e-05 | S18: =C18+W18 -> 0.04520418303 | T18: =C18+W18 -> 0.04520418303 | U18: =W18 -> 0.04520418303 | V18: =IF(G18="",0,VLOOKUP(D18,D18:U18,13+D18,FALSE)) -> 0 | W18: 0.04520418303
A19: 17 | B19: =J19+O19 -> 0 | C19: =K19+P19 -> 0 | D19: =IF(E19=2,1,IF(E19=1,2,IF(F19=2,3,IF(F19=1,4,5)))) -> 5 | E19: =COUNTIF(J19,">0")+COUNTIF(O19,">0") -> 0 | F19: =COUNTIF(K19,">0")+COUNTIF(P19,">0") -> 0 | H19: =IF($G19="","",VLOOKUP(Setup!$B$13&"-"&$G19,Rankings!$A:$E,2,FALSE)) ->  | I19: =IF($G19="","",VLOOKUP(Setup!$B$13&"-"&$G19,Rankings!$A:$E,3,FALSE)) ->  | J19: =IF(COUNTIF(Rankings!$A:$A,Setup!$B$13&"-"&$G19)>0,VLOOKUP(Setup!$B$13&"-"&$G19,Rankings!$A:$E,5,FALSE),0) -> 0 | K19: =IF(COUNTIF(Rankings!$A:$A,Setup!$B$13&"-"&$G19)>0,VLOOKUP(Setup!$B$13&"-"&$G19,Rankings!$A:$E,4,FALSE),0) -> 0 | M19: =IF($L19="","",VLOOKUP(Setup!$B$13&"-"&$L19,Rankings!$A:$E,2,FALSE)) ->  | N19: =IF($L19="","",VLOOKUP(Setup!$B$13&"-"&$L19,Rankings!$A:$E,3,FALSE)) ->  | O19: =IF(COUNTIF(Rankings!$A:$A,Setup!$B$13&"-"&$L19)>0,VLOOKUP(Setup!$B$13&"-"&$L19,Rankings!$A:$E,5,FALSE),0) -> 0 | P19: =IF(COUNTIF(Rankings!$A:$A,Setup!$B$13&"-"&$L19)>0,VLOOKUP(Setup!$B$13&"-"&$L19,Rankings!$A:$E,4,FALSE),0) -> 0 | Q19: =B19+W19 -> 0.04501884413 | R19: =IF(J19>0,(B19+P19/1000+W19/1000),(B19+K19/1000+W19/1000)) -> 4.501884413e-05 | S19: =C19+W19 -> 0.04501884413 | T19: =C19+W19 -> 0.04501884413 | U19: =W19 -> 0.04501884413 | V19: =IF(G19="",0,VLOOKUP(D19,D19:U19,13+D19,FALSE)) -> 0 | W19: 0.04501884413
A20: 18 | B20: =J20+O20 -> 0 | C20: =K20+P20 -> 0 | D20: =IF(E20=2,1,IF(E20=1,2,IF(F20=2,3,IF(F20=1,4,5)))) -> 5 | E20: =COUNTIF(J20,">0")+COUNTIF(O20,">0") -> 0 | F20: =COUNTIF(K20,">0")+COUNTIF(P20,">0") -> 0 | H20: =IF($G20="","",VLOOKUP(Setup!$B$13&"-"&$G20,Rankings!$A:$E,2,FALSE)) ->  | I20: =IF($G20="","",VLOOKUP(Setup!$B$13&"-"&$G20,Rankings!$A:$E,3,FALSE)) ->  | J20: =IF(COUNTIF(Rankings!$A:$A,Setup!$B$13&"-"&$G20)>0,VLOOKUP(Setup!$B$13&"-"&$G20,Rankings!$A:$E,5,FALSE),0) -> 0 | K20: =IF(COUNTIF(Rankings!$A:$A,Setup!$B$13&"-"&$G20)>0,VLOOKUP(Setup!$B$13&"-"&$G20,Rankings!$A:$E,4,FALSE),0) -> 0 | M20: =IF($L20="","",VLOOKUP(Setup!$B$13&"-"&$L20,Rankings!$A:$E,2,FALSE)) ->  | N20: =IF($L20="","",VLOOKUP(Setup!$B$13&"-"&$L20,Rankings!$A:$E,3,FALSE)) ->  | O20: =IF(COUNTIF(Rankings!$A:$A,Setup!$B$13&"-"&$L20)>0,VLOOKUP(Setup!$B$13&"-"&$L20,Rankings!$A:$E,5,FALSE),0) -> 0 | P20: =IF(COUNTIF(Rankings!$A:$A,Setup!$B$13&"-"&$L20)>0,VLOOKUP(Setup!$B$13&"-"&$L20,Rankings!$A:$E,4,FALSE),0) -> 0 | Q20: =B20+W20 -> 0.04429495185 | R20: =IF(J20>0,(B20+P20/1000+W20/1000),(B20+K20/1000+W20/1000)) -> 4.429495185e-05 | S20: =C20+W20 -> 0.04429495185 | T20: =C20+W20 -> 0.04429495185 | U20: =W20 -> 0.04429495185 | V20: =IF(G20="",0,VLOOKUP(D20,D20:U20,13+D20,FALSE)) -> 0 | W20: 0.04429495185
A21: 19 | B21: =J21+O21 -> 0 | C21: =K21+P21 -> 0 | D21: =IF(E21=2,1,IF(E21=1,2,IF(F21=2,3,IF(F21=1,4,5)))) -> 5 | E21: =COUNTIF(J21,">0")+COUNTIF(O21,">0") -> 0 | F21: =COUNTIF(K21,">0")+COUNTIF(P21,">0") -> 0 | H21: =IF($G21="","",VLOOKUP(Setup!$B$13&"-"&$G21,Rankings!$A:$E,2,FALSE)) ->  | I21: =IF($G21="","",VLOOKUP(Setup!$B$13&"-"&$G21,Rankings!$A:$E,3,FALSE)) ->  | J21: =IF(COUNTIF(Rankings!$A:$A,Setup!$B$13&"-"&$G21)>0,VLOOKUP(Setup!$B$13&"-"&$G21,Rankings!$A:$E,5,FALSE),0) -> 0 | K21: =IF(COUNTIF(Rankings!$A:$A,Setup!$B$13&"-"&$G21)>0,VLOOKUP(Setup!$B$13&"-"&$G21,Rankings!$A:$E,4,FALSE),0) -> 0 | M21: =IF($L21="","",VLOOKUP(Setup!$B$13&"-"&$L21,Rankings!$A:$E,2,FALSE)) ->  | N21: =IF($L21="","",VLOOKUP(Setup!$B$13&"-"&$L21,Rankings!$A:$E,3,FALSE)) ->  | O21: =IF(COUNTIF(Rankings!$A:$A,Setup!$B$13&"-"&$L21)>0,VLOOKUP(Setup!$B$13&"-"&$L21,Rankings!$A:$E,5,FALSE),0) -> 0 | P21: =IF(COUNTIF(Rankings!$A:$A,Setup!$B$13&"-"&$L21)>0,VLOOKUP(Setup!$B$13&"-"&$L21,Rankings!$A:$E,4,FALSE),0) -> 0 | Q21: =B21+W21 -> 0.0415364144 | R21: =IF(J21>0,(B21+P21/1000+W21/1000),(B21+K21/1000+W21/1000)) -> 4.15364144e-05 | S21: =C21+W21 -> 0.0415364144 | T21: =C21+W21 -> 0.0415364144 | U21: =W21 -> 0.0415364144 | V21: =IF(G21="",0,VLOOKUP(D21,D21:U21,13+D21,FALSE)) -> 0 | W21: 0.0415364144
A22: 20 | B22: =J22+O22 -> 0 | C22: =K22+P22 -> 0 | D22: =IF(E22=2,1,IF(E22=1,2,IF(F22=2,3,IF(F22=1,4,5)))) -> 5 | E22: =COUNTIF(J22,">0")+COUNTIF(O22,">0") -> 0 | F22: =COUNTIF(K22,">0")+COUNTIF(P22,">0") -> 0 | H22: =IF($G22="","",VLOOKUP(Setup!$B$13&"-"&$G22,Rankings!$A:$E,2,FALSE)) ->  | I22: =IF($G22="","",VLOOKUP(Setup!$B$13&"-"&$G22,Rankings!$A:$E,3,FALSE)) ->  | J22: =IF(COUNTIF(Rankings!$A:$A,Setup!$B$13&"-"&$G22)>0,VLOOKUP(Setup!$B$13&"-"&$G22,Rankings!$A:$E,5,FALSE),0) -> 0 | K22: =IF(COUNTIF(Rankings!$A:$A,Setup!$B$13&"-"&$G22)>0,VLOOKUP(Setup!$B$13&"-"&$G22,Rankings!$A:$E,4,FALSE),0) -> 0 | M22: =IF($L22="","",VLOOKUP(Setup!$B$13&"-"&$L22,Rankings!$A:$E,2,FALSE)) ->  | N22: =IF($L22="","",VLOOKUP(Setup!$B$13&"-"&$L22,Rankings!$A:$E,3,FALSE)) ->  | O22: =IF(COUNTIF(Rankings!$A:$A,Setup!$B$13&"-"&$L22)>0,VLOOKUP(Setup!$B$13&"-"&$L22,Rankings!$A:$E,5,FALSE),0) -> 0 | P22: =IF(COUNTIF(Rankings!$A:$A,Setup!$B$13&"-"&$L22)>0,VLOOKUP(Setup!$B$13&"-"&$L22,Rankings!$A:$E,4,FALSE),0) -> 0 | Q22: =B22+W22 -> 0.04085017488 | R22: =IF(J22>0,(B22+P22/1000+W22/1000),(B22+K22/1000+W22/1000)) -> 4.085017488e-05 | S22: =C22+W22 -> 0.04085017488 | T22: =C22+W22 -> 0.04085017488 | U22: =W22 -> 0.04085017488 | V22: =IF(G22="",0,VLOOKUP(D22,D22:U22,13+D22,FALSE)) -> 0 | W22: 0.04085017488
A23: 21 | B23: =J23+O23 -> 0 | C23: =K23+P23 -> 0 | D23: =IF(E23=2,1,IF(E23=1,2,IF(F23=2,3,IF(F23=1,4,5)))) -> 5 | E23: =COUNTIF(J23,">0")+COUNTIF(O23,">0") -> 0 | F23: =COUNTIF(K23,">0")+COUNTIF(P23,">0") -> 0 | H23: =IF($G23="","",VLOOKUP(Setup!$B$13&"-"&$G23,Rankings!$A:$E,2,FALSE)) ->  | I23: =IF($G23="","",VLOOKUP(Setup!$B$13&"-"&$G23,Rankings!$A:$E,3,FALSE)) ->  | J23: =IF(COUNTIF(Rankings!$A:$A,Setup!$B$13&"-"&$G23)>0,VLOOKUP(Setup!$B$13&"-"&$G23,Rankings!$A:$E,5,FALSE),0) -> 0 | K23: =IF(COUNTIF(Rankings!$A:$A,Setup!$B$13&"-"&$G23)>0,VLOOKUP(Setup!$B$13&"-"&$G23,Rankings!$A:$E,4,FALSE),0) -> 0 | M23: =IF($L23="","",VLOOKUP(Setup!$B$13&"-"&$L23,Rankings!$A:$E,2,FALSE)) ->  | N23: =IF($L23="","",VLOOKUP(Setup!$B$13&"-"&$L23,Rankings!$A:$E,3,FALSE)) ->  | O23: =IF(COUNTIF(Rankings!$A:$A,Setup!$B$13&"-"&$L23)>0,VLOOKUP(Setup!$B$13&"-"&$L23,Rankings!$A:$E,5,FALSE),0) -> 0 | P23: =IF(COUNTIF(Rankings!$A:$A,Setup!$B$13&"-"&$L23)>0,VLOOKUP(Setup!$B$13&"-"&$L23,Rankings!$A:$E,4,FALSE),0) -> 0 | Q23: =B23+W23 -> 0.04034316701 | R23: =IF(J23>0,(B23+P23/1000+W23/1000),(B23+K23/1000+W23/1000)) -> 4.034316701e-05 | S23: =C23+W23 -> 0.04034316701 | T23: =C23+W23 -> 0.04034316701 | U23: =W23 -> 0.04034316701 | V23: =IF(G23="",0,VLOOKUP(D23,D23:U23,13+D23,FALSE)) -> 0 | W23: 0.04034316701
A24: 22 | B24: =J24+O24 -> 0 | C24: =K24+P24 -> 0 | D24: =IF(E24=2,1,IF(E24=1,2,IF(F24=2,3,IF(F24=1,4,5)))) -> 5 | E24: =COUNTIF(J24,">0")+COUNTIF(O24,">0") -> 0 | F24: =COUNTIF(K24,">0")+COUNTIF(P24,">0") -> 0 | H24: =IF($G24="","",VLOOKUP(Setup!$B$13&"-"&$G24,Rankings!$A:$E,2,FALSE)) ->  | I24: =IF($G24="","",VLOOKUP(Setup!$B$13&"-"&$G24,Rankings!$A:$E,3,FALSE)) ->  | J24: =IF(COUNTIF(Rankings!$A:$A,Setup!$B$13&"-"&$G24)>0,VLOOKUP(Setup!$B$13&"-"&$G24,Rankings!$A:$E,5,FALSE),0) -> 0 | K24: =IF(COUNTIF(Rankings!$A:$A,Setup!$B$13&"-"&$G24)>0,VLOOKUP(Setup!$B$13&"-"&$G24,Rankings!$A:$E,4,FALSE),0) -> 0 | M24: =IF($L24="","",VLOOKUP(Setup!$B$13&"-"&$L24,Rankings!$A:$E,2,FALSE)) ->  | N24: =IF($L24="","",VLOOKUP(Setup!$B$13&"-"&$L24,Rankings!$A:$E,3,FALSE)) ->  | O24: =IF(COUNTIF(Rankings!$A:$A,Setup!$B$13&"-"&$L24)>0,VLOOKUP(Setup!$B$13&"-"&$L24,Rankings!$A:$E,5,FALSE),0) -> 0 | P24: =IF(COUNTIF(Rankings!$A:$A,Setup!$B$13&"-"&$L24)>0,VLOOKUP(Setup!$B$13&"-"&$L24,Rankings!$A:$E,4,FALSE),0) -> 0 | Q24: =B24+W24 -> 0.03737403106 | R24: =IF(J24>0,(B24+P24/1000+W24/1000),(B24+K24/1000+W24/1000)) -> 3.737403106e-05 | S24: =C24+W24 -> 0.03737403106 | T24: =C24+W24 -> 0.03737403106 | U24: =W24 -> 0.03737403106 | V24: =IF(G24="",0,VLOOKUP(D24,D24:U24,13+D24,FALSE)) -> 0 | W24: 0.03737403106
A25: 23 | B25: =J25+O25 -> 0 | C25: =K25+P25 -> 0 | D25: =IF(E25=2,1,IF(E25=1,2,IF(F25=2,3,IF(F25=1,4,5)))) -> 5 | E25: =COUNTIF(J25,">0")+COUNTIF(O25,">0") -> 0 | F25: =COUNTIF(K25,">0")+COUNTIF(P25,">0") -> 0 | H25: =IF($G25="","",VLOOKUP(Setup!$B$13&"-"&$G25,Rankings!$A:$E,2,FALSE)) ->  | I25: =IF($G25="","",VLOOKUP(Setup!$B$13&"-"&$G25,Rankings!$A:$E,3,FALSE)) ->  | J25: =IF(COUNTIF(Rankings!$A:$A,Setup!$B$13&"-"&$G25)>0,VLOOKUP(Setup!$B$13&"-"&$G25,Rankings!$A:$E,5,FALSE),0) -> 0 | K25: =IF(COUNTIF(Rankings!$A:$A,Setup!$B$13&"-"&$G25)>0,VLOOKUP(Setup!$B$13&"-"&$G25,Rankings!$A:$E,4,FALSE),0) -> 0 | M25: =IF($L25="","",VLOOKUP(Setup!$B$13&"-"&$L25,Rankings!$A:$E,2,FALSE)) ->  | N25: =IF($L25="","",VLOOKUP(Setup!$B$13&"-"&$L25,Rankings!$A:$E,3,FALSE)) ->  | O25: =IF(COUNTIF(Rankings!$A:$A,Setup!$B$13&"-"&$L25)>0,VLOOKUP(Setup!$B$13&"-"&$L25,Rankings!$A:$E,5,FALSE),0) -> 0 | P25: =IF(COUNTIF(Rankings!$A:$A,Setup!$B$13&"-"&$L25)>0,VLOOKUP(Setup!$B$13&"-"&$L25,Rankings!$A:$E,4,FALSE),0) -> 0 | Q25: =B25+W25 -> 0.03736996489 | R25: =IF(J25>0,(B25+P25/1000+W25/1000),(B25+K25/1000+W25/1000)) -> 3.736996489e-05 | S25: =C25+W25 -> 0.03736996489 | T25: =C25+W25 -> 0.03736996489 | U25: =W25 -> 0.03736996489 | V25: =IF(G25="",0,VLOOKUP(D25,D25:U25,13+D25,FALSE)) -> 0 | W25: 0.03736996489
A26: 24 | B26: =J26+O26 -> 0 | C26: =K26+P26 -> 0 | D26: =IF(E26=2,1,IF(E26=1,2,IF(F26=2,3,IF(F26=1,4,5)))) -> 5 | E26: =COUNTIF(J26,">0")+COUNTIF(O26,">0") -> 0 | F26: =COUNTIF(K26,">0")+COUNTIF(P26,">0") -> 0 | H26: =IF($G26="","",VLOOKUP(Setup!$B$13&"-"&$G26,Rankings!$A:$E,2,FALSE)) ->  | I26: =IF($G26="","",VLOOKUP(Setup!$B$13&"-"&$G26,Rankings!$A:$E,3,FALSE)) ->  | J26: =IF(COUNTIF(Rankings!$A:$A,Setup!$B$13&"-"&$G26)>0,VLOOKUP(Setup!$B$13&"-"&$G26,Rankings!$A:$E,5,FALSE),0) -> 0 | K26: =IF(COUNTIF(Rankings!$A:$A,Setup!$B$13&"-"&$G26)>0,VLOOKUP(Setup!$B$13&"-"&$G26,Rankings!$A:$E,4,FALSE),0) -> 0 | M26: =IF($L26="","",VLOOKUP(Setup!$B$13&"-"&$L26,Rankings!$A:$E,2,FALSE)) ->  | N26: =IF($L26="","",VLOOKUP(Setup!$B$13&"-"&$L26,Rankings!$A:$E,3,FALSE)) ->  | O26: =IF(COUNTIF(Rankings!$A:$A,Setup!$B$13&"-"&$L26)>0,VLOOKUP(Setup!$B$13&"-"&$L26,Rankings!$A:$E,5,FALSE),0) -> 0 | P26: =IF(COUNTIF(Rankings!$A:$A,Setup!$B$13&"-"&$L26)>0,VLOOKUP(Setup!$B$13&"-"&$L26,Rankings!$A:$E,4,FALSE),0) -> 0 | Q26: =B26+W26 -> 0.03376582072 | R26: =IF(J26>0,(B26+P26/1000+W26/1000),(B26+K26/1000+W26/1000)) -> 3.376582072e-05 | S26: =C26+W26 -> 0.03376582072 | T26: =C26+W26 -> 0.03376582072 | U26: =W26 -> 0.03376582072 | V26: =IF(G26="",0,VLOOKUP(D26,D26:U26,13+D26,FALSE)) -> 0 | W26: 0.03376582072
A27: 25 | B27: =J27+O27 -> 0 | C27: =K27+P27 -> 0 | D27: =IF(E27=2,1,IF(E27=1,2,IF(F27=2,3,IF(F27=1,4,5)))) -> 5 | E27: =COUNTIF(J27,">0")+COUNTIF(O27,">0") -> 0 | F27: =COUNTIF(K27,">0")+COUNTIF(P27,">0") -> 0 | H27: =IF($G27="","",VLOOKUP(Setup!$B$13&"-"&$G27,Rankings!$A:$E,2,FALSE)) ->  | I27: =IF($G27="","",VLOOKUP(Setup!$B$13&"-"&$G27,Rankings!$A:$E,3,FALSE)) ->  | J27: =IF(COUNTIF(Rankings!$A:$A,Setup!$B$13&"-"&$G27)>0,VLOOKUP(Setup!$B$13&"-"&$G27,Rankings!$A:$E,5,FALSE),0) -> 0 | K27: =IF(COUNTIF(Rankings!$A:$A,Setup!$B$13&"-"&$G27)>0,VLOOKUP(Setup!$B$13&"-"&$G27,Rankings!$A:$E,4,FALSE),0) -> 0 | M27: =IF($L27="","",VLOOKUP(Setup!$B$13&"-"&$L27,Rankings!$A:$E,2,FALSE)) ->  | N27: =IF($L27="","",VLOOKUP(Setup!$B$13&"-"&$L27,Rankings!$A:$E,3,FALSE)) ->  | O27: =IF(COUNTIF(Rankings!$A:$A,Setup!$B$13&"-"&$L27)>0,VLOOKUP(Setup!$B$13&"-"&$L27,Rankings!$A:$E,5,FALSE),0) -> 0 | P27: =IF(COUNTIF(Rankings!$A:$A,Setup!$B$13&"-"&$L27)>0,VLOOKUP(Setup!$B$13&"-"&$L27,Rankings!$A:$E,4,FALSE),0) -> 0 | Q27: =B27+W27 -> 0.03329370881 | R27: =IF(J27>0,(B27+P27/1000+W27/1000),(B27+K27/1000+W27/1000)) -> 3.329370881e-05 | S27: =C27+W27 -> 0.03329370881 | T27: =C27+W27 -> 0.03329370881 | U27: =W27 -> 0.03329370881 | V27: =IF(G27="",0,VLOOKUP(D27,D27:U27,13+D27,FALSE)) -> 0 | W27: 0.03329370881
A28: 26 | B28: =J28+O28 -> 0 | C28: =K28+P28 -> 0 | D28: =IF(E28=2,1,IF(E28=1,2,IF(F28=2,3,IF(F28=1,4,5)))) -> 5 | E28: =COUNTIF(J28,">0")+COUNTIF(O28,">0") -> 0 | F28: =COUNTIF(K28,">0")+COUNTIF(P28,">0") -> 0 | H28: =IF($G28="","",VLOOKUP(Setup!$B$13&"-"&$G28,Rankings!$A:$E,2,FALSE)) ->  | I28: =IF($G28="","",VLOOKUP(Setup!$B$13&"-"&$G28,Rankings!$A:$E,3,FALSE)) ->  | J28: =IF(COUNTIF(Rankings!$A:$A,Setup!$B$13&"-"&$G28)>0,VLOOKUP(Setup!$B$13&"-"&$G28,Rankings!$A:$E,5,FALSE),0) -> 0 | K28: =IF(COUNTIF(Rankings!$A:$A,Setup!$B$13&"-"&$G28)>0,VLOOKUP(Setup!$B$13&"-"&$G28,Rankings!$A:$E,4,FALSE),0) -> 0 | M28: =IF($L28="","",VLOOKUP(Setup!$B$13&"-"&$L28,Rankings!$A:$E,2,FALSE)) ->  | N28: =IF($L28="","",VLOOKUP(Setup!$B$13&"-"&$L28,Rankings!$A:$E,3,FALSE)) ->  | O28: =IF(COUNTIF(Rankings!$A:$A,Setup!$B$13&"-"&$L28)>0,VLOOKUP(Setup!$B$13&"-"&$L28,Rankings!$A:$E,5,FALSE),0) -> 0 | P28: =IF(COUNTIF(Rankings!$A:$A,Setup!$B$13&"-"&$L28)>0,VLOOKUP(Setup!$B$13&"-"&$L28,Rankings!$A:$E,4,FALSE),0) -> 0 | Q28: =B28+W28 -> 0.03275498631 | R28: =IF(J28>0,(B28+P28/1000+W28/1000),(B28+K28/1000+W28/1000)) -> 3.275498631e-05 | S28: =C28+W28 -> 0.03275498631 | T28: =C28+W28 -> 0.03275498631 | U28: =W28 -> 0.03275498631 | V28: =IF(G28="",0,VLOOKUP(D28,D28:U28,13+D28,FALSE)) -> 0 | W28: 0.03275498631
A29: 27 | B29: =J29+O29 -> 0 | C29: =K29+P29 -> 0 | D29: =IF(E29=2,1,IF(E29=1,2,IF(F29=2,3,IF(F29=1,4,5)))) -> 5 | E29: =COUNTIF(J29,">0")+COUNTIF(O29,">0") -> 0 | F29: =COUNTIF(K29,">0")+COUNTIF(P29,">0") -> 0 | H29: =IF($G29="","",VLOOKUP(Setup!$B$13&"-"&$G29,Rankings!$A:$E,2,FALSE)) ->  | I29: =IF($G29="","",VLOOKUP(Setup!$B$13&"-"&$G29,Rankings!$A:$E,3,FALSE)) ->  | J29: =IF(COUNTIF(Rankings!$A:$A,Setup!$B$13&"-"&$G29)>0,VLOOKUP(Setup!$B$13&"-"&$G29,Rankings!$A:$E,5,FALSE),0) -> 0 | K29: =IF(COUNTIF(Rankings!$A:$A,Setup!$B$13&"-"&$G29)>0,VLOOKUP(Setup!$B$13&"-"&$G29,Rankings!$A:$E,4,FALSE),0) -> 0 | M29: =IF($L29="","",VLOOKUP(Setup!$B$13&"-"&$L29,Rankings!$A:$E,2,FALSE)) ->  | N29: =IF($L29="","",VLOOKUP(Setup!$B$13&"-"&$L29,Rankings!$A:$E,3,FALSE)) ->  | O29: =IF(COUNTIF(Rankings!$A:$A,Setup!$B$13&"-"&$L29)>0,VLOOKUP(Setup!$B$13&"-"&$L29,Rankings!$A:$E,5,FALSE),0) -> 0 | P29: =IF(COUNTIF(Rankings!$A:$A,Setup!$B$13&"-"&$L29)>0,VLOOKUP(Setup!$B$13&"-"&$L29,Rankings!$A:$E,4,FALSE),0) -> 0 | Q29: =B29+W29 -> 0.03232444922 | R29: =IF(J29>0,(B29+P29/1000+W29/1000),(B29+K29/1000+W29/1000)) -> 3.232444922e-05 | S29: =C29+W29 -> 0.03232444922 | T29: =C29+W29 -> 0.03232444922 | U29: =W29 -> 0.03232444922 | V29: =IF(G29="",0,VLOOKUP(D29,D29:U29,13+D29,FALSE)) -> 0 | W29: 0.03232444922
A30: 28 | B30: =J30+O30 -> 0 | C30: =K30+P30 -> 0 | D30: =IF(E30=2,1,IF(E30=1,2,IF(F30=2,3,IF(F30=1,4,5)))) -> 5 | E30: =COUNTIF(J30,">0")+COUNTIF(O30,">0") -> 0 | F30: =COUNTIF(K30,">0")+COUNTIF(P30,">0") -> 0 | H30: =IF($G30="","",VLOOKUP(Setup!$B$13&"-"&$G30,Rankings!$A:$E,2,FALSE)) ->  | I30: =IF($G30="","",VLOOKUP(Setup!$B$13&"-"&$G30,Rankings!$A:$E,3,FALSE)) ->  | J30: =IF(COUNTIF(Rankings!$A:$A,Setup!$B$13&"-"&$G30)>0,VLOOKUP(Setup!$B$13&"-"&$G30,Rankings!$A:$E,5,FALSE),0) -> 0 | K30: =IF(COUNTIF(Rankings!$A:$A,Setup!$B$13&"-"&$G30)>0,VLOOKUP(Setup!$B$13&"-"&$G30,Rankings!$A:$E,4,FALSE),0) -> 0 | M30: =IF($L30="","",VLOOKUP(Setup!$B$13&"-"&$L30,Rankings!$A:$E,2,FALSE)) ->  | N30: =IF($L30="","",VLOOKUP(Setup!$B$13&"-"&$L30,Rankings!$A:$E,3,FALSE)) ->  | O30: =IF(COUNTIF(Rankings!$A:$A,Setup!$B$13&"-"&$L30)>0,VLOOKUP(Setup!$B$13&"-"&$L30,Rankings!$A:$E,5,FALSE),0) -> 0 | P30: =IF(COUNTIF(Rankings!$A:$A,Setup!$B$13&"-"&$L30)>0,VLOOKUP(Setup!$B$13&"-"&$L30,Rankings!$A:$E,4,FALSE),0) -> 0 | Q30: =B30+W30 -> 0.03023168008 | R30: =IF(J30>0,(B30+P30/1000+W30/1000),(B30+K30/1000+W30/1000)) -> 3.023168008e-05 | S30: =C30+W30 -> 0.03023168008 | T30: =C30+W30 -> 0.03023168008 | U30: =W30 -> 0.03023168008 | V30: =IF(G30="",0,VLOOKUP(D30,D30:U30,13+D30,FALSE)) -> 0 | W30: 0.03023168008
A31: 29 | B31: =J31+O31 -> 0 | C31: =K31+P31 -> 0 | D31: =IF(E31=2,1,IF(E31=1,2,IF(F31=2,3,IF(F31=1,4,5)))) -> 5 | E31: =COUNTIF(J31,">0")+COUNTIF(O31,">0") -> 0 | F31: =COUNTIF(K31,">0")+COUNTIF(P31,">0") -> 0 | H31: =IF($G31="","",VLOOKUP(Setup!$B$13&"-"&$G31,Rankings!$A:$E,2,FALSE)) ->  | I31: =IF($G31="","",VLOOKUP(Setup!$B$13&"-"&$G31,Rankings!$A:$E,3,FALSE)) ->  | J31: =IF(COUNTIF(Rankings!$A:$A,Setup!$B$13&"-"&$G31)>0,VLOOKUP(Setup!$B$13&"-"&$G31,Rankings!$A:$E,5,FALSE),0) -> 0 | K31: =IF(COUNTIF(Rankings!$A:$A,Setup!$B$13&"-"&$G31)>0,VLOOKUP(Setup!$B$13&"-"&$G31,Rankings!$A:$E,4,FALSE),0) -> 0 | M31: =IF($L31="","",VLOOKUP(Setup!$B$13&"-"&$L31,Rankings!$A:$E,2,FALSE)) ->  | N31: =IF($L31="","",VLOOKUP(Setup!$B$13&"-"&$L31,Rankings!$A:$E,3,FALSE)) ->  | O31: =IF(COUNTIF(Rankings!$A:$A,Setup!$B$13&"-"&$L31)>0,VLOOKUP(Setup!$B$13&"-"&$L31,Rankings!$A:$E,5,FALSE),0) -> 0 | P31: =IF(COUNTIF(Rankings!$A:$A,Setup!$B$13&"-"&$L31)>0,VLOOKUP(Setup!$B$13&"-"&$L31,Rankings!$A:$E,4,FALSE),0) -> 0 | Q31: =B31+W31 -> 0.02972697944 | R31: =IF(J31>0,(B31+P31/1000+W31/1000),(B31+K31/1000+W31/1000)) -> 2.972697944e-05 | S31: =C31+W31 -> 0.02972697944 | T31: =C31+W31 -> 0.02972697944 | U31: =W31 -> 0.02972697944 | V31: =IF(G31="",0,VLOOKUP(D31,D31:U31,13+D31,FALSE)) -> 0 | W31: 0.02972697944
A32: 30 | B32: =J32+O32 -> 0 | C32: =K32+P32 -> 0 | D32: =IF(E32=2,1,IF(E32=1,2,IF(F32=2,3,IF(F32=1,4,5)))) -> 5 | E32: =COUNTIF(J32,">0")+COUNTIF(O32,">0") -> 0 | F32: =COUNTIF(K32,">0")+COUNTIF(P32,">0") -> 0 | H32: =IF($G32="","",VLOOKUP(Setup!$B$13&"-"&$G32,Rankings!$A:$E,2,FALSE)) ->  | I32: =IF($G32="","",VLOOKUP(Setup!$B$13&"-"&$G32,Rankings!$A:$E,3,FALSE)) ->  | J32: =IF(COUNTIF(Rankings!$A:$A,Setup!$B$13&"-"&$G32)>0,VLOOKUP(Setup!$B$13&"-"&$G32,Rankings!$A:$E,5,FALSE),0) -> 0 | K32: =IF(COUNTIF(Rankings!$A:$A,Setup!$B$13&"-"&$G32)>0,VLOOKUP(Setup!$B$13&"-"&$G32,Rankings!$A:$E,4,FALSE),0) -> 0 | M32: =IF($L32="","",VLOOKUP(Setup!$B$13&"-"&$L32,Rankings!$A:$E,2,FALSE)) ->  | N32: =IF($L32="","",VLOOKUP(Setup!$B$13&"-"&$L32,Rankings!$A:$E,3,FALSE)) ->  | O32: =IF(COUNTIF(Rankings!$A:$A,Setup!$B$13&"-"&$L32)>0,VLOOKUP(Setup!$B$13&"-"&$L32,Rankings!$A:$E,5,FALSE),0) -> 0 | P32: =IF(COUNTIF(Rankings!$A:$A,Setup!$B$13&"-"&$L32)>0,VLOOKUP(Setup!$B$13&"-"&$L32,Rankings!$A:$E,4,FALSE),0) -> 0 | Q32: =B32+W32 -> 0.02908420074 | R32: =IF(J32>0,(B32+P32/1000+W32/1000),(B32+K32/1000+W32/1000)) -> 2.908420074e-05 | S32: =C32+W32 -> 0.02908420074 | T32: =C32+W32 -> 0.02908420074 | U32: =W32 -> 0.02908420074 | V32: =IF(G32="",0,VLOOKUP(D32,D32:U32,13+D32,FALSE)) -> 0 | W32: 0.02908420074
A33: 31 | B33: =J33+O33 -> 0 | C33: =K33+P33 -> 0 | D33: =IF(E33=2,1,IF(E33=1,2,IF(F33=2,3,IF(F33=1,4,5)))) -> 5 | E33: =COUNTIF(J33,">0")+COUNTIF(O33,">0") -> 0 | F33: =COUNTIF(K33,">0")+COUNTIF(P33,">0") -> 0 | H33: =IF($G33="","",VLOOKUP(Setup!$B$13&"-"&$G33,Rankings!$A:$E,2,FALSE)) ->  | I33: =IF($G33="","",VLOOKUP(Setup!$B$13&"-"&$G33,Rankings!$A:$E,3,FALSE)) ->  | J33: =IF(COUNTIF(Rankings!$A:$A,Setup!$B$13&"-"&$G33)>0,VLOOKUP(Setup!$B$13&"-"&$G33,Rankings!$A:$E,5,FALSE),0) -> 0 | K33: =IF(COUNTIF(Rankings!$A:$A,Setup!$B$13&"-"&$G33)>0,VLOOKUP(Setup!$B$13&"-"&$G33,Rankings!$A:$E,4,FALSE),0) -> 0 | M33: =IF($L33="","",VLOOKUP(Setup!$B$13&"-"&$L33,Rankings!$A:$E,2,FALSE)) ->  | N33: =IF($L33="","",VLOOKUP(Setup!$B$13&"-"&$L33,Rankings!$A:$E,3,FALSE)) ->  | O33: =IF(COUNTIF(Rankings!$A:$A,Setup!$B$13&"-"&$L33)>0,VLOOKUP(Setup!$B$13&"-"&$L33,Rankings!$A:$E,5,FALSE),0) -> 0 | P33: =IF(COUNTIF(Rankings!$A:$A,Setup!$B$13&"-"&$L33)>0,VLOOKUP(Setup!$B$13&"-"&$L33,Rankings!$A:$E,4,FALSE),0) -> 0 | Q33: =B33+W33 -> 0.02848187512 | R33: =IF(J33>0,(B33+P33/1000+W33/1000),(B33+K33/1000+W33/1000)) -> 2.848187512e-05 | S33: =C33+W33 -> 0.02848187512 | T33: =C33+W33 -> 0.02848187512 | U33: =W33 -> 0.02848187512 | V33: =IF(G33="",0,VLOOKUP(D33,D33:U33,13+D33,FALSE)) -> 0 | W33: 0.02848187512
A34: 32 | B34: =J34+O34 -> 0 | C34: =K34+P34 -> 0 | D34: =IF(E34=2,1,IF(E34=1,2,IF(F34=2,3,IF(F34=1,4,5)))) -> 5 | E34: =COUNTIF(J34,">0")+COUNTIF(O34,">0") -> 0 | F34: =COUNTIF(K34,">0")+COUNTIF(P34,">0") -> 0 | H34: =IF($G34="","",VLOOKUP(Setup!$B$13&"-"&$G34,Rankings!$A:$E,2,FALSE)) ->  | I34: =IF($G34="","",VLOOKUP(Setup!$B$13&"-"&$G34,Rankings!$A:$E,3,FALSE)) ->  | J34: =IF(COUNTIF(Rankings!$A:$A,Setup!$B$13&"-"&$G34)>0,VLOOKUP(Setup!$B$13&"-"&$G34,Rankings!$A:$E,5,FALSE),0) -> 0 | K34: =IF(COUNTIF(Rankings!$A:$A,Setup!$B$13&"-"&$G34)>0,VLOOKUP(Setup!$B$13&"-"&$G34,Rankings!$A:$E,4,FALSE),0) -> 0 | M34: =IF($L34="","",VLOOKUP(Setup!$B$13&"-"&$L34,Rankings!$A:$E,2,FALSE)) ->  | N34: =IF($L34="","",VLOOKUP(Setup!$B$13&"-"&$L34,Rankings!$A:$E,3,FALSE)) ->  | O34: =IF(COUNTIF(Rankings!$A:$A,Setup!$B$13&"-"&$L34)>0,VLOOKUP(Setup!$B$13&"-"&$L34,Rankings!$A:$E,5,FALSE),0) -> 0 | P34: =IF(COUNTIF(Rankings!$A:$A,Setup!$B$13&"-"&$L34)>0,VLOOKUP(Setup!$B$13&"-"&$L34,Rankings!$A:$E,4,FALSE),0) -> 0 | Q34: =B34+W34 -> 0.02605557155 | R34: =IF(J34>0,(B34+P34/1000+W34/1000),(B34+K34/1000+W34/1000)) -> 2.605557155e-05 | S34: =C34+W34 -> 0.02605557155 | T34: =C34+W34 -> 0.02605557155 | U34: =W34 -> 0.02605557155 | V34: =IF(G34="",0,VLOOKUP(D34,D34:U34,13+D34,FALSE)) -> 0 | W34: 0.02605557155
A35: 33 | B35: =J35+O35 -> 0 | C35: =K35+P35 -> 0 | D35: =IF(E35=2,1,IF(E35=1,2,IF(F35=2,3,IF(F35=1,4,5)))) -> 5 | E35: =COUNTIF(J35,">0")+COUNTIF(O35,">0") -> 0 | F35: =COUNTIF(K35,">0")+COUNTIF(P35,">0") -> 0 | H35: =IF($G35="","",VLOOKUP(Setup!$B$13&"-"&$G35,Rankings!$A:$E,2,FALSE)) ->  | I35: =IF($G35="","",VLOOKUP(Setup!$B$13&"-"&$G35,Rankings!$A:$E,3,FALSE)) ->  | J35: =IF(COUNTIF(Rankings!$A:$A,Setup!$B$13&"-"&$G35)>0,VLOOKUP(Setup!$B$13&"-"&$G35,Rankings!$A:$E,5,FALSE),0) -> 0 | K35: =IF(COUNTIF(Rankings!$A:$A,Setup!$B$13&"-"&$G35)>0,VLOOKUP(Setup!$B$13&"-"&$G35,Rankings!$A:$E,4,FALSE),0) -> 0 | M35: =IF($L35="","",VLOOKUP(Setup!$B$13&"-"&$L35,Rankings!$A:$E,2,FALSE)) ->  | N35: =IF($L35="","",VLOOKUP(Setup!$B$13&"-"&$L35,Rankings!$A:$E,3,FALSE)) ->  | O35: =IF(COUNTIF(Rankings!$A:$A,Setup!$B$13&"-"&$L35)>0,VLOOKUP(Setup!$B$13&"-"&$L35,Rankings!$A:$E,5,FALSE),0) -> 0 | P35: =IF(COUNTIF(Rankings!$A:$A,Setup!$B$13&"-"&$L35)>0,VLOOKUP(Setup!$B$13&"-"&$L35,Rankings!$A:$E,4,FALSE),0) -> 0 | Q35: =B35+W35 -> 0.02582258453 | R35: =IF(J35>0,(B35+P35/1000+W35/1000),(B35+K35/1000+W35/1000)) -> 2.582258453e-05 | S35: =C35+W35 -> 0.02582258453 | T35: =C35+W35 -> 0.02582258453 | U35: =W35 -> 0.02582258453 | V35: =IF(G35="",0,VLOOKUP(D35,D35:U35,13+D35,FALSE)) -> 0 | W35: 0.02582258453
A36: 34 | B36: =J36+O36 -> 0 | C36: =K36+P36 -> 0 | D36: =IF(E36=2,1,IF(E36=1,2,IF(F36=2,3,IF(F36=1,4,5)))) -> 5 | E36: =COUNTIF(J36,">0")+COUNTIF(O36,">0") -> 0 | F36: =COUNTIF(K36,">0")+COUNTIF(P36,">0") -> 0 | H36: =IF($G36="","",VLOOKUP(Setup!$B$13&"-"&$G36,Rankings!$A:$E,2,FALSE)) ->  | I36: =IF($G36="","",VLOOKUP(Setup!$B$13&"-"&$G36,Rankings!$A:$E,3,FALSE)) ->  | J36: =IF(COUNTIF(Rankings!$A:$A,Setup!$B$13&"-"&$G36)>0,VLOOKUP(Setup!$B$13&"-"&$G36,Rankings!$A:$E,5,FALSE),0) -> 0 | K36: =IF(COUNTIF(Rankings!$A:$A,Setup!$B$13&"-"&$G36)>0,VLOOKUP(Setup!$B$13&"-"&$G36,Rankings!$A:$E,4,FALSE),0) -> 0 | M36: =IF($L36="","",VLOOKUP(Setup!$B$13&"-"&$L36,Rankings!$A:$E,2,FALSE)) ->  | N36: =IF($L36="","",VLOOKUP(Setup!$B$13&"-"&$L36,Rankings!$A:$E,3,FALSE)) ->  | O36: =IF(COUNTIF(Rankings!$A:$A,Setup!$B$13&"-"&$L36)>0,VLOOKUP(Setup!$B$13&"-"&$L36,Rankings!$A:$E,5,FALSE),0) -> 0 | P36: =IF(COUNTIF(Rankings!$A:$A,Setup!$B$13&"-"&$L36)>0,VLOOKUP(Setup!$B$13&"-"&$L36,Rankings!$A:$E,4,FALSE),0) -> 0 | Q36: =B36+W36 -> 0.02513757234 | R36: =IF(J36>0,(B36+P36/1000+W36/1000),(B36+K36/1000+W36/1000)) -> 2.513757234e-05 | S36: =C36+W36 -> 0.02513757234 | T36: =C36+W36 -> 0.02513757234 | U36: =W36 -> 0.02513757234 | V36: =IF(G36="",0,VLOOKUP(D36,D36:U36,13+D36,FALSE)) -> 0 | W36: 0.02513757234
A37: 35 | B37: =J37+O37 -> 0 | C37: =K37+P37 -> 0 | D37: =IF(E37=2,1,IF(E37=1,2,IF(F37=2,3,IF(F37=1,4,5)))) -> 5 | E37: =COUNTIF(J37,">0")+COUNTIF(O37,">0") -> 0 | F37: =COUNTIF(K37,">0")+COUNTIF(P37,">0") -> 0 | H37: =IF($G37="","",VLOOKUP(Setup!$B$13&"-"&$G37,Rankings!$A:$E,2,FALSE)) ->  | I37: =IF($G37="","",VLOOKUP(Setup!$B$13&"-"&$G37,Rankings!$A:$E,3,FALSE)) ->  | J37: =IF(COUNTIF(Rankings!$A:$A,Setup!$B$13&"-"&$G37)>0,VLOOKUP(Setup!$B$13&"-"&$G37,Rankings!$A:$E,5,FALSE),0) -> 0 | K37: =IF(COUNTIF(Rankings!$A:$A,Setup!$B$13&"-"&$G37)>0,VLOOKUP(Setup!$B$13&"-"&$G37,Rankings!$A:$E,4,FALSE),0) -> 0 | M37: =IF($L37="","",VLOOKUP(Setup!$B$13&"-"&$L37,Rankings!$A:$E,2,FALSE)) ->  | N37: =IF($L37="","",VLOOKUP(Setup!$B$13&"-"&$L37,Rankings!$A:$E,3,FALSE)) ->  | O37: =IF(COUNTIF(Rankings!$A:$A,Setup!$B$13&"-"&$L37)>0,VLOOKUP(Setup!$B$13&"-"&$L37,Rankings!$A:$E,5,FALSE),0) -> 0 | P37: =IF(COUNTIF(Rankings!$A:$A,Setup!$B$13&"-"&$L37)>0,VLOOKUP(Setup!$B$13&"-"&$L37,Rankings!$A:$E,4,FALSE),0) -> 0 | Q37: =B37+W37 -> 0.02502571487 | R37: =IF(J37>0,(B37+P37/1000+W37/1000),(B37+K37/1000+W37/1000)) -> 2.502571487e-05 | S37: =C37+W37 -> 0.02502571487 | T37: =C37+W37 -> 0.02502571487 | U37: =W37 -> 0.02502571487 | V37: =IF(G37="",0,VLOOKUP(D37,D37:U37,13+D37,FALSE)) -> 0 | W37: 0.02502571487
A38: 36 | B38: =J38+O38 -> 0 | C38: =K38+P38 -> 0 | D38: =IF(E38=2,1,IF(E38=1,2,IF(F38=2,3,IF(F38=1,4,5)))) -> 5 | E38: =COUNTIF(J38,">0")+COUNTIF(O38,">0") -> 0 | F38: =COUNTIF(K38,">0")+COUNTIF(P38,">0") -> 0 | H38: =IF($G38="","",VLOOKUP(Setup!$B$13&"-"&$G38,Rankings!$A:$E,2,FALSE)) ->  | I38: =IF($G38="","",VLOOKUP(Setup!$B$13&"-"&$G38,Rankings!$A:$E,3,FALSE)) ->  | J38: =IF(COUNTIF(Rankings!$A:$A,Setup!$B$13&"-"&$G38)>0,VLOOKUP(Setup!$B$13&"-"&$G38,Rankings!$A:$E,5,FALSE),0) -> 0 | K38: =IF(COUNTIF(Rankings!$A:$A,Setup!$B$13&"-"&$G38)>0,VLOOKUP(Setup!$B$13&"-"&$G38,Rankings!$A:$E,4,FALSE),0) -> 0 | M38: =IF($L38="","",VLOOKUP(Setup!$B$13&"-"&$L38,Rankings!$A:$E,2,FALSE)) ->  | N38: =IF($L38="","",VLOOKUP(Setup!$B$13&"-"&$L38,Rankings!$A:$E,3,FALSE)) ->  | O38: =IF(COUNTIF(Rankings!$A:$A,Setup!$B$13&"-"&$L38)>0,VLOOKUP(Setup!$B$13&"-"&$L38,Rankings!$A:$E,5,FALSE),0) -> 0 | P38: =IF(COUNTIF(Rankings!$A:$A,Setup!$B$13&"-"&$L38)>0,VLOOKUP(Setup!$B$13&"-"&$L38,Rankings!$A:$E,4,FALSE),0) -> 0 | Q38: =B38+W38 -> 0.02467633718 | R38: =IF(J38>0,(B38+P38/1000+W38/1000),(B38+K38/1000+W38/1000)) -> 2.467633718e-05 | S38: =C38+W38 -> 0.02467633718 | T38: =C38+W38 -> 0.02467633718 | U38: =W38 -> 0.02467633718 | V38: =IF(G38="",0,VLOOKUP(D38,D38:U38,13+D38,FALSE)) -> 0 | W38: 0.02467633718
A39: 37 | B39: =J39+O39 -> 0 | C39: =K39+P39 -> 0 | D39: =IF(E39=2,1,IF(E39=1,2,IF(F39=2,3,IF(F39=1,4,5)))) -> 5 | E39: =COUNTIF(J39,">0")+COUNTIF(O39,">0") -> 0 | F39: =COUNTIF(K39,">0")+COUNTIF(P39,">0") -> 0 | H39: =IF($G39="","",VLOOKUP(Setup!$B$13&"-"&$G39,Rankings!$A:$E,2,FALSE)) ->  | I39: =IF($G39="","",VLOOKUP(Setup!$B$13&"-"&$G39,Rankings!$A:$E,3,FALSE)) ->  | J39: =IF(COUNTIF(Rankings!$A:$A,Setup!$B$13&"-"&$G39)>0,VLOOKUP(Setup!$B$13&"-"&$G39,Rankings!$A:$E,5,FALSE),0) -> 0 | K39: =IF(COUNTIF(Rankings!$A:$A,Setup!$B$13&"-"&$G39)>0,VLOOKUP(Setup!$B$13&"-"&$G39,Rankings!$A:$E,4,FALSE),0) -> 0 | M39: =IF($L39="","",VLOOKUP(Setup!$B$13&"-"&$L39,Rankings!$A:$E,2,FALSE)) ->  | N39: =IF($L39="","",VLOOKUP(Setup!$B$13&"-"&$L39,Rankings!$A:$E,3,FALSE)) ->  | O39: =IF(COUNTIF(Rankings!$A:$A,Setup!$B$13&"-"&$L39)>0,VLOOKUP(Setup!$B$13&"-"&$L39,Rankings!$A:$E,5,FALSE),0) -> 0 | P39: =IF(COUNTIF(Rankings!$A:$A,Setup!$B$13&"-"&$L39)>0,VLOOKUP(Setup!$B$13&"-"&$L39,Rankings!$A:$E,4,FALSE),0) -> 0 | Q39: =B39+W39 -> 0.0236843503 | R39: =IF(J39>0,(B39+P39/1000+W39/1000),(B39+K39/1000+W39/1000)) -> 2.36843503e-05 | S39: =C39+W39 -> 0.0236843503 | T39: =C39+W39 -> 0.0236843503 | U39: =W39 -> 0.0236843503 | V39: =IF(G39="",0,VLOOKUP(D39,D39:U39,13+D39,FALSE)) -> 0 | W39: 0.0236843503
A40: 38 | B40: =J40+O40 -> 0 | C40: =K40+P40 -> 0 | D40: =IF(E40=2,1,IF(E40=1,2,IF(F40=2,3,IF(F40=1,4,5)))) -> 5 | E40: =COUNTIF(J40,">0")+COUNTIF(O40,">0") -> 0 | F40: =COUNTIF(K40,">0")+COUNTIF(P40,">0") -> 0 | H40: =IF($G40="","",VLOOKUP(Setup!$B$13&"-"&$G40,Rankings!$A:$E,2,FALSE)) ->  | I40: =IF($G40="","",VLOOKUP(Setup!$B$13&"-"&$G40,Rankings!$A:$E,3,FALSE)) ->  | J40: =IF(COUNTIF(Rankings!$A:$A,Setup!$B$13&"-"&$G40)>0,VLOOKUP(Setup!$B$13&"-"&$G40,Rankings!$A:$E,5,FALSE),0) -> 0 | K40: =IF(COUNTIF(Rankings!$A:$A,Setup!$B$13&"-"&$G40)>0,VLOOKUP(Setup!$B$13&"-"&$G40,Rankings!$A:$E,4,FALSE),0) -> 0 | M40: =IF($L40="","",VLOOKUP(Setup!$B$13&"-"&$L40,Rankings!$A:$E,2,FALSE)) ->  | N40: =IF($L40="","",VLOOKUP(Setup!$B$13&"-"&$L40,Rankings!$A:$E,3,FALSE)) ->  | O40: =IF(COUNTIF(Rankings!$A:$A,Setup!$B$13&"-"&$L40)>0,VLOOKUP(Setup!$B$13&"-"&$L40,Rankings!$A:$E,5,FALSE),0) -> 0 | P40: =IF(COUNTIF(Rankings!$A:$A,Setup!$B$13&"-"&$L40)>0,VLOOKUP(Setup!$B$13&"-"&$L40,Rankings!$A:$E,4,FALSE),0) -> 0 | Q40: =B40+W40 -> 0.02350668912 | R40: =IF(J40>0,(B40+P40/1000+W40/1000),(B40+K40/1000+W40/1000)) -> 2.350668912e-05 | S40: =C40+W40 -> 0.02350668912 | T40: =C40+W40 -> 0.02350668912 | U40: =W40 -> 0.02350668912 | V40: =IF(G40="",0,VLOOKUP(D40,D40:U40,13+D40,FALSE)) -> 0 | W40: 0.02350668912
A41: 39 | B41: =J41+O41 -> 0 | C41: =K41+P41 -> 0 | D41: =IF(E41=2,1,IF(E41=1,2,IF(F41=2,3,IF(F41=1,4,5)))) -> 5 | E41: =COUNTIF(J41,">0")+COUNTIF(O41,">0") -> 0 | F41: =COUNTIF(K41,">0")+COUNTIF(P41,">0") -> 0 | H41: =IF($G41="","",VLOOKUP(Setup!$B$13&"-"&$G41,Rankings!$A:$E,2,FALSE)) ->  | I41: =IF($G41="","",VLOOKUP(Setup!$B$13&"-"&$G41,Rankings!$A:$E,3,FALSE)) ->  | J41: =IF(COUNTIF(Rankings!$A:$A,Setup!$B$13&"-"&$G41)>0,VLOOKUP(Setup!$B$13&"-"&$G41,Rankings!$A:$E,5,FALSE),0) -> 0 | K41: =IF(COUNTIF(Rankings!$A:$A,Setup!$B$13&"-"&$G41)>0,VLOOKUP(Setup!$B$13&"-"&$G41,Rankings!$A:$E,4,FALSE),0) -> 0 | M41: =IF($L41="","",VLOOKUP(Setup!$B$13&"-"&$L41,Rankings!$A:$E,2,FALSE)) ->  | N41: =IF($L41="","",VLOOKUP(Setup!$B$13&"-"&$L41,Rankings!$A:$E,3,FALSE)) ->  | O41: =IF(COUNTIF(Rankings!$A:$A,Setup!$B$13&"-"&$L41)>0,VLOOKUP(Setup!$B$13&"-"&$L41,Rankings!$A:$E,5,FALSE),0) -> 0 | P41: =IF(COUNTIF(Rankings!$A:$A,Setup!$B$13&"-"&$L41)>0,VLOOKUP(Setup!$B$13&"-"&$L41,Rankings!$A:$E,4,FALSE),0) -> 0 | Q41: =B41+W41 -> 0.02250299645 | R41: =IF(J41>0,(B41+P41/1000+W41/1000),(B41+K41/1000+W41/1000)) -> 2.250299645e-05 | S41: =C41+W41 -> 0.02250299645 | T41: =C41+W41 -> 0.02250299645 | U41: =W41 -> 0.02250299645 | V41: =IF(G41="",0,VLOOKUP(D41,D41:U41,13+D41,FALSE)) -> 0 | W41: 0.02250299645
A42: 40 | B42: =J42+O42 -> 0 | C42: =K42+P42 -> 0 | D42: =IF(E42=2,1,IF(E42=1,2,IF(F42=2,3,IF(F42=1,4,5)))) -> 5 | E42: =COUNTIF(J42,">0")+COUNTIF(O42,">0") -> 0 | F42: =COUNTIF(K42,">0")+COUNTIF(P42,">0") -> 0 | H42: =IF($G42="","",VLOOKUP(Setup!$B$13&"-"&$G42,Rankings!$A:$E,2,FALSE)) ->  | I42: =IF($G42="","",VLOOKUP(Setup!$B$13&"-"&$G42,Rankings!$A:$E,3,FALSE)) ->  | J42: =IF(COUNTIF(Rankings!$A:$A,Setup!$B$13&"-"&$G42)>0,VLOOKUP(Setup!$B$13&"-"&$G42,Rankings!$A:$E,5,FALSE),0) -> 0 | K42: =IF(COUNTIF(Rankings!$A:$A,Setup!$B$13&"-"&$G42)>0,VLOOKUP(Setup!$B$13&"-"&$G42,Rankings!$A:$E,4,FALSE),0) -> 0 | M42: =IF($L42="","",VLOOKUP(Setup!$B$13&"-"&$L42,Rankings!$A:$E,2,FALSE)) ->  | N42: =IF($L42="","",VLOOKUP(Setup!$B$13&"-"&$L42,Rankings!$A:$E,3,FALSE)) ->  | O42: =IF(COUNTIF(Rankings!$A:$A,Setup!$B$13&"-"&$L42)>0,VLOOKUP(Setup!$B$13&"-"&$L42,Rankings!$A:$E,5,FALSE),0) -> 0 | P42: =IF(COUNTIF(Rankings!$A:$A,Setup!$B$13&"-"&$L42)>0,VLOOKUP(Setup!$B$13&"-"&$L42,Rankings!$A:$E,4,FALSE),0) -> 0 | Q42: =B42+W42 -> 0.02102268479 | R42: =IF(J42>0,(B42+P42/1000+W42/1000),(B42+K42/1000+W42/1000)) -> 2.102268479e-05 | S42: =C42+W42 -> 0.02102268479 | T42: =C42+W42 -> 0.02102268479 | U42: =W42 -> 0.02102268479 | V42: =IF(G42="",0,VLOOKUP(D42,D42:U42,13+D42,FALSE)) -> 0 | W42: 0.02102268479
A43: 41 | B43: =J43+O43 -> 0 | C43: =K43+P43 -> 0 | D43: =IF(E43=2,1,IF(E43=1,2,IF(F43=2,3,IF(F43=1,4,5)))) -> 5 | E43: =COUNTIF(J43,">0")+COUNTIF(O43,">0") -> 0 | F43: =COUNTIF(K43,">0")+COUNTIF(P43,">0") -> 0 | H43: =IF($G43="","",VLOOKUP(Setup!$B$13&"-"&$G43,Rankings!$A:$E,2,FALSE)) ->  | I43: =IF($G43="","",VLOOKUP(Setup!$B$13&"-"&$G43,Rankings!$A:$E,3,FALSE)) ->  | J43: =IF(COUNTIF(Rankings!$A:$A,Setup!$B$13&"-"&$G43)>0,VLOOKUP(Setup!$B$13&"-"&$G43,Rankings!$A:$E,5,FALSE),0) -> 0 | K43: =IF(COUNTIF(Rankings!$A:$A,Setup!$B$13&"-"&$G43)>0,VLOOKUP(Setup!$B$13&"-"&$G43,Rankings!$A:$E,4,FALSE),0) -> 0 | M43: =IF($L43="","",VLOOKUP(Setup!$B$13&"-"&$L43,Rankings!$A:$E,2,FALSE)) ->  | N43: =IF($L43="","",VLOOKUP(Setup!$B$13&"-"&$L43,Rankings!$A:$E,3,FALSE)) ->  | O43: =IF(COUNTIF(Rankings!$A:$A,Setup!$B$13&"-"&$L43)>0,VLOOKUP(Setup!$B$13&"-"&$L43,Rankings!$A:$E,5,FALSE),0) -> 0 | P43: =IF(COUNTIF(Rankings!$A:$A,Setup!$B$13&"-"&$L43)>0,VLOOKUP(Setup!$B$13&"-"&$L43,Rankings!$A:$E,4,FALSE),0) -> 0 | Q43: =B43+W43 -> 0.02077034836 | R43: =IF(J43>0,(B43+P43/1000+W43/1000),(B43+K43/1000+W43/1000)) -> 2.077034836e-05 | S43: =C43+W43 -> 0.02077034836 | T43: =C43+W43 -> 0.02077034836 | U43: =W43 -> 0.02077034836 | V43: =IF(G43="",0,VLOOKUP(D43,D43:U43,13+D43,FALSE)) -> 0 | W43: 0.02077034836
A44: 42 | B44: =J44+O44 -> 0 | C44: =K44+P44 -> 0 | D44: =IF(E44=2,1,IF(E44=1,2,IF(F44=2,3,IF(F44=1,4,5)))) -> 5 | E44: =COUNTIF(J44,">0")+COUNTIF(O44,">0") -> 0 | F44: =COUNTIF(K44,">0")+COUNTIF(P44,">0") -> 0 | H44: =IF($G44="","",VLOOKUP(Setup!$B$13&"-"&$G44,Rankings!$A:$E,2,FALSE)) ->  | I44: =IF($G44="","",VLOOKUP(Setup!$B$13&"-"&$G44,Rankings!$A:$E,3,FALSE)) ->  | J44: =IF(COUNTIF(Rankings!$A:$A,Setup!$B$13&"-"&$G44)>0,VLOOKUP(Setup!$B$13&"-"&$G44,Rankings!$A:$E,5,FALSE),0) -> 0 | K44: =IF(COUNTIF(Rankings!$A:$A,Setup!$B$13&"-"&$G44)>0,VLOOKUP(Setup!$B$13&"-"&$G44,Rankings!$A:$E,4,FALSE),0) -> 0 | M44: =IF($L44="","",VLOOKUP(Setup!$B$13&"-"&$L44,Rankings!$A:$E,2,FALSE)) ->  | N44: =IF($L44="","",VLOOKUP(Setup!$B$13&"-"&$L44,Rankings!$A:$E,3,FALSE)) ->  | O44: =IF(COUNTIF(Rankings!$A:$A,Setup!$B$13&"-"&$L44)>0,VLOOKUP(Setup!$B$13&"-"&$L44,Rankings!$A:$E,5,FALSE),0) -> 0 | P44: =IF(COUNTIF(Rankings!$A:$A,Setup!$B$13&"-"&$L44)>0,VLOOKUP(Setup!$B$13&"-"&$L44,Rankings!$A:$E,4,FALSE),0) -> 0 | Q44: =B44+W44 -> 0.01913664397 | R44: =IF(J44>0,(B44+P44/1000+W44/1000),(B44+K44/1000+W44/1000)) -> 1.913664397e-05 | S44: =C44+W44 -> 0.01913664397 | T44: =C44+W44 -> 0.01913664397 | U44: =W44 -> 0.01913664397 | V44: =IF(G44="",0,VLOOKUP(D44,D44:U44,13+D44,FALSE)) -> 0 | W44: 0.01913664397
A45: 43 | B45: =J45+O45 -> 0 | C45: =K45+P45 -> 0 | D45: =IF(E45=2,1,IF(E45=1,2,IF(F45=2,3,IF(F45=1,4,5)))) -> 5 | E45: =COUNTIF(J45,">0")+COUNTIF(O45,">0") -> 0 | F45: =COUNTIF(K45,">0")+COUNTIF(P45,">0") -> 0 | H45: =IF($G45="","",VLOOKUP(Setup!$B$13&"-"&$G45,Rankings!$A:$E,2,FALSE)) ->  | I45: =IF($G45="","",VLOOKUP(Setup!$B$13&"-"&$G45,Rankings!$A:$E,3,FALSE)) ->  | J45: =IF(COUNTIF(Rankings!$A:$A,Setup!$B$13&"-"&$G45)>0,VLOOKUP(Setup!$B$13&"-"&$G45,Rankings!$A:$E,5,FALSE),0) -> 0 | K45: =IF(COUNTIF(Rankings!$A:$A,Setup!$B$13&"-"&$G45)>0,VLOOKUP(Setup!$B$13&"-"&$G45,Rankings!$A:$E,4,FALSE),0) -> 0 | M45: =IF($L45="","",VLOOKUP(Setup!$B$13&"-"&$L45,Rankings!$A:$E,2,FALSE)) ->  | N45: =IF($L45="","",VLOOKUP(Setup!$B$13&"-"&$L45,Rankings!$A:$E,3,FALSE)) ->  | O45: =IF(COUNTIF(Rankings!$A:$A,Setup!$B$13&"-"&$L45)>0,VLOOKUP(Setup!$B$13&"-"&$L45,Rankings!$A:$E,5,FALSE),0) -> 0 | P45: =IF(COUNTIF(Rankings!$A:$A,Setup!$B$13&"-"&$L45)>0,VLOOKUP(Setup!$B$13&"-"&$L45,Rankings!$A:$E,4,FALSE),0) -> 0 | Q45: =B45+W45 -> 0.01802897492 | R45: =IF(J45>0,(B45+P45/1000+W45/1000),(B45+K45/1000+W45/1000)) -> 1.802897492e-05 | S45: =C45+W45 -> 0.01802897492 | T45: =C45+W45 -> 0.01802897492 | U45: =W45 -> 0.01802897492 | V45: =IF(G45="",0,VLOOKUP(D45,D45:U45,13+D45,FALSE)) -> 0 | W45: 0.01802897492
A46: 44 | B46: =J46+O46 -> 0 | C46: =K46+P46 -> 0 | D46: =IF(E46=2,1,IF(E46=1,2,IF(F46=2,3,IF(F46=1,4,5)))) -> 5 | E46: =COUNTIF(J46,">0")+COUNTIF(O46,">0") -> 0 | F46: =COUNTIF(K46,">0")+COUNTIF(P46,">0") -> 0 | H46: =IF($G46="","",VLOOKUP(Setup!$B$13&"-"&$G46,Rankings!$A:$E,2,FALSE)) ->  | I46: =IF($G46="","",VLOOKUP(Setup!$B$13&"-"&$G46,Rankings!$A:$E,3,FALSE)) ->  | J46: =IF(COUNTIF(Rankings!$A:$A,Setup!$B$13&"-"&$G46)>0,VLOOKUP(Setup!$B$13&"-"&$G46,Rankings!$A:$E,5,FALSE),0) -> 0 | K46: =IF(COUNTIF(Rankings!$A:$A,Setup!$B$13&"-"&$G46)>0,VLOOKUP(Setup!$B$13&"-"&$G46,Rankings!$A:$E,4,FALSE),0) -> 0 | M46: =IF($L46="","",VLOOKUP(Setup!$B$13&"-"&$L46,Rankings!$A:$E,2,FALSE)) ->  | N46: =IF($L46="","",VLOOKUP(Setup!$B$13&"-"&$L46,Rankings!$A:$E,3,FALSE)) ->  | O46: =IF(COUNTIF(Rankings!$A:$A,Setup!$B$13&"-"&$L46)>0,VLOOKUP(Setup!$B$13&"-"&$L46,Rankings!$A:$E,5,FALSE),0) -> 0 | P46: =IF(COUNTIF(Rankings!$A:$A,Setup!$B$13&"-"&$L46)>0,VLOOKUP(Setup!$B$13&"-"&$L46,Rankings!$A:$E,4,FALSE),0) -> 0 | Q46: =B46+W46 -> 0.01783310227 | R46: =IF(J46>0,(B46+P46/1000+W46/1000),(B46+K46/1000+W46/1000)) -> 1.783310227e-05 | S46: =C46+W46 -> 0.01783310227 | T46: =C46+W46 -> 0.01783310227 | U46: =W46 -> 0.01783310227 | V46: =IF(G46="",0,VLOOKUP(D46,D46:U46,13+D46,FALSE)) -> 0 | W46: 0.01783310227
A47: 45 | B47: =J47+O47 -> 0 | C47: =K47+P47 -> 0 | D47: =IF(E47=2,1,IF(E47=1,2,IF(F47=2,3,IF(F47=1,4,5)))) -> 5 | E47: =COUNTIF(J47,">0")+COUNTIF(O47,">0") -> 0 | F47: =COUNTIF(K47,">0")+COUNTIF(P47,">0") -> 0 | H47: =IF($G47="","",VLOOKUP(Setup!$B$13&"-"&$G47,Rankings!$A:$E,2,FALSE)) ->  | I47: =IF($G47="","",VLOOKUP(Setup!$B$13&"-"&$G47,Rankings!$A:$E,3,FALSE)) ->  | J47: =IF(COUNTIF(Rankings!$A:$A,Setup!$B$13&"-"&$G47)>0,VLOOKUP(Setup!$B$13&"-"&$G47,Rankings!$A:$E,5,FALSE),0) -> 0 | K47: =IF(COUNTIF(Rankings!$A:$A,Setup!$B$13&"-"&$G47)>0,VLOOKUP(Setup!$B$13&"-"&$G47,Rankings!$A:$E,4,FALSE),0) -> 0 | M47: =IF($L47="","",VLOOKUP(Setup!$B$13&"-"&$L47,Rankings!$A:$E,2,FALSE)) ->  | N47: =IF($L47="","",VLOOKUP(Setup!$B$13&"-"&$L47,Rankings!$A:$E,3,FALSE)) ->  | O47: =IF(COUNTIF(Rankings!$A:$A,Setup!$B$13&"-"&$L47)>0,VLOOKUP(Setup!$B$13&"-"&$L47,Rankings!$A:$E,5,FALSE),0) -> 0 | P47: =IF(COUNTIF(Rankings!$A:$A,Setup!$B$13&"-"&$L47)>0,VLOOKUP(Setup!$B$13&"-"&$L47,Rankings!$A:$E,4,FALSE),0) -> 0 | Q47: =B47+W47 -> 0.01651349334 | R47: =IF(J47>0,(B47+P47/1000+W47/1000),(B47+K47/1000+W47/1000)) -> 1.651349334e-05 | S47: =C47+W47 -> 0.01651349334 | T47: =C47+W47 -> 0.01651349334 | U47: =W47 -> 0.01651349334 | V47: =IF(G47="",0,VLOOKUP(D47,D47:U47,13+D47,FALSE)) -> 0 | W47: 0.01651349334
A48: 46 | B48: =J48+O48 -> 0 | C48: =K48+P48 -> 0 | D48: =IF(E48=2,1,IF(E48=1,2,IF(F48=2,3,IF(F48=1,4,5)))) -> 5 | E48: =COUNTIF(J48,">0")+COUNTIF(O48,">0") -> 0 | F48: =COUNTIF(K48,">0")+COUNTIF(P48,">0") -> 0 | H48: =IF($G48="","",VLOOKUP(Setup!$B$13&"-"&$G48,Rankings!$A:$E,2,FALSE)) ->  | I48: =IF($G48="","",VLOOKUP(Setup!$B$13&"-"&$G48,Rankings!$A:$E,3,FALSE)) ->  | J48: =IF(COUNTIF(Rankings!$A:$A,Setup!$B$13&"-"&$G48)>0,VLOOKUP(Setup!$B$13&"-"&$G48,Rankings!$A:$E,5,FALSE),0) -> 0 | K48: =IF(COUNTIF(Rankings!$A:$A,Setup!$B$13&"-"&$G48)>0,VLOOKUP(Setup!$B$13&"-"&$G48,Rankings!$A:$E,4,FALSE),0) -> 0 | M48: =IF($L48="","",VLOOKUP(Setup!$B$13&"-"&$L48,Rankings!$A:$E,2,FALSE)) ->  | N48: =IF($L48="","",VLOOKUP(Setup!$B$13&"-"&$L48,Rankings!$A:$E,3,FALSE)) ->  | O48: =IF(COUNTIF(Rankings!$A:$A,Setup!$B$13&"-"&$L48)>0,VLOOKUP(Setup!$B$13&"-"&$L48,Rankings!$A:$E,5,FALSE),0) -> 0 | P48: =IF(COUNTIF(Rankings!$A:$A,Setup!$B$13&"-"&$L48)>0,VLOOKUP(Setup!$B$13&"-"&$L48,Rankings!$A:$E,4,FALSE),0) -> 0 | Q48: =B48+W48 -> 0.01636298406 | R48: =IF(J48>0,(B48+P48/1000+W48/1000),(B48+K48/1000+W48/1000)) -> 1.636298406e-05 | S48: =C48+W48 -> 0.01636298406 | T48: =C48+W48 -> 0.01636298406 | U48: =W48 -> 0.01636298406 | V48: =IF(G48="",0,VLOOKUP(D48,D48:U48,13+D48,FALSE)) -> 0 | W48: 0.01636298406
A49: 47 | B49: =J49+O49 -> 0 | C49: =K49+P49 -> 0 | D49: =IF(E49=2,1,IF(E49=1,2,IF(F49=2,3,IF(F49=1,4,5)))) -> 5 | E49: =COUNTIF(J49,">0")+COUNTIF(O49,">0") -> 0 | F49: =COUNTIF(K49,">0")+COUNTIF(P49,">0") -> 0 | H49: =IF($G49="","",VLOOKUP(Setup!$B$13&"-"&$G49,Rankings!$A:$E,2,FALSE)) ->  | I49: =IF($G49="","",VLOOKUP(Setup!$B$13&"-"&$G49,Rankings!$A:$E,3,FALSE)) ->  | J49: =IF(COUNTIF(Rankings!$A:$A,Setup!$B$13&"-"&$G49)>0,VLOOKUP(Setup!$B$13&"-"&$G49,Rankings!$A:$E,5,FALSE),0) -> 0 | K49: =IF(COUNTIF(Rankings!$A:$A,Setup!$B$13&"-"&$G49)>0,VLOOKUP(Setup!$B$13&"-"&$G49,Rankings!$A:$E,4,FALSE),0) -> 0 | M49: =IF($L49="","",VLOOKUP(Setup!$B$13&"-"&$L49,Rankings!$A:$E,2,FALSE)) ->  | N49: =IF($L49="","",VLOOKUP(Setup!$B$13&"-"&$L49,Rankings!$A:$E,3,FALSE)) ->  | O49: =IF(COUNTIF(Rankings!$A:$A,Setup!$B$13&"-"&$L49)>0,VLOOKUP(Setup!$B$13&"-"&$L49,Rankings!$A:$E,5,FALSE),0) -> 0 | P49: =IF(COUNTIF(Rankings!$A:$A,Setup!$B$13&"-"&$L49)>0,VLOOKUP(Setup!$B$13&"-"&$L49,Rankings!$A:$E,4,FALSE),0) -> 0 | Q49: =B49+W49 -> 0.01630517062 | R49: =IF(J49>0,(B49+P49/1000+W49/1000),(B49+K49/1000+W49/1000)) -> 1.630517062e-05 | S49: =C49+W49 -> 0.01630517062 | T49: =C49+W49 -> 0.01630517062 | U49: =W49 -> 0.01630517062 | V49: =IF(G49="",0,VLOOKUP(D49,D49:U49,13+D49,FALSE)) -> 0 | W49: 0.01630517062
A50: 48 | B50: =J50+O50 -> 0 | C50: =K50+P50 -> 0 | D50: =IF(E50=2,1,IF(E50=1,2,IF(F50=2,3,IF(F50=1,4,5)))) -> 5 | E50: =COUNTIF(J50,">0")+COUNTIF(O50,">0") -> 0 | F50: =COUNTIF(K50,">0")+COUNTIF(P50,">0") -> 0 | H50: =IF($G50="","",VLOOKUP(Setup!$B$13&"-"&$G50,Rankings!$A:$E,2,FALSE)) ->  | I50: =IF($G50="","",VLOOKUP(Setup!$B$13&"-"&$G50,Rankings!$A:$E,3,FALSE)) ->  | J50: =IF(COUNTIF(Rankings!$A:$A,Setup!$B$13&"-"&$G50)>0,VLOOKUP(Setup!$B$13&"-"&$G50,Rankings!$A:$E,5,FALSE),0) -> 0 | K50: =IF(COUNTIF(Rankings!$A:$A,Setup!$B$13&"-"&$G50)>0,VLOOKUP(Setup!$B$13&"-"&$G50,Rankings!$A:$E,4,FALSE),0) -> 0 | M50: =IF($L50="","",VLOOKUP(Setup!$B$13&"-"&$L50,Rankings!$A:$E,2,FALSE)) ->  | N50: =IF($L50="","",VLOOKUP(Setup!$B$13&"-"&$L50,Rankings!$A:$E,3,FALSE)) ->  | O50: =IF(COUNTIF(Rankings!$A:$A,Setup!$B$13&"-"&$L50)>0,VLOOKUP(Setup!$B$13&"-"&$L50,Rankings!$A:$E,5,FALSE),0) -> 0 | P50: =IF(COUNTIF(Rankings!$A:$A,Setup!$B$13&"-"&$L50)>0,VLOOKUP(Setup!$B$13&"-"&$L50,Rankings!$A:$E,4,FALSE),0) -> 0 | Q50: =B50+W50 -> 0.01592844746 | R50: =IF(J50>0,(B50+P50/1000+W50/1000),(B50+K50/1000+W50/1000)) -> 1.592844746e-05 | S50: =C50+W50 -> 0.01592844746 | T50: =C50+W50 -> 0.01592844746 | U50: =W50 -> 0.01592844746 | V50: =IF(G50="",0,VLOOKUP(D50,D50:U50,13+D50,FALSE)) -> 0 | W50: 0.01592844746
A51: 49 | B51: =J51+O51 -> 0 | C51: =K51+P51 -> 0 | D51: =IF(E51=2,1,IF(E51=1,2,IF(F51=2,3,IF(F51=1,4,5)))) -> 5 | E51: =COUNTIF(J51,">0")+COUNTIF(O51,">0") -> 0 | F51: =COUNTIF(K51,">0")+COUNTIF(P51,">0") -> 0 | H51: =IF($G51="","",VLOOKUP(Setup!$B$13&"-"&$G51,Rankings!$A:$E,2,FALSE)) ->  | I51: =IF($G51="","",VLOOKUP(Setup!$B$13&"-"&$G51,Rankings!$A:$E,3,FALSE)) ->  | J51: =IF(COUNTIF(Rankings!$A:$A,Setup!$B$13&"-"&$G51)>0,VLOOKUP(Setup!$B$13&"-"&$G51,Rankings!$A:$E,5,FALSE),0) -> 0 | K51: =IF(COUNTIF(Rankings!$A:$A,Setup!$B$13&"-"&$G51)>0,VLOOKUP(Setup!$B$13&"-"&$G51,Rankings!$A:$E,4,FALSE),0) -> 0 | M51: =IF($L51="","",VLOOKUP(Setup!$B$13&"-"&$L51,Rankings!$A:$E,2,FALSE)) ->  | N51: =IF($L51="","",VLOOKUP(Setup!$B$13&"-"&$L51,Rankings!$A:$E,3,FALSE)) ->  | O51: =IF(COUNTIF(Rankings!$A:$A,Setup!$B$13&"-"&$L51)>0,VLOOKUP(Setup!$B$13&"-"&$L51,Rankings!$A:$E,5,FALSE),0) -> 0 | P51: =IF(COUNTIF(Rankings!$A:$A,Setup!$B$13&"-"&$L51)>0,VLOOKUP(Setup!$B$13&"-"&$L51,Rankings!$A:$E,4,FALSE),0) -> 0 | Q51: =B51+W51 -> 0.01435010249 | R51: =IF(J51>0,(B51+P51/1000+W51/1000),(B51+K51/1000+W51/1000)) -> 1.435010249e-05 | S51: =C51+W51 -> 0.01435010249 | T51: =C51+W51 -> 0.01435010249 | U51: =W51 -> 0.01435010249 | V51: =IF(G51="",0,VLOOKUP(D51,D51:U51,13+D51,FALSE)) -> 0 | W51: 0.01435010249
A52: 50 | B52: =J52+O52 -> 0 | C52: =K52+P52 -> 0 | D52: =IF(E52=2,1,IF(E52=1,2,IF(F52=2,3,IF(F52=1,4,5)))) -> 5 | E52: =COUNTIF(J52,">0")+COUNTIF(O52,">0") -> 0 | F52: =COUNTIF(K52,">0")+COUNTIF(P52,">0") -> 0 | H52: =IF($G52="","",VLOOKUP(Setup!$B$13&"-"&$G52,Rankings!$A:$E,2,FALSE)) ->  | I52: =IF($G52="","",VLOOKUP(Setup!$B$13&"-"&$G52,Rankings!$A:$E,3,FALSE)) ->  | J52: =IF(COUNTIF(Rankings!$A:$A,Setup!$B$13&"-"&$G52)>0,VLOOKUP(Setup!$B$13&"-"&$G52,Rankings!$A:$E,5,FALSE),0) -> 0 | K52: =IF(COUNTIF(Rankings!$A:$A,Setup!$B$13&"-"&$G52)>0,VLOOKUP(Setup!$B$13&"-"&$G52,Rankings!$A:$E,4,FALSE),0) -> 0 | M52: =IF($L52="","",VLOOKUP(Setup!$B$13&"-"&$L52,Rankings!$A:$E,2,FALSE)) ->  | N52: =IF($L52="","",VLOOKUP(Setup!$B$13&"-"&$L52,Rankings!$A:$E,3,FALSE)) ->  | O52: =IF(COUNTIF(Rankings!$A:$A,Setup!$B$13&"-"&$L52)>0,VLOOKUP(Setup!$B$13&"-"&$L52,Rankings!$A:$E,5,FALSE),0) -> 0 | P52: =IF(COUNTIF(Rankings!$A:$A,Setup!$B$13&"-"&$L52)>0,VLOOKUP(Setup!$B$13&"-"&$L52,Rankings!$A:$E,4,FALSE),0) -> 0 | Q52: =B52+W52 -> 0.01384689852 | R52: =IF(J52>0,(B52+P52/1000+W52/1000),(B52+K52/1000+W52/1000)) -> 1.384689852e-05 | S52: =C52+W52 -> 0.01384689852 | T52: =C52+W52 -> 0.01384689852 | U52: =W52 -> 0.01384689852 | V52: =IF(G52="",0,VLOOKUP(D52,D52:U52,13+D52,FALSE)) -> 0 | W52: 0.01384689852
A53: 51 | B53: =J53+O53 -> 0 | C53: =K53+P53 -> 0 | D53: =IF(E53=2,1,IF(E53=1,2,IF(F53=2,3,IF(F53=1,4,5)))) -> 5 | E53: =COUNTIF(J53,">0")+COUNTIF(O53,">0") -> 0 | F53: =COUNTIF(K53,">0")+COUNTIF(P53,">0") -> 0 | H53: =IF($G53="","",VLOOKUP(Setup!$B$13&"-"&$G53,Rankings!$A:$E,2,FALSE)) ->  | I53: =IF($G53="","",VLOOKUP(Setup!$B$13&"-"&$G53,Rankings!$A:$E,3,FALSE)) ->  | J53: =IF(COUNTIF(Rankings!$A:$A,Setup!$B$13&"-"&$G53)>0,VLOOKUP(Setup!$B$13&"-"&$G53,Rankings!$A:$E,5,FALSE),0) -> 0 | K53: =IF(COUNTIF(Rankings!$A:$A,Setup!$B$13&"-"&$G53)>0,VLOOKUP(Setup!$B$13&"-"&$G53,Rankings!$A:$E,4,FALSE),0) -> 0 | M53: =IF($L53="","",VLOOKUP(Setup!$B$13&"-"&$L53,Rankings!$A:$E,2,FALSE)) ->  | N53: =IF($L53="","",VLOOKUP(Setup!$B$13&"-"&$L53,Rankings!$A:$E,3,FALSE)) ->  | O53: =IF(COUNTIF(Rankings!$A:$A,Setup!$B$13&"-"&$L53)>0,VLOOKUP(Setup!$B$13&"-"&$L53,Rankings!$A:$E,5,FALSE),0) -> 0 | P53: =IF(COUNTIF(Rankings!$A:$A,Setup!$B$13&"-"&$L53)>0,VLOOKUP(Setup!$B$13&"-"&$L53,Rankings!$A:$E,4,FALSE),0) -> 0 | Q53: =B53+W53 -> 0.01372744889 | R53: =IF(J53>0,(B53+P53/1000+W53/1000),(B53+K53/1000+W53/1000)) -> 1.372744889e-05 | S53: =C53+W53 -> 0.01372744889 | T53: =C53+W53 -> 0.01372744889 | U53: =W53 -> 0.01372744889 | V53: =IF(G53="",0,VLOOKUP(D53,D53:U53,13+D53,FALSE)) -> 0 | W53: 0.01372744889
A54: 52 | B54: =J54+O54 -> 0 | C54: =K54+P54 -> 0 | D54: =IF(E54=2,1,IF(E54=1,2,IF(F54=2,3,IF(F54=1,4,5)))) -> 5 | E54: =COUNTIF(J54,">0")+COUNTIF(O54,">0") -> 0 | F54: =COUNTIF(K54,">0")+COUNTIF(P54,">0") -> 0 | H54: =IF($G54="","",VLOOKUP(Setup!$B$13&"-"&$G54,Rankings!$A:$E,2,FALSE)) ->  | I54: =IF($G54="","",VLOOKUP(Setup!$B$13&"-"&$G54,Rankings!$A:$E,3,FALSE)) ->  | J54: =IF(COUNTIF(Rankings!$A:$A,Setup!$B$13&"-"&$G54)>0,VLOOKUP(Setup!$B$13&"-"&$G54,Rankings!$A:$E,5,FALSE),0) -> 0 | K54: =IF(COUNTIF(Rankings!$A:$A,Setup!$B$13&"-"&$G54)>0,VLOOKUP(Setup!$B$13&"-"&$G54,Rankings!$A:$E,4,FALSE),0) -> 0 | M54: =IF($L54="","",VLOOKUP(Setup!$B$13&"-"&$L54,Rankings!$A:$E,2,FALSE)) ->  | N54: =IF($L54="","",VLOOKUP(Setup!$B$13&"-"&$L54,Rankings!$A:$E,3,FALSE)) ->  | O54: =IF(COUNTIF(Rankings!$A:$A,Setup!$B$13&"-"&$L54)>0,VLOOKUP(Setup!$B$13&"-"&$L54,Rankings!$A:$E,5,FALSE),0) -> 0 | P54: =IF(COUNTIF(Rankings!$A:$A,Setup!$B$13&"-"&$L54)>0,VLOOKUP(Setup!$B$13&"-"&$L54,Rankings!$A:$E,4,FALSE),0) -> 0 | Q54: =B54+W54 -> 0.01306071757 | R54: =IF(J54>0,(B54+P54/1000+W54/1000),(B54+K54/1000+W54/1000)) -> 1.306071757e-05 | S54: =C54+W54 -> 0.01306071757 | T54: =C54+W54 -> 0.01306071757 | U54: =W54 -> 0.01306071757 | V54: =IF(G54="",0,VLOOKUP(D54,D54:U54,13+D54,FALSE)) -> 0 | W54: 0.01306071757
A55: 53 | B55: =J55+O55 -> 0 | C55: =K55+P55 -> 0 | D55: =IF(E55=2,1,IF(E55=1,2,IF(F55=2,3,IF(F55=1,4,5)))) -> 5 | E55: =COUNTIF(J55,">0")+COUNTIF(O55,">0") -> 0 | F55: =COUNTIF(K55,">0")+COUNTIF(P55,">0") -> 0 | H55: =IF($G55="","",VLOOKUP(Setup!$B$13&"-"&$G55,Rankings!$A:$E,2,FALSE)) ->  | I55: =IF($G55="","",VLOOKUP(Setup!$B$13&"-"&$G55,Rankings!$A:$E,3,FALSE)) ->  | J55: =IF(COUNTIF(Rankings!$A:$A,Setup!$B$13&"-"&$G55)>0,VLOOKUP(Setup!$B$13&"-"&$G55,Rankings!$A:$E,5,FALSE),0) -> 0 | K55: =IF(COUNTIF(Rankings!$A:$A,Setup!$B$13&"-"&$G55)>0,VLOOKUP(Setup!$B$13&"-"&$G55,Rankings!$A:$E,4,FALSE),0) -> 0 | M55: =IF($L55="","",VLOOKUP(Setup!$B$13&"-"&$L55,Rankings!$A:$E,2,FALSE)) ->  | N55: =IF($L55="","",VLOOKUP(Setup!$B$13&"-"&$L55,Rankings!$A:$E,3,FALSE)) ->  | O55: =IF(COUNTIF(Rankings!$A:$A,Setup!$B$13&"-"&$L55)>0,VLOOKUP(Setup!$B$13&"-"&$L55,Rankings!$A:$E,5,FALSE),0) -> 0 | P55: =IF(COUNTIF(Rankings!$A:$A,Setup!$B$13&"-"&$L55)>0,VLOOKUP(Setup!$B$13&"-"&$L55,Rankings!$A:$E,4,FALSE),0) -> 0 | Q55: =B55+W55 -> 0.0123354216 | R55: =IF(J55>0,(B55+P55/1000+W55/1000),(B55+K55/1000+W55/1000)) -> 1.23354216e-05 | S55: =C55+W55 -> 0.0123354216 | T55: =C55+W55 -> 0.0123354216 | U55: =W55 -> 0.0123354216 | V55: =IF(G55="",0,VLOOKUP(D55,D55:U55,13+D55,FALSE)) -> 0 | W55: 0.0123354216
A56: 54 | B56: =J56+O56 -> 0 | C56: =K56+P56 -> 0 | D56: =IF(E56=2,1,IF(E56=1,2,IF(F56=2,3,IF(F56=1,4,5)))) -> 5 | E56: =COUNTIF(J56,">0")+COUNTIF(O56,">0") -> 0 | F56: =COUNTIF(K56,">0")+COUNTIF(P56,">0") -> 0 | H56: =IF($G56="","",VLOOKUP(Setup!$B$13&"-"&$G56,Rankings!$A:$E,2,FALSE)) ->  | I56: =IF($G56="","",VLOOKUP(Setup!$B$13&"-"&$G56,Rankings!$A:$E,3,FALSE)) ->  | J56: =IF(COUNTIF(Rankings!$A:$A,Setup!$B$13&"-"&$G56)>0,VLOOKUP(Setup!$B$13&"-"&$G56,Rankings!$A:$E,5,FALSE),0) -> 0 | K56: =IF(COUNTIF(Rankings!$A:$A,Setup!$B$13&"-"&$G56)>0,VLOOKUP(Setup!$B$13&"-"&$G56,Rankings!$A:$E,4,FALSE),0) -> 0 | M56: =IF($L56="","",VLOOKUP(Setup!$B$13&"-"&$L56,Rankings!$A:$E,2,FALSE)) ->  | N56: =IF($L56="","",VLOOKUP(Setup!$B$13&"-"&$L56,Rankings!$A:$E,3,FALSE)) ->  | O56: =IF(COUNTIF(Rankings!$A:$A,Setup!$B$13&"-"&$L56)>0,VLOOKUP(Setup!$B$13&"-"&$L56,Rankings!$A:$E,5,FALSE),0) -> 0 | P56: =IF(COUNTIF(Rankings!$A:$A,Setup!$B$13&"-"&$L56)>0,VLOOKUP(Setup!$B$13&"-"&$L56,Rankings!$A:$E,4,FALSE),0) -> 0 | Q56: =B56+W56 -> 0.01157819348 | R56: =IF(J56>0,(B56+P56/1000+W56/1000),(B56+K56/1000+W56/1000)) -> 1.157819348e-05 | S56: =C56+W56 -> 0.01157819348 | T56: =C56+W56 -> 0.01157819348 | U56: =W56 -> 0.01157819348 | V56: =IF(G56="",0,VLOOKUP(D56,D56:U56,13+D56,FALSE)) -> 0 | W56: 0.01157819348
A57: 55 | B57: =J57+O57 -> 0 | C57: =K57+P57 -> 0 | D57: =IF(E57=2,1,IF(E57=1,2,IF(F57=2,3,IF(F57=1,4,5)))) -> 5 | E57: =COUNTIF(J57,">0")+COUNTIF(O57,">0") -> 0 | F57: =COUNTIF(K57,">0")+COUNTIF(P57,">0") -> 0 | H57: =IF($G57="","",VLOOKUP(Setup!$B$13&"-"&$G57,Rankings!$A:$E,2,FALSE)) ->  | I57: =IF($G57="","",VLOOKUP(Setup!$B$13&"-"&$G57,Rankings!$A:$E,3,FALSE)) ->  | J57: =IF(COUNTIF(Rankings!$A:$A,Setup!$B$13&"-"&$G57)>0,VLOOKUP(Setup!$B$13&"-"&$G57,Rankings!$A:$E,5,FALSE),0) -> 0 | K57: =IF(COUNTIF(Rankings!$A:$A,Setup!$B$13&"-"&$G57)>0,VLOOKUP(Setup!$B$13&"-"&$G57,Rankings!$A:$E,4,FALSE),0) -> 0 | M57: =IF($L57="","",VLOOKUP(Setup!$B$13&"-"&$L57,Rankings!$A:$E,2,FALSE)) ->  | N57: =IF($L57="","",VLOOKUP(Setup!$B$13&"-"&$L57,Rankings!$A:$E,3,FALSE)) ->  | O57: =IF(COUNTIF(Rankings!$A:$A,Setup!$B$13&"-"&$L57)>0,VLOOKUP(Setup!$B$13&"-"&$L57,Rankings!$A:$E,5,FALSE),0) -> 0 | P57: =IF(COUNTIF(Rankings!$A:$A,Setup!$B$13&"-"&$L57)>0,VLOOKUP(Setup!$B$13&"-"&$L57,Rankings!$A:$E,4,FALSE),0) -> 0 | Q57: =B57+W57 -> 0.01153401426 | R57: =IF(J57>0,(B57+P57/1000+W57/1000),(B57+K57/1000+W57/1000)) -> 1.153401426e-05 | S57: =C57+W57 -> 0.01153401426 | T57: =C57+W57 -> 0.01153401426 | U57: =W57 -> 0.01153401426 | V57: =IF(G57="",0,VLOOKUP(D57,D57:U57,13+D57,FALSE)) -> 0 | W57: 0.01153401426
A58: 56 | B58: =J58+O58 -> 0 | C58: =K58+P58 -> 0 | D58: =IF(E58=2,1,IF(E58=1,2,IF(F58=2,3,IF(F58=1,4,5)))) -> 5 | E58: =COUNTIF(J58,">0")+COUNTIF(O58,">0") -> 0 | F58: =COUNTIF(K58,">0")+COUNTIF(P58,">0") -> 0 | H58: =IF($G58="","",VLOOKUP(Setup!$B$13&"-"&$G58,Rankings!$A:$E,2,FALSE)) ->  | I58: =IF($G58="","",VLOOKUP(Setup!$B$13&"-"&$G58,Rankings!$A:$E,3,FALSE)) ->  | J58: =IF(COUNTIF(Rankings!$A:$A,Setup!$B$13&"-"&$G58)>0,VLOOKUP(Setup!$B$13&"-"&$G58,Rankings!$A:$E,5,FALSE),0) -> 0 | K58: =IF(COUNTIF(Rankings!$A:$A,Setup!$B$13&"-"&$G58)>0,VLOOKUP(Setup!$B$13&"-"&$G58,Rankings!$A:$E,4,FALSE),0) -> 0 | M58: =IF($L58="","",VLOOKUP(Setup!$B$13&"-"&$L58,Rankings!$A:$E,2,FALSE)) ->  | N58: =IF($L58="","",VLOOKUP(Setup!$B$13&"-"&$L58,Rankings!$A:$E,3,FALSE)) ->  | O58: =IF(COUNTIF(Rankings!$A:$A,Setup!$B$13&"-"&$L58)>0,VLOOKUP(Setup!$B$13&"-"&$L58,Rankings!$A:$E,5,FALSE),0) -> 0 | P58: =IF(COUNTIF(Rankings!$A:$A,Setup!$B$13&"-"&$L58)>0,VLOOKUP(Setup!$B$13&"-"&$L58,Rankings!$A:$E,4,FALSE),0) -> 0 | Q58: =B58+W58 -> 0.01026521965 | R58: =IF(J58>0,(B58+P58/1000+W58/1000),(B58+K58/1000+W58/1000)) -> 1.026521965e-05 | S58: =C58+W58 -> 0.01026521965 | T58: =C58+W58 -> 0.01026521965 | U58: =W58 -> 0.01026521965 | V58: =IF(G58="",0,VLOOKUP(D58,D58:U58,13+D58,FALSE)) -> 0 | W58: 0.01026521965
A59: 57 | B59: =J59+O59 -> 0 | C59: =K59+P59 -> 0 | D59: =IF(E59=2,1,IF(E59=1,2,IF(F59=2,3,IF(F59=1,4,5)))) -> 5 | E59: =COUNTIF(J59,">0")+COUNTIF(O59,">0") -> 0 | F59: =COUNTIF(K59,">0")+COUNTIF(P59,">0") -> 0 | H59: =IF($G59="","",VLOOKUP(Setup!$B$13&"-"&$G59,Rankings!$A:$E,2,FALSE)) ->  | I59: =IF($G59="","",VLOOKUP(Setup!$B$13&"-"&$G59,Rankings!$A:$E,3,FALSE)) ->  | J59: =IF(COUNTIF(Rankings!$A:$A,Setup!$B$13&"-"&$G59)>0,VLOOKUP(Setup!$B$13&"-"&$G59,Rankings!$A:$E,5,FALSE),0) -> 0 | K59: =IF(COUNTIF(Rankings!$A:$A,Setup!$B$13&"-"&$G59)>0,VLOOKUP(Setup!$B$13&"-"&$G59,Rankings!$A:$E,4,FALSE),0) -> 0 | M59: =IF($L59="","",VLOOKUP(Setup!$B$13&"-"&$L59,Rankings!$A:$E,2,FALSE)) ->  | N59: =IF($L59="","",VLOOKUP(Setup!$B$13&"-"&$L59,Rankings!$A:$E,3,FALSE)) ->  | O59: =IF(COUNTIF(Rankings!$A:$A,Setup!$B$13&"-"&$L59)>0,VLOOKUP(Setup!$B$13&"-"&$L59,Rankings!$A:$E,5,FALSE),0) -> 0 | P59: =IF(COUNTIF(Rankings!$A:$A,Setup!$B$13&"-"&$L59)>0,VLOOKUP(Setup!$B$13&"-"&$L59,Rankings!$A:$E,4,FALSE),0) -> 0 | Q59: =B59+W59 -> 0.008537760683 | R59: =IF(J59>0,(B59+P59/1000+W59/1000),(B59+K59/1000+W59/1000)) -> 8.537760683e-06 | S59: =C59+W59 -> 0.008537760683 | T59: =C59+W59 -> 0.008537760683 | U59: =W59 -> 0.008537760683 | V59: =IF(G59="",0,VLOOKUP(D59,D59:U59,13+D59,FALSE)) -> 0 | W59: 0.008537760683
A60: 58 | B60: =J60+O60 -> 0 | C60: =K60+P60 -> 0 | D60: =IF(E60=2,1,IF(E60=1,2,IF(F60=2,3,IF(F60=1,4,5)))) -> 5 | E60: =COUNTIF(J60,">0")+COUNTIF(O60,">0") -> 0 | F60: =COUNTIF(K60,">0")+COUNTIF(P60,">0") -> 0 | H60: =IF($G60="","",VLOOKUP(Setup!$B$13&"-"&$G60,Rankings!$A:$E,2,FALSE)) ->  | I60: =IF($G60="","",VLOOKUP(Setup!$B$13&"-"&$G60,Rankings!$A:$E,3,FALSE)) ->  | J60: =IF(COUNTIF(Rankings!$A:$A,Setup!$B$13&"-"&$G60)>0,VLOOKUP(Setup!$B$13&"-"&$G60,Rankings!$A:$E,5,FALSE),0) -> 0 | K60: =IF(COUNTIF(Rankings!$A:$A,Setup!$B$13&"-"&$G60)>0,VLOOKUP(Setup!$B$13&"-"&$G60,Rankings!$A:$E,4,FALSE),0) -> 0 | M60: =IF($L60="","",VLOOKUP(Setup!$B$13&"-"&$L60,Rankings!$A:$E,2,FALSE)) ->  | N60: =IF($L60="","",VLOOKUP(Setup!$B$13&"-"&$L60,Rankings!$A:$E,3,FALSE)) ->  | O60: =IF(COUNTIF(Rankings!$A:$A,Setup!$B$13&"-"&$L60)>0,VLOOKUP(Setup!$B$13&"-"&$L60,Rankings!$A:$E,5,FALSE),0) -> 0 | P60: =IF(COUNTIF(Rankings!$A:$A,Setup!$B$13&"-"&$L60)>0,VLOOKUP(Setup!$B$13&"-"&$L60,Rankings!$A:$E,4,FALSE),0) -> 0 | Q60: =B60+W60 -> 0.007269447169 | R60: =IF(J60>0,(B60+P60/1000+W60/1000),(B60+K60/1000+W60/1000)) -> 7.269447169e-06 | S60: =C60+W60 -> 0.007269447169 | T60: =C60+W60 -> 0.007269447169 | U60: =W60 -> 0.007269447169 | V60: =IF(G60="",0,VLOOKUP(D60,D60:U60,13+D60,FALSE)) -> 0 | W60: 0.007269447169
A61: 59 | B61: =J61+O61 -> 0 | C61: =K61+P61 -> 0 | D61: =IF(E61=2,1,IF(E61=1,2,IF(F61=2,3,IF(F61=1,4,5)))) -> 5 | E61: =COUNTIF(J61,">0")+COUNTIF(O61,">0") -> 0 | F61: =COUNTIF(K61,">0")+COUNTIF(P61,">0") -> 0 | H61: =IF($G61="","",VLOOKUP(Setup!$B$13&"-"&$G61,Rankings!$A:$E,2,FALSE)) ->  | I61: =IF($G61="","",VLOOKUP(Setup!$B$13&"-"&$G61,Rankings!$A:$E,3,FALSE)) ->  | J61: =IF(COUNTIF(Rankings!$A:$A,Setup!$B$13&"-"&$G61)>0,VLOOKUP(Setup!$B$13&"-"&$G61,Rankings!$A:$E,5,FALSE),0) -> 0 | K61: =IF(COUNTIF(Rankings!$A:$A,Setup!$B$13&"-"&$G61)>0,VLOOKUP(Setup!$B$13&"-"&$G61,Rankings!$A:$E,4,FALSE),0) -> 0 | M61: =IF($L61="","",VLOOKUP(Setup!$B$13&"-"&$L61,Rankings!$A:$E,2,FALSE)) ->  | N61: =IF($L61="","",VLOOKUP(Setup!$B$13&"-"&$L61,Rankings!$A:$E,3,FALSE)) ->  | O61: =IF(COUNTIF(Rankings!$A:$A,Setup!$B$13&"-"&$L61)>0,VLOOKUP(Setup!$B$13&"-"&$L61,Rankings!$A:$E,5,FALSE),0) -> 0 | P61: =IF(COUNTIF(Rankings!$A:$A,Setup!$B$13&"-"&$L61)>0,VLOOKUP(Setup!$B$13&"-"&$L61,Rankings!$A:$E,4,FALSE),0) -> 0 | Q61: =B61+W61 -> 0.006868051386 | R61: =IF(J61>0,(B61+P61/1000+W61/1000),(B61+K61/1000+W61/1000)) -> 6.868051386e-06 | S61: =C61+W61 -> 0.006868051386 | T61: =C61+W61 -> 0.006868051386 | U61: =W61 -> 0.006868051386 | V61: =IF(G61="",0,VLOOKUP(D61,D61:U61,13+D61,FALSE)) -> 0 | W61: 0.006868051386
A62: 60 | B62: =J62+O62 -> 0 | C62: =K62+P62 -> 0 | D62: =IF(E62=2,1,IF(E62=1,2,IF(F62=2,3,IF(F62=1,4,5)))) -> 5 | E62: =COUNTIF(J62,">0")+COUNTIF(O62,">0") -> 0 | F62: =COUNTIF(K62,">0")+COUNTIF(P62,">0") -> 0 | H62: =IF($G62="","",VLOOKUP(Setup!$B$13&"-"&$G62,Rankings!$A:$E,2,FALSE)) ->  | I62: =IF($G62="","",VLOOKUP(Setup!$B$13&"-"&$G62,Rankings!$A:$E,3,FALSE)) ->  | J62: =IF(COUNTIF(Rankings!$A:$A,Setup!$B$13&"-"&$G62)>0,VLOOKUP(Setup!$B$13&"-"&$G62,Rankings!$A:$E,5,FALSE),0) -> 0 | K62: =IF(COUNTIF(Rankings!$A:$A,Setup!$B$13&"-"&$G62)>0,VLOOKUP(Setup!$B$13&"-"&$G62,Rankings!$A:$E,4,FALSE),0) -> 0 | M62: =IF($L62="","",VLOOKUP(Setup!$B$13&"-"&$L62,Rankings!$A:$E,2,FALSE)) ->  | N62: =IF($L62="","",VLOOKUP(Setup!$B$13&"-"&$L62,Rankings!$A:$E,3,FALSE)) ->  | O62: =IF(COUNTIF(Rankings!$A:$A,Setup!$B$13&"-"&$L62)>0,VLOOKUP(Setup!$B$13&"-"&$L62,Rankings!$A:$E,5,FALSE),0) -> 0 | P62: =IF(COUNTIF(Rankings!$A:$A,Setup!$B$13&"-"&$L62)>0,VLOOKUP(Setup!$B$13&"-"&$L62,Rankings!$A:$E,4,FALSE),0) -> 0 | Q62: =B62+W62 -> 0.006090237898 | R62: =IF(J62>0,(B62+P62/1000+W62/1000),(B62+K62/1000+W62/1000)) -> 6.090237898e-06 | S62: =C62+W62 -> 0.006090237898 | T62: =C62+W62 -> 0.006090237898 | U62: =W62 -> 0.006090237898 | V62: =IF(G62="",0,VLOOKUP(D62,D62:U62,13+D62,FALSE)) -> 0 | W62: 0.006090237898
A63: 61 | B63: =J63+O63 -> 0 | C63: =K63+P63 -> 0 | D63: =IF(E63=2,1,IF(E63=1,2,IF(F63=2,3,IF(F63=1,4,5)))) -> 5 | E63: =COUNTIF(J63,">0")+COUNTIF(O63,">0") -> 0 | F63: =COUNTIF(K63,">0")+COUNTIF(P63,">0") -> 0 | H63: =IF($G63="","",VLOOKUP(Setup!$B$13&"-"&$G63,Rankings!$A:$E,2,FALSE)) ->  | I63: =IF($G63="","",VLOOKUP(Setup!$B$13&"-"&$G63,Rankings!$A:$E,3,FALSE)) ->  | J63: =IF(COUNTIF(Rankings!$A:$A,Setup!$B$13&"-"&$G63)>0,VLOOKUP(Setup!$B$13&"-"&$G63,Rankings!$A:$E,5,FALSE),0) -> 0 | K63: =IF(COUNTIF(Rankings!$A:$A,Setup!$B$13&"-"&$G63)>0,VLOOKUP(Setup!$B$13&"-"&$G63,Rankings!$A:$E,4,FALSE),0) -> 0 | M63: =IF($L63="","",VLOOKUP(Setup!$B$13&"-"&$L63,Rankings!$A:$E,2,FALSE)) ->  | N63: =IF($L63="","",VLOOKUP(Setup!$B$13&"-"&$L63,Rankings!$A:$E,3,FALSE)) ->  | O63: =IF(COUNTIF(Rankings!$A:$A,Setup!$B$13&"-"&$L63)>0,VLOOKUP(Setup!$B$13&"-"&$L63,Rankings!$A:$E,5,FALSE),0) -> 0 | P63: =IF(COUNTIF(Rankings!$A:$A,Setup!$B$13&"-"&$L63)>0,VLOOKUP(Setup!$B$13&"-"&$L63,Rankings!$A:$E,4,FALSE),0) -> 0 | Q63: =B63+W63 -> 0.005645661915 | R63: =IF(J63>0,(B63+P63/1000+W63/1000),(B63+K63/1000+W63/1000)) -> 5.645661915e-06 | S63: =C63+W63 -> 0.005645661915 | T63: =C63+W63 -> 0.005645661915 | U63: =W63 -> 0.005645661915 | V63: =IF(G63="",0,VLOOKUP(D63,D63:U63,13+D63,FALSE)) -> 0 | W63: 0.005645661915
A64: 62 | B64: =J64+O64 -> 0 | C64: =K64+P64 -> 0 | D64: =IF(E64=2,1,IF(E64=1,2,IF(F64=2,3,IF(F64=1,4,5)))) -> 5 | E64: =COUNTIF(J64,">0")+COUNTIF(O64,">0") -> 0 | F64: =COUNTIF(K64,">0")+COUNTIF(P64,">0") -> 0 | H64: =IF($G64="","",VLOOKUP(Setup!$B$13&"-"&$G64,Rankings!$A:$E,2,FALSE)) ->  | I64: =IF($G64="","",VLOOKUP(Setup!$B$13&"-"&$G64,Rankings!$A:$E,3,FALSE)) ->  | J64: =IF(COUNTIF(Rankings!$A:$A,Setup!$B$13&"-"&$G64)>0,VLOOKUP(Setup!$B$13&"-"&$G64,Rankings!$A:$E,5,FALSE),0) -> 0 | K64: =IF(COUNTIF(Rankings!$A:$A,Setup!$B$13&"-"&$G64)>0,VLOOKUP(Setup!$B$13&"-"&$G64,Rankings!$A:$E,4,FALSE),0) -> 0 | M64: =IF($L64="","",VLOOKUP(Setup!$B$13&"-"&$L64,Rankings!$A:$E,2,FALSE)) ->  | N64: =IF($L64="","",VLOOKUP(Setup!$B$13&"-"&$L64,Rankings!$A:$E,3,FALSE)) ->  | O64: =IF(COUNTIF(Rankings!$A:$A,Setup!$B$13&"-"&$L64)>0,VLOOKUP(Setup!$B$13&"-"&$L64,Rankings!$A:$E,5,FALSE),0) -> 0 | P64: =IF(COUNTIF(Rankings!$A:$A,Setup!$B$13&"-"&$L64)>0,VLOOKUP(Setup!$B$13&"-"&$L64,Rankings!$A:$E,4,FALSE),0) -> 0 | Q64: =B64+W64 -> 0.004020806691 | R64: =IF(J64>0,(B64+P64/1000+W64/1000),(B64+K64/1000+W64/1000)) -> 4.020806691e-06 | S64: =C64+W64 -> 0.004020806691 | T64: =C64+W64 -> 0.004020806691 | U64: =W64 -> 0.004020806691 | V64: =IF(G64="",0,VLOOKUP(D64,D64:U64,13+D64,FALSE)) -> 0 | W64: 0.004020806691
A65: 63 | B65: =J65+O65 -> 0 | C65: =K65+P65 -> 0 | D65: =IF(E65=2,1,IF(E65=1,2,IF(F65=2,3,IF(F65=1,4,5)))) -> 5 | E65: =COUNTIF(J65,">0")+COUNTIF(O65,">0") -> 0 | F65: =COUNTIF(K65,">0")+COUNTIF(P65,">0") -> 0 | H65: =IF($G65="","",VLOOKUP(Setup!$B$13&"-"&$G65,Rankings!$A:$E,2,FALSE)) ->  | I65: =IF($G65="","",VLOOKUP(Setup!$B$13&"-"&$G65,Rankings!$A:$E,3,FALSE)) ->  | J65: =IF(COUNTIF(Rankings!$A:$A,Setup!$B$13&"-"&$G65)>0,VLOOKUP(Setup!$B$13&"-"&$G65,Rankings!$A:$E,5,FALSE),0) -> 0 | K65: =IF(COUNTIF(Rankings!$A:$A,Setup!$B$13&"-"&$G65)>0,VLOOKUP(Setup!$B$13&"-"&$G65,Rankings!$A:$E,4,FALSE),0) -> 0 | M65: =IF($L65="","",VLOOKUP(Setup!$B$13&"-"&$L65,Rankings!$A:$E,2,FALSE)) ->  | N65: =IF($L65="","",VLOOKUP(Setup!$B$13&"-"&$L65,Rankings!$A:$E,3,FALSE)) ->  | O65: =IF(COUNTIF(Rankings!$A:$A,Setup!$B$13&"-"&$L65)>0,VLOOKUP(Setup!$B$13&"-"&$L65,Rankings!$A:$E,5,FALSE),0) -> 0 | P65: =IF(COUNTIF(Rankings!$A:$A,Setup!$B$13&"-"&$L65)>0,VLOOKUP(Setup!$B$13&"-"&$L65,Rankings!$A:$E,4,FALSE),0) -> 0 | Q65: =B65+W65 -> 0.003078866843 | R65: =IF(J65>0,(B65+P65/1000+W65/1000),(B65+K65/1000+W65/1000)) -> 3.078866843e-06 | S65: =C65+W65 -> 0.003078866843 | T65: =C65+W65 -> 0.003078866843 | U65: =W65 -> 0.003078866843 | V65: =IF(G65="",0,VLOOKUP(D65,D65:U65,13+D65,FALSE)) -> 0 | W65: 0.003078866843
A66: 64 | B66: =J66+O66 -> 0 | C66: =K66+P66 -> 0 | D66: =IF(E66=2,1,IF(E66=1,2,IF(F66=2,3,IF(F66=1,4,5)))) -> 5 | E66: =COUNTIF(J66,">0")+COUNTIF(O66,">0") -> 0 | F66: =COUNTIF(K66,">0")+COUNTIF(P66,">0") -> 0 | H66: =IF($G66="","",VLOOKUP(Setup!$B$13&"-"&$G66,Rankings!$A:$E,2,FALSE)) ->  | I66: =IF($G66="","",VLOOKUP(Setup!$B$13&"-"&$G66,Rankings!$A:$E,3,FALSE)) ->  | J66: =IF(COUNTIF(Rankings!$A:$A,Setup!$B$13&"-"&$G66)>0,VLOOKUP(Setup!$B$13&"-"&$G66,Rankings!$A:$E,5,FALSE),0) -> 0 | K66: =IF(COUNTIF(Rankings!$A:$A,Setup!$B$13&"-"&$G66)>0,VLOOKUP(Setup!$B$13&"-"&$G66,Rankings!$A:$E,4,FALSE),0) -> 0 | M66: =IF($L66="","",VLOOKUP(Setup!$B$13&"-"&$L66,Rankings!$A:$E,2,FALSE)) ->  | N66: =IF($L66="","",VLOOKUP(Setup!$B$13&"-"&$L66,Rankings!$A:$E,3,FALSE)) ->  | O66: =IF(COUNTIF(Rankings!$A:$A,Setup!$B$13&"-"&$L66)>0,VLOOKUP(Setup!$B$13&"-"&$L66,Rankings!$A:$E,5,FALSE),0) -> 0 | P66: =IF(COUNTIF(Rankings!$A:$A,Setup!$B$13&"-"&$L66)>0,VLOOKUP(Setup!$B$13&"-"&$L66,Rankings!$A:$E,4,FALSE),0) -> 0 | Q66: =B66+W66 -> 0.002732915702 | R66: =IF(J66>0,(B66+P66/1000+W66/1000),(B66+K66/1000+W66/1000)) -> 2.732915702e-06 | S66: =C66+W66 -> 0.002732915702 | T66: =C66+W66 -> 0.002732915702 | U66: =W66 -> 0.002732915702 | V66: =IF(G66="",0,VLOOKUP(D66,D66:U66,13+D66,FALSE)) -> 0 | W66: 0.002732915702

Sheet MD
A1: =Setup!B3 & ", " & Setup!B4 & ", " & Setup!B6 & ", " & Setup!B8 & "-" & Setup!B9 -> Υπ.Παιδείας, Σχολικό Πρωτάθλημα 2014, ΑΕΤ ΝΙΚΗ ΠΑΤΡΩΝ, 5-11 Μαίου | P1: =Setup!$B$7 -> Αγόρια Δ
B2: =Setup!$B$18 -> 1 | G2: ="p"&VLOOKUP(Setup!$B$5,tmp!$K$23:$P$34,2,FALSE) ->  | L2: ="p"&VLOOKUP(Setup!$B$5,tmp!$K$23:$P$34,3,FALSE) ->  | N2: ="p"&VLOOKUP(Setup!$B$5,tmp!$K$23:$P$34,4,FALSE) ->  | P2: ="p"&VLOOKUP(Setup!$B$5,tmp!$K$28:$P$34,5,FALSE)&"-"&VLOOKUP(Setup!$B$5,tmp!$K$28:$P$34,6,FALSE) -> 
H3: 16 | L3: 8 | N3: 4 | P3: 2 & w
A4: α/α | C4: ByeOrder | D4: ByeSum | E4: ByeCnt | F4: seed | G4: Α.Μ. | H4: Ονοματεπώνυμο | I4: επώνυμο | J4: Σύλλογος
A5: 1 | B5: 1 | E5: 0 | F5: =VLOOKUP($B5,Setup!$G$12:$H$27,2,FALSE) -> 1 | G5: =IF(Setup!$B$25="#",0,IF(F5>0,VLOOKUP(F5,DrawPrep!$A$3:$N$18,7,FALSE),0)) -> 23775 | H5: =IF(G5>0,VLOOKUP(G5,DrawPrep!$G$3:$N$18,2,FALSE),"bye") -> ΑΝΤΩΝΟΠΟΥΛΟΣ ΧΡΗΣΤΟΣ | I5: =IF(NOT(G5>0),"", IF(ISERROR(FIND("-",H5)), LEFT(H5,FIND(" ",H5)-1), IF(FIND("-",H5)>FIND(" ",H5),LEFT(H5,FIND(" ",H5)-1), LEFT(H5,FIND("-",H5)-1) ))) -> ΑΝΤΩΝΟΠΟΥΛΟΣ | J5: =IF($G5>0,VLOOKUP($G5,DrawPrep!$G$3:$L$18,3,FALSE),"") -> 1ο ΓΕΛ ΝΙΚΑΙΑΣ | L5: =UPPER(IF($A$2="R",IF(OR(K6=1,K6="a"),G5,IF(OR(K6=2,K6="b"),G7,"")),IF(OR(K6=1,K6="1"),I5,IF(OR(K6=2,K6="b"),I7,"")))) -> ΑΝΤΩΝΟΠΟΥΛΟΣ | X5: =G5 -> 23775 | Y5: =H5 -> ΑΝΤΩΝΟΠΟΥΛΟΣ ΧΡΗΣΤΟΣ | AA5: =L5 -> ΑΝΤΩΝΟΠΟΥΛΟΣ
G6: =IF(Setup!$B$25="#",0,IF(F5>0,VLOOKUP(F5,DrawPrep!$A$3:$N$18,12,FALSE),0)) -> 23234 | H6: =IF(G6>0,VLOOKUP(G6,DrawPrep!$L$3:$N$18,2,FALSE)," ") -> ΚΑΖΑΝΤΖΗΣ ΜΙΧΑΗΛ-ΤΟΥΒ | I6: =IF(NOT(G6>0),"", IF(ISERROR(FIND("-",H6)), LEFT(H6,FIND(" ",H6)-1), IF(FIND("-",H6)>FIND(" ",H6),LEFT(H6,FIND(" ",H6)-1), LEFT(H6,FIND("-",H6)-1) ))) -> ΚΑΖΑΝΤΖΗΣ | J6: =IF($G6>0,VLOOKUP($G6,DrawPrep!$L$3:$N$18,3,FALSE),"") -> ΚΟΛΛΕΓΙΟ ΑΘΗΝΩΝ | K6: 1 | L6: =UPPER(IF($A$2="R",IF(OR(K6=1,K6="a"),G6,IF(OR(K6=2,K6="b"),G8,"")),IF(OR(K6=1,K6="1"),I6,IF(OR(K6=2,K6="b"),I8,"")))) -> ΚΑΖΑΝΤΖΗΣ | X6: =G6 -> 23234 | Y6: ΚΑΖΑΝΤΖΗΣ ΜΙΧΑΗΛ-ΤΟΥΒ | AA6: =L6 -> ΚΑΖΑΝΤΖΗΣ
A7: 2 | B7: =1-D7+4 -> 4 | C7: 1 | D7: =E7 -> 1 | E7: =IF($B$2>=C7,1,0) -> 1 | F7: =IF($B$2>=C7,"-",VLOOKUP($B7,Setup!$G$12:$H$27,2,FALSE)) -> - | G7: =IF(Setup!$B$25="#",0,IF(NOT(F7="-"),VLOOKUP(F7,DrawPrep!$A$3:$N$18,7,FALSE),0)) -> 0 | H7: =IF(G7>0,VLOOKUP(G7,DrawPrep!$G$3:$L$18,2,FALSE),"bye") -> bye | J7: =IF($G7>0,VLOOKUP($G7,DrawPrep!$G$3:$L$18,3,FALSE),"") ->  | N7: =UPPER(IF($A$2="R",IF(OR(M8=1,M8="a"),L5,IF(OR(M8=2,M7="b"),L9,"")),IF(OR(M8=1,M8="a"),L5,IF(OR(M8=2,M8="b"),L9,"")))) ->  | X7: 0 | Y7: bye | AA7: 0 | AB7: =N7 -> 
G8: =IF(Setup!$B$25="#",0,IF(NOT(F7="-"),VLOOKUP(F7,DrawPrep!$A$3:$N$18,12,FALSE),0)) -> 0 | H8: =IF(G8>0,VLOOKUP(G8,DrawPrep!$L$3:$N$18,2,FALSE)," ") ->  | J8: =IF($G8>0,VLOOKUP($G8,DrawPrep!$L$3:$N$18,3,FALSE),"") ->  | N8: =UPPER(IF($A$2="R",IF(OR(M8=1,M8="a"),L6,IF(OR(M8=2,M8="b"),L10,"")),IF(OR(M8=1,M8="a"),L6,IF(OR(M8=2,M8="b"),L10,"")))) ->  | X8: 0 | AB8: =N8 -> 
A9: 3 | B9: =2-D9+4 -> 5 | D9: =D7+E9 -> 1 | E9: 0 | F9: =VLOOKUP($B9,Setup!$G$12:$H$27,2,FALSE) -> 11 | G9: =IF(Setup!$B$25="#",0,IF(F9>0,VLOOKUP(F9,DrawPrep!$A$3:$N$18,7,FALSE),0)) -> 25503 | H9: =IF(G9>0,VLOOKUP(G9,DrawPrep!$G$3:$L$18,2,FALSE),"bye") -> ΠΑΡΑΣΧΑΚΗΣ ΝΙΚΟΛΑΟΣ | I9: ΠΑΡΑΣΧΑΚΗΣ | J9: =IF($G9>0,VLOOKUP($G9,DrawPrep!$G$3:$L$18,3,FALSE),"") -> 1ο ΓΕΛ Ν.ΙΩΝΙΑΣ | L9: =UPPER(IF($A$2="R",IF(OR(K10=1,K10="a"),G9,IF(OR(K10=2,K10="b"),G11,"")),IF(OR(K10=1,K10="1"),I9,IF(OR(K10=2,K10="b"),I11,"")))) ->  | X9: 25503 | Y9: ΠΑΡΑΣΧΑΚΗΣ ΝΙΚΟΛΑΟΣ | AB9: 0
G10: =IF(Setup!$B$25="#",0,IF(F9>0,VLOOKUP(F9,DrawPrep!$A$3:$N$18,12,FALSE),0)) -> 23093 | H10: =IF(G10>0,VLOOKUP(G10,DrawPrep!$L$3:$N$18,2,FALSE)," ") -> ΚΑΛΔΕΡΩΝ ΖΑΚ | I10: ΚΑΛΔΕΡΩΝ | J10: =IF($G10>0,VLOOKUP($G10,DrawPrep!$L$3:$N$18,3,FALSE),"") -> ΓΕΛ ΛΑΡΙΣΑΣ | L10: =UPPER(IF($A$2="R",IF(OR(K10=1,K10="a"),G10,IF(OR(K10=2,K10="b"),G12,"")),IF(OR(K10=1,K10="1"),I10,IF(OR(K10=2,K10="b"),I12,"")))) ->  | X10: 23093 | Y10: ΚΑΛΔΕΡΩΝ ΖΑΚ
A11: 4 | B11: =3-D11+4 -> 6 | C11: 7 | D11: =D9+E11 -> 1 | E11: =IF($B$2>=C11,1,0) -> 0 | F11: =IF($B$2>=C11,"-",VLOOKUP($B11,Setup!$G$12:$H$27,2,FALSE)) -> 5 | G11: =IF(Setup!$B$25="#",0,IF(NOT(F11="-"),VLOOKUP(F11,DrawPrep!$A$3:$N$18,7,FALSE),0)) -> 23662 | H11: =IF(G11>0,VLOOKUP(G11,DrawPrep!$G$3:$L$18,2,FALSE),"bye") -> ΤΑΣΟΥΛΗΣ ΒΑΣΙΛΕΙΟΣ | I11: ΤΑΣΟΥΛΗΣ | J11: =IF($G11>0,VLOOKUP($G11,DrawPrep!$G$3:$L$18,3,FALSE),"") -> 3ο ΓΕΛ ΗΛΙΟΥΠΟΛΗΣ | P11: =UPPER(IF($A$2="R",IF(OR(O12=1,O12="a"),N7,IF(OR(O12=2,O12="b"),N15,"")),IF(OR(O12=1,O12="a"),N7,IF(OR(O12=2,O12="b"),N15,"")))) ->  | X11: 23662 | Y11: ΤΑΣΟΥΛΗΣ ΒΑΣΙΛΕΙΟΣ | AA11: 0 | AC11: =P11 -> 
G12: =IF(Setup!$B$25="#",0,IF(NOT(F11="-"),VLOOKUP(F11,DrawPrep!$A$3:$N$18,12,FALSE),0)) -> 22965 | H12: =IF(G12>0,VLOOKUP(G12,DrawPrep!$L$3:$N$18,2,FALSE)," ") -> ΚΟΡΔΟΣ ΙΩΑΝΝΗΣ | I12: ΚΟΡΔΟΣ | J12: =IF($G12>0,VLOOKUP($G12,DrawPrep!$L$3:$N$18,3,FALSE),"") -> ΙΔΙΩΤ.ΓΕΝ. ΛΥΚΕΙΟ ΠΡΟΤΥΠΟ ΑΘΗΝΩΝ | P12: =UPPER(IF($A$2="R",IF(OR(O12=1,O12="a"),N8,IF(OR(O12=2,O12="b"),N16,"")),IF(OR(O12=1,O12="a"),N8,IF(OR(O12=2,O12="b"),N16,"")))) ->  | X12: 22965 | Y12: ΚΟΡΔΟΣ ΙΩΑΝΝΗΣ | AC12: =P12 -> 
A13: 5 | B13: =4-D13+4 -> 7 | D13: =D11+E13 -> 1 | E13: 0 | F13: =VLOOKUP($B13,Setup!$G$12:$H$27,2,FALSE) -> 8 | G13: =IF(Setup!$B$25="#",0,IF(F13>0,VLOOKUP(F13,DrawPrep!$A$3:$N$18,7,FALSE),0)) -> 26603 | H13: =IF(G13>0,VLOOKUP(G13,DrawPrep!$G$3:$L$18,2,FALSE),"bye") -> ΔΕΛΛΗΣ ΑΝΔΡΕΑΣ-ΑΛΕΞΑΝΔΡΟΣ | I13: ΔΕΛΛΗΣ | J13: =IF($G13>0,VLOOKUP($G13,DrawPrep!$G$3:$L$18,3,FALSE),"") -> 2ο ΓΕΛ ΑΡΓΟΥΣ | L13: =UPPER(IF($A$2="R",IF(OR(K14=1,K14="a"),G13,IF(OR(K14=2,K14="b"),G15,"")),IF(OR(K14=1,K14="1"),I13,IF(OR(K14=2,K14="b"),I15,"")))) ->  | X13: 26603 | Y13: ΔΕΛΛΗΣ ΑΝΔΡΕΑΣ-ΑΛΕΞΑΝΔΡΟΣ | AC13: 0
G14: =IF(Setup!$B$25="#",0,IF(F13>0,VLOOKUP(F13,DrawPrep!$A$3:$N$18,12,FALSE),0)) -> 26604 | H14: =IF(G14>0,VLOOKUP(G14,DrawPrep!$L$3:$N$18,2,FALSE)," ") -> ΔΕΛΛΗΣ ΧΡΙΣΤΟΣ-ΕΡΡΙΚΟΣ | I14: ΔΕΛΛΗΣ | J14: =IF($G14>0,VLOOKUP($G14,DrawPrep!$L$3:$N$18,3,FALSE),"") -> 2ο ΓΕΛ ΑΡΓΟΥΣ | L14: =UPPER(IF($A$2="R",IF(OR(K14=1,K14="a"),G14,IF(OR(K14=2,K14="b"),G16,"")),IF(OR(K14=1,K14="1"),I14,IF(OR(K14=2,K14="b"),I16,"")))) ->  | X14: 26604 | Y14: ΔΕΛΛΗΣ ΧΡΙΣΤΟΣ-ΕΡΡΙΚΟΣ
A15: 6 | B15: =5-D15+4 -> 8 | C15: 5 | D15: =D13+E15 -> 1 | E15: =IF($B$2>=C15,1,0) -> 0 | F15: =IF($B$2>=C15,"-",VLOOKUP($B15,Setup!$G$12:$H$27,2,FALSE)) -> 14 | G15: =IF(Setup!$B$25="#",0,IF(NOT(F15="-"),VLOOKUP(F15,DrawPrep!$A$3:$N$18,7,FALSE),0)) -> 25238 | H15: =IF(G15>0,VLOOKUP(G15,DrawPrep!$G$3:$L$18,2,FALSE),"bye") -> ΤΖΕΛΑΤΗΣ ΣΤΕΦΑΝΟΣ | I15: ΤΖΕΛΑΤΗΣ | J15: =IF($G15>0,VLOOKUP($G15,DrawPrep!$G$3:$L$18,3,FALSE),"") -> 1ο ΓΕΛ ΡΑΦΗΝΑΣ | N15: =UPPER(IF($A$2="R",IF(OR(M16=1,M16="a"),L13,IF(OR(M16=2,M15="b"),L17,"")),IF(OR(M16=1,M16="a"),L13,IF(OR(M16=2,M16="b"),L17,"")))) ->  | X15: 25238 | Y15: ΤΖΕΛΑΤΗΣ ΣΤΕΦΑΝΟΣ | AA15: 0
G16: =IF(Setup!$B$25="#",0,IF(NOT(F15="-"),VLOOKUP(F15,DrawPrep!$A$3:$N$18,12,FALSE),0)) -> 25273 | H16: =IF(G16>0,VLOOKUP(G16,DrawPrep!$L$3:$N$18,2,FALSE)," ") -> ΤΣΟΝΑΚΗΣ ΚΩΝΣΤΑΝΤΙΝΟΣ | I16: ΤΣΟΝΑΚΗΣ | J16: =IF($G16>0,VLOOKUP($G16,DrawPrep!$L$3:$N$18,3,FALSE),"") -> 1ο ΓΕΛ ΠΑΠΑΓΟΥ | N16: =UPPER(IF($A$2="R",IF(OR(M16=1,M16="a"),L14,IF(OR(M16=2,M16="b"),L18,"")),IF(OR(M16=1,M16="a"),L14,IF(OR(M16=2,M16="b"),L18,"")))) ->  | X16: 25273 | Y16: ΤΣΟΝΑΚΗΣ ΚΩΝΣΤΑΝΤΙΝΟΣ
A17: 7 | B17: =6-D17+4 -> 9 | C17: =VALUE(Setup!E2) -> 3 | D17: =D15+E17 -> 1 | E17: =IF($B$2>=C17,1,0) -> 0 | F17: =IF($B$2>=C17,"-",VLOOKUP($B17,Setup!$G$12:$H$27,2,FALSE)) -> 10 | G17: =IF(Setup!$B$25="#",0,IF(NOT(F17="-"),VLOOKUP(F17,DrawPrep!$A$3:$N$18,7,FALSE),0)) -> 25351 | H17: =IF(G17>0,VLOOKUP(G17,DrawPrep!$G$3:$L$18,2,FALSE),"bye") -> ΔΙΑΜΑΝΤΟΠΟΥΛΟΣ ΓΕΩΡΓΙΟΣ | I17: ΔΙΑΜΑΝΤΟΠΟΥΛΟΣ | J17: =IF($G17>0,VLOOKUP($G17,DrawPrep!$G$3:$L$18,3,FALSE),"") -> ΚΟΛΛΕΓΙΟ ΨΥΧΙΚΟΥ | L17: =UPPER(IF($A$2="R",IF(OR(K18=1,K18="a"),G17,IF(OR(K18=2,K18="b"),G19,"")),IF(OR(K18=1,K18="1"),I17,IF(OR(K18=2,K18="b"),I19,"")))) ->  | X17: 25351 | Y17: ΔΙΑΜΑΝΤΟΠΟΥΛΟΣ ΓΕΩΡΓΙΟΣ | AB17: 0
G18: =IF(Setup!$B$25="#",0,IF(NOT(F17="-"),VLOOKUP(F17,DrawPrep!$A$3:$N$18,12,FALSE),0)) -> 26210 | H18: =IF(G18>0,VLOOKUP(G18,DrawPrep!$L$3:$N$18,2,FALSE)," ") -> ΚΟΝΤΩΣΗΣ ΓΕΩΡΓΙΟΣ | I18: ΚΟΝΤΩΣΗΣ | J18: =IF($G18>0,VLOOKUP($G18,DrawPrep!$L$3:$N$18,3,FALSE),"") -> ΛΕΟΝΤΕΙΟ ΛΥΚΕΙΟ ΠΑΤΗΣΙΩΝ | L18: =UPPER(IF($A$2="R",IF(OR(K18=1,K18="a"),G18,IF(OR(K18=2,K18="b"),G20,"")),IF(OR(K18=1,K18="1"),I18,IF(OR(K18=2,K18="b"),I20,"")))) ->  | P18: winners | X18: 26210 | Y18: ΚΟΝΤΩΣΗΣ ΓΕΩΡΓΙΟΣ
A19: 8 | B19: =VALUE(Setup!E2) -> 3 | D19: =D17+E19 -> 1 | E19: 0 | F19: =VLOOKUP($B19,Setup!$G$12:$H$27,2,FALSE) -> 3 | G19: =IF(Setup!$B$25="#",0,IF(F19>0,VLOOKUP(F19,DrawPrep!$A$3:$N$18,7,FALSE),0)) -> 23661 | H19: =IF(G19>0,VLOOKUP(G19,DrawPrep!$G$3:$L$18,2,FALSE),"bye") -> ΦΩΤΕΙΝΟΠΟΥΛΟΣ ΚΩΝΣΤΑΝΤΙΝΟΣ | I19: ΦΩΤΕΙΝΟΠΟΥΛΟΣ | J19: =IF($G19>0,VLOOKUP($G19,DrawPrep!$G$3:$L$18,3,FALSE),"") -> ΙΔ.ΕΝ.ΛΥΚΕΙΟ ΘΕΟΜΗΤΩΡ | P19: =UPPER(IF($A$2="R",IF(OR(O20=1,O20="a"),P11,IF(OR(O20=2,O20="b"),P27,"")),IF(OR(O20=1,O20="a"),P11,IF(OR(O20=2,O20="b"),P27,"")))) ->  | X19: 23661 | Y19: ΦΩΤΕΙΝΟΠΟΥΛΟΣ ΚΩΝΣΤΑΝΤΙΝΟΣ | AA19: 0
G20: =IF(Setup!$B$25="#",0,IF(F19>0,VLOOKUP(F19,DrawPrep!$A$3:$N$18,12,FALSE),0)) -> 23192 | H20: =IF(G20>0,VLOOKUP(G20,DrawPrep!$L$3:$N$18,2,FALSE)," ") -> ΚΟΥΤΣΑΦΤΗΣ ΑΠΟΣΤΟΛΟΣ | I20: ΚΟΥΤΣΑΦΤΗΣ | J20: =IF($G20>0,VLOOKUP($G20,DrawPrep!$L$3:$N$18,3,FALSE),"") -> 2ο ΓΕΛ ΒΡΙΛΗΣΣΙΩΝ | P20: =UPPER(IF($A$2="R",IF(OR(O20=1,O20="a"),P12,IF(OR(O20=2,O20="b"),P28,"")),IF(OR(O20=1,O20="a"),P12,IF(OR(O20=2,O20="b"),P28,"")))) ->  | X20: 23192 | Y20: ΚΟΥΤΣΑΦΤΗΣ ΑΠΟΣΤΟΛΟΣ
A21: 9 | B21: =VALUE(Setup!E3) -> 4 | D21: =D19+E21 -> 1 | E21: 0 | F21: =VLOOKUP($B21,Setup!$G$12:$H$27,2,FALSE) -> 4 | G21: =IF(Setup!$B$25="#",0,IF(F21>0,VLOOKUP(F21,DrawPrep!$A$3:$N$18,7,FALSE),0)) -> 29120 | H21: =IF(G21>0,VLOOKUP(G21,DrawPrep!$G$3:$L$18,2,FALSE),"bye") -> ΜΑΝΤΟΠΟΥΛΟΣ ΑΝΔΡΕΑΣ | I21: ΜΑΝΤΟΠΟΥΛΟΣ | J21: =IF($G21>0,VLOOKUP($G21,DrawPrep!$G$3:$L$18,3,FALSE),"") -> ΙΔ.ΓΕΛ ΕΛΛΗΝΙΚΟ ΚΟΛΛΕΓΙΟ | L21: =UPPER(IF($A$2="R",IF(OR(K22=1,K22="a"),G21,IF(OR(K22=2,K22="b"),G23,"")),IF(OR(K22=1,K22="1"),I21,IF(OR(K22=2,K22="b"),I23,"")))) ->  | X21: 29120 | Y21: ΜΑΝΤΟΠΟΥΛΟΣ ΑΝΔΡΕΑΣ | AC21: 0
G22: =IF(Setup!$B$25="#",0,IF(F21>0,VLOOKUP(F21,DrawPrep!$A$3:$N$18,12,FALSE),0)) -> 25875 | H22: =IF(G22>0,VLOOKUP(G22,DrawPrep!$L$3:$N$18,2,FALSE)," ") -> ΛΑΖΑΡΙΔΗΣ ΚΩΝΣΤΑΝΤΙΝΟΣ | I22: ΛΑΖΑΡΙΔΗΣ | J22: =IF($G22>0,VLOOKUP($G22,DrawPrep!$L$3:$N$18,3,FALSE),"") -> ΙΔ.ΓΕΛ ΕΛΛΗΝΙΚΟ ΚΟΛΛΕΓΙΟ | L22: =UPPER(IF($A$2="R",IF(OR(K22=1,K22="a"),G22,IF(OR(K22=2,K22="b"),G24,"")),IF(OR(K22=1,K22="1"),I22,IF(OR(K22=2,K22="b"),I24,"")))) ->  | X22: 25875 | Y22: ΛΑΖΑΡΙΔΗΣ ΚΩΝΣΤΑΝΤΙΝΟΣ
A23: 10 | B23: =7-D23+4 -> 10 | C23: =VALUE(Setup!E3) -> 4 | D23: =D21+E23 -> 1 | E23: =IF($B$2>=C23,1,0) -> 0 | F23: =IF($B$2>=C23,"-",VLOOKUP($B23,Setup!$G$12:$H$27,2,FALSE)) -> 15 | G23: =IF(Setup!$B$25="#",0,IF(NOT(F23="-"),VLOOKUP(F23,DrawPrep!$A$3:$N$18,7,FALSE),0)) -> 25243 | H23: =IF(G23>0,VLOOKUP(G23,DrawPrep!$G$3:$L$18,2,FALSE),"bye") -> ΜΑΡΟΥΛΗΣ ΧΑΡΑΛΑΜΠΟΣ | I23: ΜΑΡΟΥΛΗΣ | J23: =IF($G23>0,VLOOKUP($G23,DrawPrep!$G$3:$L$18,3,FALSE),"") -> ΑΡΣΑΚΕΙΟ ΠΑΤΡΩΝ | N23: =UPPER(IF($A$2="R",IF(OR(M24=1,M24="a"),L21,IF(OR(M24=2,M23="b"),L25,"")),IF(OR(M24=1,M24="a"),L21,IF(OR(M24=2,M24="b"),L25,"")))) ->  | X23: 25243 | Y23: ΜΑΡΟΥΛΗΣ ΧΑΡΑΛΑΜΠΟΣ | AA23: 0
G24: =IF(Setup!$B$25="#",0,IF(NOT(F23="-"),VLOOKUP(F23,DrawPrep!$A$3:$N$18,12,FALSE),0)) -> 32290 | H24: =IF(G24>0,VLOOKUP(G24,DrawPrep!$L$3:$N$18,2,FALSE)," ") -> ΛΑYΡΑΝΟΣ ΓΡΗΓΟΡΗΣ | I24: ΛΑYΡΑΝΟΣ | J24: =IF($G24>0,VLOOKUP($G24,DrawPrep!$L$3:$N$18,3,FALSE),"") -> ΓΕΛ ΡΙΟΥ | N24: =UPPER(IF($A$2="R",IF(OR(M24=1,M24="a"),L22,IF(OR(M24=2,M24="b"),L26,"")),IF(OR(M24=1,M24="a"),L22,IF(OR(M24=2,M24="b"),L26,"")))) ->  | X24: 32290 | Y24: ΛΑYΡΑΝΟΣ ΓΡΗΓΟΡΗΣ
A25: 11 | B25: =8-D25+4 -> 11 | D25: =D23+E25 -> 1 | E25: 0 | F25: =VLOOKUP($B25,Setup!$G$12:$H$27,2,FALSE) -> 12 | G25: =IF(Setup!$B$25="#",0,IF(F25>0,VLOOKUP(F25,DrawPrep!$A$3:$N$18,7,FALSE),0)) -> 24053 | H25: =IF(G25>0,VLOOKUP(G25,DrawPrep!$G$3:$L$18,2,FALSE),"bye") -> ΙΩΑΝΝΙΔΗΣ ΙΩΑΝΝΗΣ | I25: ΙΩΑΝΝΙΔΗΣ | J25: =IF($G25>0,VLOOKUP($G25,DrawPrep!$G$3:$L$18,3,FALSE),"") -> 3ο ΓΕΛ ΑΓ. ΠΑΡΑΣΚΕΥΗΣ | L25: =UPPER(IF($A$2="R",IF(OR(K26=1,K26="a"),G25,IF(OR(K26=2,K26="b"),G27,"")),IF(OR(K26=1,K26="1"),I25,IF(OR(K26=2,K26="b"),I27,"")))) ->  | X25: 24053 | Y25: ΙΩΑΝΝΙΔΗΣ ΙΩΑΝΝΗΣ | AB25: 0
G26: =IF(Setup!$B$25="#",0,IF(F25>0,VLOOKUP(F25,DrawPrep!$A$3:$N$18,12,FALSE),0)) -> 24054 | H26: =IF(G26>0,VLOOKUP(G26,DrawPrep!$L$3:$N$18,2,FALSE)," ") -> ΙΩΑΝΝΙΔΗΣ ΠΑΝΤΕΛΕΗΜΩΝ | I26: ΙΩΑΝΝΙΔΗΣ | J26: =IF($G26>0,VLOOKUP($G26,DrawPrep!$L$3:$N$18,3,FALSE),"") -> 3ο ΓΕΛ ΑΓ. ΠΑΡΑΣΚΕΥΗΣ | L26: =UPPER(IF($A$2="R",IF(OR(K26=1,K26="a"),G26,IF(OR(K26=2,K26="b"),G28,"")),IF(OR(K26=1,K26="1"),I26,IF(OR(K26=2,K26="b"),I28,"")))) ->  | X26: 24054 | Y26: ΙΩΑΝΝΙΔΗΣ ΠΑΝΤΕΛΕΗΜΩΝ
A27: 12 | B27: =9-D27+4 -> 12 | C27: 6 | D27: =D25+E27 -> 1 | E27: =IF($B$2>=C27,1,0) -> 0 | F27: =IF($B$2>=C27,"-",VLOOKUP($B27,Setup!$G$12:$H$27,2,FALSE)) -> 6 | G27: =IF(Setup!$B$25="#",0,IF(NOT(F27="-"),VLOOKUP(F27,DrawPrep!$A$3:$N$18,7,FALSE),0)) -> 27879 | H27: =IF(G27>0,VLOOKUP(G27,DrawPrep!$G$3:$L$18,2,FALSE),"bye") -> ΚΙΣΣΑΣ ΧΡΗΣΤΟΣ-ΕΥΑΓΓΕΛΟΣ | I27: ΚΙΣΣΑΣ | J27: =IF($G27>0,VLOOKUP($G27,DrawPrep!$G$3:$L$18,3,FALSE),"") -> 1ο ΓΕΛ ΚΙΑΤΟΥ | P27: =UPPER(IF($A$2="R",IF(OR(O28=1,O28="a"),N23,IF(OR(O28=2,O28="b"),N31,"")),IF(OR(O28=1,O28="a"),N23,IF(OR(O28=2,O28="b"),N31,"")))) ->  | X27: 27879 | Y27: ΚΙΣΣΑΣ ΧΡΗΣΤΟΣ-ΕΥΑΓΓΕΛΟΣ | AA27: 0
G28: =IF(Setup!$B$25="#",0,IF(NOT(F27="-"),VLOOKUP(F27,DrawPrep!$A$3:$N$18,12,FALSE),0)) -> 22866 | H28: =IF(G28>0,VLOOKUP(G28,DrawPrep!$L$3:$N$18,2,FALSE)," ") -> ΚΟΝΤΟΠΟΥΛΟΣ ΘΕΟΦΑΝΗΣ | I28: ΚΟΝΤΟΠΟΥΛΟΣ | J28: =IF($G28>0,VLOOKUP($G28,DrawPrep!$L$3:$N$18,3,FALSE),"") -> 2ο ΓΕΛ ΚΟΡΙΝΘΟΥ | P28: =UPPER(IF($A$2="R",IF(OR(O28=1,O28="a"),N24,IF(OR(O28=2,O28="b"),N32,"")),IF(OR(O28=1,O28="a"),N24,IF(OR(O28=2,O28="b"),N32,"")))) ->  | X28: 22866 | Y28: ΚΟΝΤΟΠΟΥΛΟΣ ΘΕΟΦΑΝΗΣ
A29: 13 | B29: =10-D29+4 -> 13 | D29: =D27+E29 -> 1 | E29: 0 | F29: =VLOOKUP($B29,Setup!$G$12:$H$27,2,FALSE) -> 9 | G29: =IF(Setup!$B$25="#",0,IF(F29>0,VLOOKUP(F29,DrawPrep!$A$3:$N$18,7,FALSE),0)) -> 25240 | H29: =IF(G29>0,VLOOKUP(G29,DrawPrep!$G$3:$L$18,2,FALSE),"bye") -> ΔΗΜΟΠΟΥΛΟΣ ΠΛΑΤΩΝ ΜΑΡΙΟΣ | I29: ΔΗΜΟΠΟΥΛΟΣ | J29: =IF($G29>0,VLOOKUP($G29,DrawPrep!$G$3:$L$18,3,FALSE),"") -> ΠΕΙΡΑΜΑΤΙΚΟ ΡΙΟΥ | L29: =UPPER(IF($A$2="R",IF(OR(K30=1,K30="a"),G29,IF(OR(K30=2,K30="b"),G31,"")),IF(OR(K30=1,K30="1"),I29,IF(OR(K30=2,K30="b"),I31,"")))) ->  | X29: 25240 | Y29: ΔΗΜΟΠΟΥΛΟΣ ΠΛΑΤΩΝ ΜΑΡΙΟΣ | AC29: 0
G30: =IF(Setup!$B$25="#",0,IF(F29>0,VLOOKUP(F29,DrawPrep!$A$3:$N$18,12,FALSE),0)) -> 23357 | H30: =IF(G30>0,VLOOKUP(G30,DrawPrep!$L$3:$N$18,2,FALSE)," ") -> ΑΝΔΡΟΥΤΣΕΛΗΣ ΑΛΕΞΙΟΣ | I30: ΑΝΔΡΟΥΤΣΕΛΗΣ | J30: =IF($G30>0,VLOOKUP($G30,DrawPrep!$L$3:$N$18,3,FALSE),"") -> ΠΕΙΡΑΜΑΤΙΚΟ ΡΙΟΥ | L30: =UPPER(IF($A$2="R",IF(OR(K30=1,K30="a"),G30,IF(OR(K30=2,K30="b"),G32,"")),IF(OR(K30=1,K30="1"),I30,IF(OR(K30=2,K30="b"),I32,"")))) ->  | X30: 23357 | Y30: ΑΝΔΡΟΥΤΣΕΛΗΣ ΑΛΕΞΙΟΣ
A31: 14 | B31: =11-D31+4 -> 14 | C31: 8 | D31: =D29+E31 -> 1 | E31: =IF($B$2>=C31,1,0) -> 0 | F31: =IF($B$2>=C31,"-",VLOOKUP($B31,Setup!$G$12:$H$27,2,FALSE)) -> 7 | G31: =IF(Setup!$B$25="#",0,IF(NOT(F31="-"),VLOOKUP(F31,DrawPrep!$A$3:$N$18,7,FALSE),0)) -> 22834 | H31: =IF(G31>0,VLOOKUP(G31,DrawPrep!$G$3:$L$18,2,FALSE),"bye") -> ΑΔΑΛΟΓΛΟΥ ΛΑΖΑΡΟΣ | I31: ΑΔΑΛΟΓΛΟΥ | J31: =IF($G31>0,VLOOKUP($G31,DrawPrep!$G$3:$L$18,3,FALSE),"") -> 3ο ΓΕΛ ΒΕΡΟΙΑΣ | N31: =UPPER(IF($A$2="R",IF(OR(M32=1,M32="a"),L29,IF(OR(M32=2,M31="b"),L33,"")),IF(OR(M32=1,M32="a"),L29,IF(OR(M32=2,M32="b"),L33,"")))) ->  | X31: 22834 | Y31: ΑΔΑΛΟΓΛΟΥ ΛΑΖΑΡΟΣ | AA31: 0
G32: =IF(Setup!$B$25="#",0,IF(NOT(F31="-"),VLOOKUP(F31,DrawPrep!$A$3:$N$18,12,FALSE),0)) -> 29652 | H32: =IF(G32>0,VLOOKUP(G32,DrawPrep!$L$3:$N$18,2,FALSE)," ") -> ΚΟΣΚΙΝΑΣ ΝΙΚΟΛΑΟΣ | I32: ΚΟΣΚΙΝΑΣ | J32: =IF($G32>0,VLOOKUP($G32,DrawPrep!$L$3:$N$18,3,FALSE),"") -> 3ο ΓΕΛ ΚΕΡΚΥΡΑΣ | N32: =UPPER(IF($A$2="R",IF(OR(M32=1,M32="a"),L30,IF(OR(M32=2,M32="b"),L34,"")),IF(OR(M32=1,M32="a"),L30,IF(OR(M32=2,M32="b"),L34,"")))) ->  | X32: 29652 | Y32: ΚΟΣΚΙΝΑΣ ΝΙΚΟΛΑΟΣ
A33: 15 | B33: =12-D33+4 -> 15 | C33: 2 | D33: =D31+E33 -> 1 | E33: =IF($B$2>=C33,1,0) -> 0 | F33: =IF($B$2>=C33,"-",VLOOKUP($B33,Setup!$G$12:$H$27,2,FALSE)) -> 13 | G33: =IF(Setup!$B$25="#",0,IF(NOT(F33="-"),VLOOKUP(F33,DrawPrep!$A$3:$N$18,7,FALSE),0)) -> 24168 | H33: =IF(G33>0,VLOOKUP(G33,DrawPrep!$G$3:$L$18,2,FALSE),"bye") -> ΜΙΧΑΗΛΟΣ ΣΤΕΦΑΝΟΣ | I33: ΜΙΧΑΗΛΟΣ | J33: =IF($G33>0,VLOOKUP($G33,DrawPrep!$G$3:$L$18,3,FALSE),"") -> 3ο ΓΕΛ ΗΡΑΚΛΕΙΟΥ | L33: =UPPER(IF($A$2="R",IF(OR(K34=1,K34="a"),G33,IF(OR(K34=2,K34="b"),G35,"")),IF(OR(K34=1,K34="1"),I33,IF(OR(K34=2,K34="b"),I35,"")))) ->  | X33: 24168 | Y33: ΜΙΧΑΗΛΟΣ ΣΤΕΦΑΝΟΣ | AB33: 0
G34: =IF(Setup!$B$25="#",0,IF(NOT(F33="-"),VLOOKUP(F33,DrawPrep!$A$3:$N$18,12,FALSE),0)) -> 24165 | H34: =IF(G34>0,VLOOKUP(G34,DrawPrep!$L$3:$N$18,2,FALSE)," ") -> ΠΕΡΔΙΚΟΓΙΑΝΝΗΣ ΣΤΥΛΙΑΝΟΣ | I34: ΠΕΡΔΙΚΟΓΙΑΝΝΗΣ | J34: =IF($G34>0,VLOOKUP($G34,DrawPrep!$L$3:$N$18,3,FALSE),"") -> 8ο ΓΕΛ ΗΡΑΚΛΕΙΟΥ | L34: =UPPER(IF($A$2="R",IF(OR(K34=1,K34="a"),G34,IF(OR(K34=2,K34="b"),G36,"")),IF(OR(K34=1,K34="1"),I34,IF(OR(K34=2,K34="b"),I36,"")))) ->  | X34: 24165 | Y34: ΠΕΡΔΙΚΟΓΙΑΝΝΗΣ ΣΤΥΛΙΑΝΟΣ
A35: 16 | B35: 2 | D35: =D33+E35 -> 1 | E35: 0 | F35: =VLOOKUP($B35,Setup!$G$12:$H$27,2,FALSE) -> 2 | G35: =IF(Setup!$B$25="#",0,IF(F35>0,VLOOKUP(F35,DrawPrep!$A$3:$N$18,7,FALSE),0)) -> 23517 | H35: =IF(G35>0,VLOOKUP(G35,DrawPrep!$G$3:$L$18,2,FALSE),"bye") -> ΤΣΙΡΑΝΙΔΗΣ ΕΥΣΤΑΘΙΟΣ | I35: ΤΣΙΡΑΝΙΔΗΣ | J35: =IF($G35>0,VLOOKUP($G35,DrawPrep!$G$3:$L$18,3,FALSE),"") -> 2ο ΓΕΛ ΠΤΟΛΕΜΑΪΔΑΣ | X35: 23517 | Y35: ΤΣΙΡΑΝΙΔΗΣ ΕΥΣΤΑΘΙΟΣ | AA35: 0
G36: =IF(Setup!$B$25="#",0,IF(F35>0,VLOOKUP(F35,DrawPrep!$A$3:$N$18,12,FALSE),0)) -> 23645 | H36: =IF(G36>0,VLOOKUP(G36,DrawPrep!$L$3:$N$18,2,FALSE)," ") -> ΝΑΚΑΣ ΚΩΝΣΤΑΝΤΙΝΟΣ | I36: ΝΑΚΑΣ | J36: =IF($G36>0,VLOOKUP($G36,DrawPrep!$L$3:$N$18,3,FALSE),"") -> 1ο ΓΕΛ ΚΟΖΑΝΗΣ | X36: 23645 | Y36: ΝΑΚΑΣ ΚΩΝΣΤΑΝΤΙΝΟΣ
H40: seeded players | P40: επιδιαιτητής
H41: ="1. " & IF(Setup!$B$19>0,LEFT(DrawPrep!$H$3,FIND(" ",DrawPrep!$H$3)+1)&" - "&LEFT(DrawPrep!$M$3,FIND(" ",DrawPrep!$M$3)+1),"") -> 1. ΑΝΤΩΝΟΠΟΥΛΟΣ Χ - ΚΑΖΑΝΤΖΗΣ Μ | P41: =Setup!$B$10 -> Γ.Καζάνης
H42: ="2. " & IF(Setup!$B$19>1,LEFT(DrawPrep!$H$4,FIND(" ",DrawPrep!$H$4)+1)&" - "&LEFT(DrawPrep!$M$4,FIND(" ",DrawPrep!$M$4)+1),"") -> 2. ΤΣΙΡΑΝΙΔΗΣ Ε - ΝΑΚΑΣ Κ
H43: ="3. " & IF(Setup!$B$19>2,LEFT(DrawPrep!$H$5,FIND(" ",DrawPrep!$H$5)+1)&" - "&LEFT(DrawPrep!$M$5,FIND(" ",DrawPrep!$M$5)+1),"") -> 3. ΦΩΤΕΙΝΟΠΟΥΛΟΣ Κ - ΚΟΥΤΣΑΦΤΗΣ Α
H44: ="4. " & IF(Setup!$B$19>3,LEFT(DrawPrep!$H$6,FIND(" ",DrawPrep!$H$6)+1)&" - "&LEFT(DrawPrep!$M$6,FIND(" ",DrawPrep!$M$6)+1),"") -> 4. ΜΑΝΤΟΠΟΥΛΟΣ Α - ΛΑΖΑΡΙΔΗΣ Κ
H59: BoldPlayers
H60: =IF(Setup!$B$19>0,LEFT(DrawPrep!$H$3,FIND(" ",DrawPrep!$H$3)-1)) -> ΑΝΤΩΝΟΠΟΥΛΟΣ
H61: =IF(Setup!$B$19>0,LEFT(DrawPrep!$M$3,FIND(" ",DrawPrep!$M$3)-1),"") -> ΚΑΖΑΝΤΖΗΣ
H62: =IF(Setup!$B$19>0,LEFT(DrawPrep!$H$4,FIND(" ",DrawPrep!$H$4)-1)) -> ΤΣΙΡΑΝΙΔΗΣ
H63: =IF(Setup!$B$19>0,LEFT(DrawPrep!$M$4,FIND(" ",DrawPrep!$M$4)-1),"") -> ΝΑΚΑΣ
H64: =IF(Setup!$B$19>0,LEFT(DrawPrep!$H$5,FIND(" ",DrawPrep!$H$5)-1)) -> ΦΩΤΕΙΝΟΠΟΥΛΟΣ
H65: =IF(Setup!$B$19>0,LEFT(DrawPrep!$M$5,FIND(" ",DrawPrep!$M$5)-1),"") -> ΚΟΥΤΣΑΦΤΗΣ
H66: =IF(Setup!$B$19>0,LEFT(DrawPrep!$H$6,FIND(" ",DrawPrep!$H$6)-1)) -> ΜΑΝΤΟΠΟΥΛΟΣ
H67: =IF(Setup!$B$19>0,LEFT(DrawPrep!$M$6,FIND(" ",DrawPrep!$M$6)-1),"") -> ΛΑΖΑΡΙΔΗΣ

Sheet Matches
A1: =CONCATENATE(Setup!B3,", ",Setup!B4,", ",Setup!B6) -> Υπ.Παιδείας, Σχολικό Πρωτάθλημα 2014, ΑΕΤ ΝΙΚΗ ΠΑΤΡΩΝ
A2: =Setup!$B$10 -> Γ.Καζάνης
A3: Πρόγραμμα αγώνων | E3: Round 1 | F3: i
A4: ΩΡΑ | B4: Κτγρ. | C4: Αθλητές ζευγάρι α' | E4: Αθλητές ζευγάρι β'
A5: Έναρξη
A9: όχι πριν
A16: Πρόγραμμα αγώνων | E16: Round 2 | F16: i
A17: ΩΡΑ | B17: Κτγρ. | C17: Αθλητές ζευγάρι α' | E17: Αθλητές ζευγάρι β'
A18: Έναρξη

Sheet notes

Sheet Rankings
A1: Α.Μ. | B1: Ονοματεπώνυμο | C1: Σύλλογος | D1: Βαθμ | E1: Διπλά | F1: week 12
A4341: 12-23775 | B4341: ΑΝΤΩΝΟΠΟΥΛΟΣ ΧΡΗΣΤΟΣ | C4341: 1ο ΓΕΛ ΝΙΚΑΙΑΣ | D4341: 940
A4342: 12-23517 | B4342: ΤΣΙΡΑΝΙΔΗΣ ΕΥΣΤΑΘΙΟΣ | C4342: 2ο ΓΕΛ ΠΤΟΛΕΜΑΪΔΑΣ | D4342: 690
A4343: 12-25875 | B4343: ΛΑΖΑΡΙΔΗΣ ΚΩΝΣΤΑΝΤΙΝΟΣ | C4343: ΙΔ.ΓΕΛ ΕΛΛΗΝΙΚΟ ΚΟΛΛΕΓΙΟ | D4343: 504
A4344: 12-23661 | B4344: ΦΩΤΕΙΝΟΠΟΥΛΟΣ ΚΩΝΣΤΑΝΤΙΝΟΣ | C4344: ΙΔ.ΕΝ.ΛΥΚΕΙΟ ΘΕΟΜΗΤΩΡ | D4344: 368.5
A4345: 12-23234 | B4345: ΚΑΖΑΝΤΖΗΣ ΜΙΧΑΗΛ-ΤΟΥΒ | C4345: ΚΟΛΛΕΓΙΟ ΑΘΗΝΩΝ | D4345: 303.5
A4346: 12-26603 | B4346: ΔΕΛΛΗΣ ΑΝΔΡΕΑΣ-ΑΛΕΞΑΝΔΡΟΣ | C4346: 2ο ΓΕΛ ΑΡΓΟΥΣ | D4346: 293
A4347: 12-22866 | B4347: ΚΟΝΤΟΠΟΥΛΟΣ ΘΕΟΦΑΝΗΣ | C4347: 2ο ΓΕΛ ΚΟΡΙΝΘΟΥ | D4347: 286
A4348: 12-22965 | B4348: ΚΟΡΔΟΣ ΙΩΑΝΝΗΣ | C4348: ΙΔΙΩΤ.ΓΕΝ. ΛΥΚΕΙΟ ΠΡΟΤΥΠΟ ΑΘΗΝΩΝ | D4348: 276
A4349: 12-25240 | B4349: ΔΗΜΟΠΟΥΛΟΣ ΠΛΑΤΩΝ ΜΑΡΙΟΣ | C4349: ΠΕΙΡΑΜΑΤΙΚΟ ΡΙΟΥ | D4349: 265.5
A4350: 12-29652 | B4350: ΚΟΣΚΙΝΑΣ ΝΙΚΟΛΑΟΣ | C4350: 3ο ΓΕΛ ΚΕΡΚΥΡΑΣ | D4350: 252
A4351: 12-23192 | B4351: ΚΟΥΤΣΑΦΤΗΣ ΑΠΟΣΤΟΛΟΣ | C4351: 2ο ΓΕΛ ΒΡΙΛΗΣΣΙΩΝ | D4351: 250.5
A4352: 12-23662 | B4352: ΤΑΣΟΥΛΗΣ ΒΑΣΙΛΕΙΟΣ | C4352: 3ο ΓΕΛ ΗΛΙΟΥΠΟΛΗΣ | D4352: 219.5
A4353: 12-22834 | B4353: ΑΔΑΛΟΓΛΟΥ ΛΑΖΑΡΟΣ | C4353: 3ο ΓΕΛ ΒΕΡΟΙΑΣ | D4353: 210.5
A4354: 12-25503 | B4354: ΠΑΡΑΣΧΑΚΗΣ ΝΙΚΟΛΑΟΣ | C4354: 1ο ΓΕΛ Ν.ΙΩΝΙΑΣ | D4354: 206
A4355: 12-26210 | B4355: ΚΟΝΤΩΣΗΣ ΓΕΩΡΓΙΟΣ | C4355: ΛΕΟΝΤΕΙΟ ΛΥΚΕΙΟ ΠΑΤΗΣΙΩΝ | D4355: 197.5
A4356: 12-24168 | B4356: ΜΙΧΑΗΛΟΣ ΣΤΕΦΑΝΟΣ | C4356: 3ο ΓΕΛ ΗΡΑΚΛΕΙΟΥ | D4356: 190
A4357: 12-24053 | B4357: ΙΩΑΝΝΙΔΗΣ ΙΩΑΝΝΗΣ | C4357: 3ο ΓΕΛ ΑΓ. ΠΑΡΑΣΚΕΥΗΣ | D4357: 183
A4358: 12-27879 | B4358: ΚΙΣΣΑΣ ΧΡΗΣΤΟΣ-ΕΥΑΓΓΕΛΟΣ | C4358: 1ο ΓΕΛ ΚΙΑΤΟΥ | D4358: 180
A4359: 12-25273 | B4359: ΤΣΟΝΑΚΗΣ ΚΩΝΣΤΑΝΤΙΝΟΣ | C4359: 1ο ΓΕΛ ΠΑΠΑΓΟΥ | D4359: 169
A4360: 12-25351 | B4360: ΔΙΑΜΑΝΤΟΠΟΥΛΟΣ ΓΕΩΡΓΙΟΣ | C4360: ΚΟΛΛΕΓΙΟ ΨΥΧΙΚΟΥ | D4360: 158
A4361: 12-23357 | B4361: ΑΝΔΡΟΥΤΣΕΛΗΣ ΑΛΕΞΙΟΣ | C4361: ΠΕΙΡΑΜΑΤΙΚΟ ΡΙΟΥ | D4361: 157.5
A4362: 12-24054 | B4362: ΙΩΑΝΝΙΔΗΣ ΠΑΝΤΕΛΕΗΜΩΝ | C4362: 3ο ΓΕΛ ΑΓ. ΠΑΡΑΣΚΕΥΗΣ | D4362: 155
A4363: 12-25238 | B4363: ΤΖΕΛΑΤΗΣ ΣΤΕΦΑΝΟΣ | C4363: 1ο ΓΕΛ ΡΑΦΗΝΑΣ | D4363: 152
A4364: 12-26604 | B4364: ΔΕΛΛΗΣ ΧΡΙΣΤΟΣ-ΕΡΡΙΚΟΣ | C4364: 2ο ΓΕΛ ΑΡΓΟΥΣ | D4364: 151
A4365: 12-25243 | B4365: ΜΑΡΟΥΛΗΣ ΧΑΡΑΛΑΜΠΟΣ | C4365: ΑΡΣΑΚΕΙΟ ΠΑΤΡΩΝ | D4365: 149
A4366: 12-23093 | B4366: ΚΑΛΔΕΡΩΝ ΖΑΚ | C4366: ΓΕΛ ΛΑΡΙΣΑΣ | D4366: 141.5
A4367: 12-24165 | B4367: ΠΕΡΔΙΚΟΓΙΑΝΝΗΣ ΣΤΥΛΙΑΝΟΣ | C4367: 8ο ΓΕΛ ΗΡΑΚΛΕΙΟΥ | D4367: 140
A4368: 12-32290 | B4368: ΛΑYΡΑΝΟΣ ΓΡΗΓΟΡΗΣ | C4368: ΓΕΛ ΡΙΟΥ | D4368: 66
A4369: 12-23645 | B4369: ΝΑΚΑΣ ΚΩΝΣΤΑΝΤΙΝΟΣ | C4369: 1ο ΓΕΛ ΚΟΖΑΝΗΣ | D4369: 47.5
A4370: 12-34974 | B4370: ΣΚΑΡΠΟΣ ΧΡΗΣΤΟΣ | C4370: 1ο ΓΕΛ ΗΓΟΥΜΕΝΙΤΣΑΣ | D4370: 0
A4371: 12-29120 | B4371: ΜΑΝΤΟΠΟΥΛΟΣ ΑΝΔΡΕΑΣ | C4371: ΙΔ.ΓΕΛ ΕΛΛΗΝΙΚΟ ΚΟΛΛΕΓΙΟ | D4371: 0

Sheet CalcPrg
A1: =CONCATENATE(Setup!B3,", ",Setup!B4,", ",Setup!B6) -> Υπ.Παιδείας, Σχολικό Πρωτάθλημα 2014, ΑΕΤ ΝΙΚΗ ΠΑΤΡΩΝ | G1: Don't Change this Worksheet !
A2: =Setup!$B$10 -> Γ.Καζάνης
A3: Πρόγραμμα αγώνων | E3: Round 1 | F3: i
A4: ΩΡΑ | B4: Κτγρ. | C4: Αθλητές ζευγάρι α' | E4: Αθλητές ζευγάρι β'
A5: Έναρξη | B5: =Setup!$B$7 -> Αγόρια Δ | C5: =IF(MD!H5="bye","", LEFT(MD!H5,FIND(" ",MD!H5)+1) & " - " & LEFT(MD!H6,FIND(" ",MD!H6)+1)) -> ΑΝΤΩΝΟΠΟΥΛΟΣ Χ - ΚΑΖΑΝΤΖΗΣ Μ | D5: =IF(OR(C5="",E5="")," ","-") ->  | E5: =IF(MD!H7="bye","", LEFT(MD!H7,FIND(" ",MD!H7)+1) & " - " & LEFT(MD!H8,FIND(" ",MD!H8)+1)) -> 
B6: =Setup!$B$7 -> Αγόρια Δ | C6: =IF(MD!H9="bye","", LEFT(MD!H9,FIND(" ",MD!H9)+1) & " - " & LEFT(MD!H10,FIND(" ",MD!H10)+1)) -> ΠΑΡΑΣΧΑΚΗΣ Ν - ΚΑΛΔΕΡΩΝ Ζ | D6: - | E6: =IF(MD!H11="bye","", LEFT(MD!H11,FIND(" ",MD!H11)+1) & " - " & LEFT(MD!H12,FIND(" ",MD!H12)+1)) -> ΤΑΣΟΥΛΗΣ Β - ΚΟΡΔΟΣ Ι
B7: =Setup!$B$7 -> Αγόρια Δ | C7: =IF(MD!H13="bye","", LEFT(MD!H13,FIND(" ",MD!H13)+1) & " - " & LEFT(MD!H14,FIND(" ",MD!H14)+1)) -> ΔΕΛΛΗΣ Α - ΔΕΛΛΗΣ Χ | D7: - | E7: =IF(MD!H15="bye","", LEFT(MD!H15,FIND(" ",MD!H15)+1) & " - " & LEFT(MD!H16,FIND(" ",MD!H16)+1)) -> ΤΖΕΛΑΤΗΣ Σ - ΤΣΟΝΑΚΗΣ Κ
B8: =Setup!$B$7 -> Αγόρια Δ | C8: =IF(MD!H17="bye","", LEFT(MD!H17,FIND(" ",MD!H17)+1) & " - " & LEFT(MD!H18,FIND(" ",MD!H18)+1)) -> ΔΙΑΜΑΝΤΟΠΟΥΛΟΣ Γ - ΚΟΝΤΩΣΗΣ Γ | D8: - | E8: =IF(MD!H19="bye","", LEFT(MD!H19,FIND(" ",MD!H19)+1) & " - " & LEFT(MD!H20,FIND(" ",MD!H20)+1)) -> ΦΩΤΕΙΝΟΠΟΥΛΟΣ Κ - ΚΟΥΤΣΑΦΤΗΣ Α
A9: όχι πριν | B9: =Setup!$B$7 -> Αγόρια Δ | C9: =IF(MD!H21="bye","", LEFT(MD!H21,FIND(" ",MD!H21)+1) & " - " & LEFT(MD!H22,FIND(" ",MD!H22)+1)) -> ΜΑΝΤΟΠΟΥΛΟΣ Α - ΛΑΖΑΡΙΔΗΣ Κ | D9: - | E9: =IF(MD!H23="bye","", LEFT(MD!H23,FIND(" ",MD!H23)+1) & " - " & LEFT(MD!H24,FIND(" ",MD!H24)+1)) -> ΜΑΡΟΥΛΗΣ Χ - ΛΑYΡΑΝΟΣ Γ
B10: =Setup!$B$7 -> Αγόρια Δ | C10: =IF(MD!H25="bye","", LEFT(MD!H25,FIND(" ",MD!H25)+1) & " - " & LEFT(MD!H26,FIND(" ",MD!H26)+1)) -> ΙΩΑΝΝΙΔΗΣ Ι - ΙΩΑΝΝΙΔΗΣ Π | D10: - | E10: =IF(MD!H27="bye","", LEFT(MD!H27,FIND(" ",MD!H27)+1) & " - " & LEFT(MD!H28,FIND(" ",MD!H28)+1)) -> ΚΙΣΣΑΣ Χ - ΚΟΝΤΟΠΟΥΛΟΣ Θ
B11: =Setup!$B$7 -> Αγόρια Δ | C11: =IF(MD!H29="bye","", LEFT(MD!H29,FIND(" ",MD!H29)+1) & " - " & LEFT(MD!H30,FIND(" ",MD!H30)+1)) -> ΔΗΜΟΠΟΥΛΟΣ Π - ΑΝΔΡΟΥΤΣΕΛΗΣ Α | D11: - | E11: =IF(MD!H31="bye","", LEFT(MD!H31,FIND(" ",MD!H31)+1) & " - " & LEFT(MD!H32,FIND(" ",MD!H32)+1)) -> ΑΔΑΛΟΓΛΟΥ Λ - ΚΟΣΚΙΝΑΣ Ν
B12: =Setup!$B$7 -> Αγόρια Δ | C12: =IF(MD!H33="bye","", LEFT(MD!H33,FIND(" ",MD!H33)+1) & " - " & LEFT(MD!H34,FIND(" ",MD!H34)+1)) -> ΜΙΧΑΗΛΟΣ Σ - ΠΕΡΔΙΚΟΓΙΑΝΝΗΣ Σ | D12: - | E12: =IF(MD!H35="bye","", LEFT(MD!H35,FIND(" ",MD!H35)+1) & " - " & LEFT(MD!H36,FIND(" ",MD!H36)+1)) -> ΤΣΙΡΑΝΙΔΗΣ Ε - ΝΑΚΑΣ Κ
A16: Πρόγραμμα αγώνων | E16: Round 2 | F16: i
A17: ΩΡΑ | B17: Κτγρ. | C17: Αθλητές ζευγάρι α' | E17: Αθλητές ζευγάρι β'
A18: Έναρξη | B18: =Setup!$B$7 -> Αγόρια Δ | C18: =MD!L5 & " - " & MD!L6 -> ΑΝΤΩΝΟΠΟΥΛΟΣ - ΚΑΖΑΝΤΖΗΣ | D18: =IF(OR(C18="",E18="")," ","-") -> - | E18: =MD!L9 & " - " & MD!L10 -> -
B19: =Setup!$B$7 -> Αγόρια Δ | C19: =MD!L13 & " - " & MD!L14 -> - | D19: =IF(OR(C19="",E19="")," ","-") -> - | E19: =MD!L17 & " - " & MD!L18 -> -
B20: =Setup!$B$7 -> Αγόρια Δ | C20: =MD!L21 & " - " & MD!L22 -> - | D20: =IF(OR(C20="",E20="")," ","-") -> - | E20: =MD!L25 & " - " & MD!L26 -> -
B21: =Setup!$B$7 -> Αγόρια Δ | C21: =MD!L29 & " - " & MD!L30 -> - | D21: =IF(OR(C21="",E21="")," ","-") -> - | E21: =MD!L33 & " - " & MD!L34 -> -
A25: Don't Change this Worksheet !

Sheet tmp
A1: RndIndx | B1: random | C1: FixRandom | I1: ΠΡΟΚΡΙΜΑΤΙΚΑ E1, E2 (32 για 8)
A2: 1 | B2: =RAND()/22 -> 0.02840732729 | C2: 0.04304699467 | K2: 17-32 | L2: 9-16 | M2: 5-8 | N2: 3-4 | O2: 2ος | P2: 1ος | S2: 17-32 | T2: 9-16 | U2: 5-8 | V2: 3-4 | W2: 2ος | X2: 1ος
A3: 2 | B3: =RAND()/22 -> 0.02735771007 | C3: 0.03844250463 | I3: E1 | J3: E1-12 | K3: 1.5 | L3: 2 | M3: 2 | N3: 0 | O3: 0 | P3: 0 | Q3: E1 | R3: E1-12 | S3: 1.5 | T3: 0.5 | U3: 0 | V3: 0 | W3: 0 | X3: 0
A4: 3 | B4: =RAND()/22 -> 0.0218761044 | C4: 0.02737359675 | J4: E1-14 | K4: 3 | L4: 4 | M4: 4 | N4: 0 | O4: 0 | P4: 0 | R4: E1-14 | S4: 3 | T4: 1 | U4: 0 | V4: 0 | W4: 0 | X4: 0
A5: 4 | B5: =RAND()/22 -> 0.01612948893 | C5: 0.02952458195 | J5: E1-16 | K5: 6 | L5: 8 | M5: 8 | N5: 0 | O5: 0 | P5: 0 | R5: E1-16 | S5: 6 | T5: 2 | U5: 0 | V5: 0 | W5: 0 | X5: 0
A6: 5 | B6: 0.02742536101 | C6: 0.001622292428 | J6: E1-18 | K6: 7.5 | L6: 10 | M6: 10 | N6: 0 | O6: 0 | P6: 0 | R6: E1-18 | S6: 7.5 | T6: 2.5 | U6: 0 | V6: 0 | W6: 0 | X6: 0
A7: 6 | B7: 0.03310084921 | C7: 0.04069602738 | I7: E2 | J7: E2-12 | K7: 0.5 | L7: 1 | M7: 1 | N7: 0 | O7: 0 | P7: 0 | Q7: E2 | R7: E2-12 | S7: 0.5 | T7: 0.5 | U7: 0 | V7: 0 | W7: 0 | X7: 0
A8: 7 | B8: 0.04369346072 | C8: 0.01888338292 | J8: E2-14 | K8: 1 | L8: 2 | M8: 2 | N8: 0 | O8: 0 | P8: 0 | R8: E2-14 | S8: 1 | T8: 1 | U8: 0 | V8: 0 | W8: 0 | X8: 0
A9: 8 | B9: 0.004489917119 | C9: 0.0320433648 | J9: E2-16 | K9: 2 | L9: 4 | M9: 4 | N9: 0 | O9: 0 | P9: 0 | R9: E2-16 | S9: 2 | T9: 2 | U9: 0 | V9: 0 | W9: 0 | X9: 0
A10: 9 | B10: 0.02618403102 | C10: 0.02232341589
A11: 10 | B11: 0.01305651366 | C11: 0.0228753438
A12: 11 | B12: 0.02667136842 | C12: 0.04418084332 | I12: ΚΥΡΙΩΣ ΤΑΜΠΛΟ E1, E2 & E3
A13: 12 | B13: 0.02774690163 | C13: 0.01545120355 | K13: 17-32 | L13: 9-16 | M13: 5-8 | N13: 3-4 | O13: 2ος | P13: 1ος | S13: 17-32 | T13: 9-16 | U13: 5-8 | V13: 3-4 | W13: 2ος | X13: 1ος
A14: 13 | B14: 0.0009963009217 | C14: 0.02387063655 | I14: E1 | J14: E1-12 | K14: 5 | L14: 7.5 | M14: 10 | N14: 15 | O14: 25 | P14: 30 | Q14: E1 | R14: E1-12 | S14: 5 | T14: 2.5 | U14: 2.5 | V14: 5 | W14: 10 | X14: 5
A15: 14 | B15: 0.02218825304 | C15: 0.02754007664 | J15: E1-14 | K15: 10 | L15: 15 | M15: 20 | N15: 30 | O15: 50 | P15: 60 | R15: E1-14 | S15: 10 | T15: 5 | U15: 5 | V15: 10 | W15: 20 | X15: 10
A16: 15 | B16: 0.01720039255 | C16: 0.004896034921 | J16: E1-16 | K16: 20 | L16: 30 | M16: 40 | N16: 60 | O16: 100 | P16: 120 | R16: E1-16 | S16: 20 | T16: 10 | U16: 10 | V16: 20 | W16: 40 | X16: 20
A17: 16 | B17: 0.04164377888 | C17: 0.0236843503 | J17: E1-18 | K17: 25 | L17: 37.5 | M17: 50 | N17: 75 | O17: 125 | P17: 150 | R17: E1-18 | S17: 25 | T17: 12.5 | U17: 12.5 | V17: 25 | W17: 50 | X17: 25
A18: 17 | B18: 0.00375620729 | C18: 0.02350668912 | I18: E2 | J18: E2-12 | K18: 2.5 | L18: 4 | M18: 5 | N18: 7.5 | O18: 12.5 | P18: 15 | Q18: E2 | R18: E2-12 | S18: 2.5 | T18: 1.5 | U18: 1 | V18: 2.5 | W18: 5 | X18: 2.5
A19: 18 | B19: 0.003114020451 | C19: 0.02502571487 | J19: E2-14 | K19: 5 | L19: 8 | M19: 10 | N19: 15 | O19: 25 | P19: 30 | R19: E2-14 | S19: 5 | T19: 3 | U19: 2 | V19: 5 | W19: 10 | X19: 5
A20: 19 | B20: 0.03975299541 | C20: 0.01153401426 | J20: E2-16 | K20: 10 | L20: 16 | M20: 20 | N20: 30 | O20: 50 | P20: 60 | R20: E2-16 | S20: 10 | T20: 6 | U20: 4 | V20: 10 | W20: 20 | X20: 10
A21: 20 | B21: 0.02083123202 | C21: 0.0415364144 | I21: E3 | J21: E3-12 | K21: 1 | L21: 1.5 | M21: 2 | N21: 3 | O21: 5 | P21: 6 | Q21: E3 | R21: E3-12 | S21: 1 | T21: 0.5 | U21: 0.5 | V21: 1 | W21: 2 | X21: 1
A22: 21 | B22: 0.007388043119 | C22: 0.04501884413 | J22: E3-14 | K22: 2 | L22: 3 | M22: 4 | N22: 6 | O22: 10 | P22: 12 | R22: E3-14 | S22: 2 | T22: 1 | U22: 1 | V22: 2 | W22: 4 | X22: 2
A23: 22 | B23: 0.03082231165 | C23: 0.006090237898 | J23: E3-16 | K23: 4 | L23: 6 | M23: 8 | N23: 12 | O23: 20 | P23: 24 | R23: E3-16 | S23: 4 | T23: 2 | U23: 2 | V23: 4 | W23: 8 | X23: 4
A24: 23 | B24: 0.04177155444 | C24: 0.03023168008
A25: 24 | B25: 0.004764584091 | C25: 0.02077034836
A26: 25 | B26: 0.01782502782 | C26: 0.01435010249 | J26: ΔΙΠΛΑ E1, E2
A27: 26 | B27: 0.02782132652 | C27: 0.04520418303 | L27: 9-16 | M27: 5-8 | N27: 3-4 | O27: 2ος | P27: 1ος | S27: 9-16 | T27: 5-8 | U27: 3-4 | V27: 2ος | W27: 1ος
A28: 27 | B28: 0.039794015 | C28: 0.02972697944 | J28: E1 | K28: E1-12 | L28: 2 | M28: 2.5 | N28: 4 | O28: 6.5 | P28: 7.5 | Q28: E1 | R28: E1-12 | S28: 2 | T28: 0.5 | U28: 1.5 | V28: 2.5 | W28: 1
A29: 28 | B29: 0.04441738884 | C29: 0.01802897492 | K29: E1-14 | L29: 4 | M29: 5 | N29: 8 | O29: 13 | P29: 15 | R29: E1-14 | S29: 4 | T29: 1 | U29: 3 | V29: 5 | W29: 2
A30: 29 | B30: 0.04397640928 | C30: 0.0123354216 | K30: E1-16 | L30: 8 | M30: 10 | N30: 16 | O30: 26 | P30: 30 | R30: E1-16 | S30: 8 | T30: 2 | U30: 6 | V30: 10 | W30: 4
A31: 30 | B31: 0.007334865208 | C31: 0.03736996489 | K31: E1-18 | L31: 10 | M31: 12.5 | N31: 20 | O31: 32.5 | P31: 37.5 | R31: E1-18 | S31: 10 | T31: 2.5 | U31: 7.5 | V31: 13 | W31: 4.5
A32: 31 | B32: 0.02987533951 | C32: 0.01783310227 | J32: E2 | K32: E2-12 | L32: 1 | M32: 1.5 | N32: 2 | O32: 3 | P32: 4 | Q32: E2 | R32: E2-12 | S32: 1 | T32: 0.5 | U32: 0.5 | V32: 1 | W32: 1
A33: 32 | B33: 0.01106684932 | C33: 0.01306071757 | K33: E2-14 | L33: 2 | M33: 3 | N33: 4 | O33: 6 | P33: 8 | R33: E2-14 | S33: 2 | T33: 1 | U33: 1 | V33: 2 | W33: 2
A34: 33 | B34: 0.02940057467 | C34: 0.004020806691 | K34: E2-16 | L34: 4 | M34: 6 | N34: 8 | O34: 12 | P34: 16 | R34: E2-16 | S34: 4 | T34: 2 | U34: 2 | V34: 4 | W34: 4
A35: 34 | B35: 0.04439565994 | C35: 0.02102268479
A36: 35 | B36: 0.0007355643812 | C36: 0.02582258453
A37: 36 | B37: 0.01099736771 | C37: 0.005645661915
A38: 37 | B38: 0.003430106395 | C38: 0.02467633718
A39: 38 | B39: 0.01237797078 | C39: 0.01372744889
A40: 39 | B40: 0.04279083347 | C40: 0.04034316701
A41: 40 | B41: 0.02049169044 | C41: 0.003078866843
A42: 41 | B42: 0.01762807595 | C42: 0.01913664397
A43: 42 | B43: 0.01617121131 | C43: 0.01157819348
A44: 43 | B44: 0.0101781896 | C44: 0.02848187512
A45: 44 | B45: 0.00192865381 | C45: 0.01630517062
A46: 45 | B46: 0.03472622825 | C46: 0.01592844746
A47: 46 | B47: 0.003792161811 | C47: 0.03329370881
A48: 47 | B48: 0.02614643866 | C48: 0.007269447169
A49: 48 | B49: 0.0115437826 | C49: 0.04429495185
A50: 49 | B50: 0.01148485948 | C50: 0.02605557155
A51: 50 | B51: 0.001478811177 | C51: 0.03275498631
A52: 51 | B52: 0.009552345411 | C52: 0.01636298406
A53: 52 | B53: 0.001512907701 | C53: 0.04085017488
A54: 53 | B54: 0.03798188566 | C54: 0.02250299645
A55: 54 | B55: 0.02520132812 | C55: 0.01651349334
A56: 55 | B56: 0.01598570942 | C56: 0.002732915702
A57: 56 | B57: 0.04283450774 | C57: 0.02908420074
A58: 57 | B58: 0.00545582696 | C58: 0.03232444922
A59: 58 | B59: 0.03686946353 | C59: 0.006868051386
A60: 59 | B60: 0.02494466657 | C60: 0.03376582072
A61: 60 | B61: 0.01814351327 | C61: 0.02513757234
A62: 61 | B62: 0.0419442306 | C62: 0.03737403106
A63: 62 | B63: 0.014715149 | C63: 0.008537760683
A64: 63 | B64: 0.03890356953 | C64: 0.01384689852
A65: 64 | B65: 0.03989383801 | C65: 0.01026521965
